{"text_format":"1","workbook":"xlsx","n_sheets":13,"sheets":["注意事項・入力例 ","基本情報","東洋入力","見積書（業者控）","見積書（正）","見積書（控）","見積内訳書","見積書（手書用）","見積内訳書 (手書用)","出来高調書（手書用）","労務費内訳書","労務費内訳書 (記入例)","Ver."],"not_rendered":{"charts":0,"images":1,"macros":1,"external_links":0,"defined_names":90,"comments":6,"pivot_tables":0},"unopened":[],"bounds":{"document_bytes":16777216,"sheet_cells":100000,"rows_first":2000,"rows_last":500,"rows_between":2000,"halvings":0,"cell_chars":16384,"cell_head_chars":4096},"cells_cut":0,"cells_raw":0,"read":"whole","date_system":"1900"}

{"sheet":"注意事項・入力例 ","index":0,"n_rows":73,"n_cols":15,"rows_kept":73,"cut":false,"hidden":false,"merged":[[19,4,20,8],[47,1,47,10]]}
[]
[]
[]
[]
[]
[]
[]
[]
[]
[]
[]
[]
[]
[]
[]
[]
[]
[null,null,null,null,null,null,null,null,null,null,null,null,null,null,1]
[]
[null,"【よくお読み下さい】"]
[]
[null,"【見積書入力・印刷・提出について（お願い）】"]
[]
[null,"－１．入力－"]
[]
[null,"　１－１．【基本情報】シートの白い箇所に必要事項を入力してください。"]
[null,"　　　　　　各見積書シートに転記されます。"]
[]
[null,"　１－２．【基本情報】シートの既契約金額へは変更見積時に、記載金額を確認してください。"]
[null,"　　　　　 新規契約時には「今回見積金額」の記載金額を確認してください。"]
[]
[null,"　１－３．初回提出分入力時は、【見積内訳書】シートの「今回見積」（右側）に入力して下さい。"]
[]
[null,"　１－４．変更見積時の内訳は【見積内訳書】の「前回見積」（左側）に前回提出分を、「今回見積」"]
[null,"　　　　　（右側）に変更見積分を入力して下さい。"]
[null,"　　　　　※「今回見積」を入力しないとマクロからの印刷はできません。"]
[]
[null,"－２．印刷－"]
[]
[null,"　２－１．印刷は【基本情報】シートの「見積書一括印刷」ボタン、【見積内訳書】シートの印刷ボタン、もしくは各シートにて行ってください。"]
[null,"　　　　　 ※手書きの場合は、見積書（手書用）、見積内訳書（手書用）、出来高調書（手書用）シートを個別に印刷してください。"]
[null,"　　　　　　","マクロからの印刷はできません。"]
[null,"　２－２．印刷はマクロにより自動出力されますので、事前に使用するプリンタの設定"]
[null,"　　　　　をして下さい。"]
[null,"　２－３．印刷イメージは、【基本情報】シートの「プレビュー」ボタンで確認できます（見積内訳書のみ）。"]
[null,"　　　　　表紙のプレビューを確認する場合は、各見積書シートにて行ってください。"]
[null,"　２－４．出来高調書は見積内訳書と一緒に印刷されます。"]
[]
[]
[null,"－３．提出－"]
[]
[null,"　３－１．弊社宛の見積書は、（出来高調書）（控）（正）の３部を提出してください。"]
[null,"　　　　　※手書による作成の場合は、記入後に見積書のコピーを２部とり、書類名の区分（控・正・業者控）"]
[null,"　　　　　　それぞれに○をして、（控）と（正）を見積内訳書をそれぞれ添付して出来高調書一部と一緒に提出してください。"]
[null,"　　　　　　業者控と業者控用見積内訳書はお取り置きください。"]
[]
[null,"　３－２．見積書は、必ず所定の日までに提出してください。"]
[null,"　　　　　提出が遅れた場合は、所定の支払日にお支払いできないことがあります。"]
[]
[null,"　３－３．取引先コード№の欄は、必ず弊社登録のコードを入力してください。"]
[null,"　　　　　なお、未登録の場合は、空白のまま提出してください。"]
[null,"　　　　　不明の場合は、取引先支店経理担当者までお問い合わせください。"]
[]
[null,"　３－４．建築工事または設備工事の場合は、当社指定の工種毎に作成してください。"]
[]
[null,"　３－５．見積書の入力に際しては、納入先の弊社担当者とお打ち合わせの上、"]
[null,"　　　　　入力してください。"]
[]
[null,"【入力例】"]
[null,"・入力の参考としてください。"]
[]
[]
[null,"【基本情報】シート"]

{"sheet":"基本情報","index":1,"n_rows":44,"n_cols":33,"rows_kept":44,"cut":false,"hidden":false,"merged":[[2,1,2,3],[2,4,2,10],[2,11,2,13],[3,1,3,3],[3,4,3,10],[3,11,3,13],[4,1,4,3],[4,4,4,10],[4,11,4,13],[5,4,5,10],[6,1,6,3],[6,4,6,10],[12,1,12,3],[12,4,12,10],[12,11,12,13],[7,4,7,10],[8,1,8,3],[8,4,8,10],[9,1,9,3],[9,4,9,10],[9,11,9,13],[10,1,11,3],[10,4,10,10],[10,11,10,13],[11,4,11,10],[11,11,11,13],[13,1,13,3],[13,4,13,10],[13,11,13,13],[14,1,14,3],[14,4,14,10],[14,11,14,13],[15,1,15,3],[15,4,15,10],[15,11,15,13],[18,1,18,3],[18,11,18,13],[16,1,16,3],[16,4,16,10],[16,11,16,13],[17,1,17,3],[17,11,17,13],[18,5,18,10],[30,1,30,3],[30,6,30,7],[19,11,19,13],[20,1,24,1],[20,4,20,6],[20,8,20,9],[20,11,20,13],[21,11,21,13],[22,11,22,13],[23,11,23,13],[26,1,26,3],[26,6,26,10],[27,1,27,3],[28,1,28,3],[29,1,29,3],[21,4,21,5],[39,1,39,3],[39,6,39,9],[33,1,33,3],[33,4,33,9],[34,1,34,3],[34,7,34,9],[35,1,35,3],[35,4,35,9],[36,1,36,3],[36,4,36,9],[37,4,37,6],[38,1,38,3],[38,4,38,6],[40,1,40,3],[40,6,40,9],[41,1,41,3],[41,6,41,9],[42,1,42,3],[40,4,40,5],[41,4,41,5],[42,4,42,5],[22,4,22,5],[23,4,23,5],[24,4,24,5],[26,4,26,5],[27,4,27,5],[28,4,28,5],[29,4,29,5],[30,4,30,5],[34,4,34,5],[39,4,39,5]]}
[]
[null,"【基本情報】　貴社の会社情報を入力して下さい。",null,null,null,null,null,null,null,null,null,null,null,null,null,null,null,null,null,null,null,null,null,null,null,null,null,null,null,null,"↓許可行政庁見出し",null,"↓許可区分見出し"]
[null,"項目",null,null,"入力して下さい　（ゴム印を使用される場合は入力不要です）",null,null,null,null,null,null,"入力形式",null,null,null,null,null,null,null,null,null,null,null,null,null,null,null,null,null,null,"国土交通大臣",null,"般"]
[null,"正式会社名（漢字）",null,null,null,null,null,null,null,null,null,null,null,null,null,null,null,null,null,null,null,null,null,null,null,null,null,null,null,null,"都道府県知事",null,"特"]
[null,"　　　　　（カナ）"]
[null,"代表者職名（漢字）"]
[null,"　　　　　（カナ）",null,null,null,null,null,null,null,null,null,null,null,null,null,null,null,null,null,null,null,null,null,null,null,null,null,null,null,null,"↓発注区分見出し"]
[null,"代表者氏名（漢字）",null,null,null,null,null,null,null,null,null,null,null,null,null,null,null,null,null,null,null,null,null,null,null,null,null,null,null,null,"新規",1]
[null,"　　　　　（カナ）",null,null,null,null,null,null,null,null,null,null,null,null,null,null,null,null,null,null,null,null,null,null,null,null,null,null,null,null,"増額",2]
[null,"郵便番号",null,null,null,null,null,null,null,null,null,"　***-****　（半角数字）",null,null,null,null,null,null,null,null,null,null,null,null,null,null,null,null,null,null,"減額",3]
[null,"住所",null,null,null,null,null,null,null,null,null,{"$f":"IF(LENB(E11)>60,\"全角30文字以降は2行目に入力して下さい。\",\"\")","v":""},null,null,null,null,null,null,null,null,null,null,null,null,null,null,null,null,null,null,"その他",4]
[null,null,null,null,null,null,null,null,null,null,null,null,null,null,null,null,null,null,null,null,null,null,null,null,null,null,null,null,null,null,null,{"$f":"VLOOKUP(E35,AE8:AF11,2,FALSE)","v":{"$error":"#N/A"}}]
[null,"電話番号",null,null,null,null,null,null,null,null,null,"　**-****-****　（半角数字）"]
[null,"ＦＡＸ番号",null,null,null,null,null,null,null,null,null,"　**-****-****　（半角数字）"]
[null,"担当部署名"]
[null,"担当者名"]
[null,"取引先コード",null,null,null,null,null,null,null,null,null,"　**??***　（数字２桁＋大文字アルファベット２桁＋数字３桁）"]
[null,"適格請求書発行事業者登録番号の有無",null,null,"有","無","　どちらかを選択してください。",null,null,null,null,"　**??***　（数字２桁＋大文字アルファベット２桁＋数字３桁）",null,null,0]
[null,"適格請求書発行事業者登録番号",null,null,"T",null,null,null,null,null,null,"　T以外の番号を半角ハイフン無しで入力してください"]
[]
[null,"建設業許可","許可行政庁"]
[null,null,"許可区分"]
[null,null,"許可年度",null,null,null,null,null,null,null,null,"　**　（半角数字）"]
[null,null,"業者番号"]
[null,null,"許可日（更新日）",null,null,null,null,null,null,null,null,"YYYY/MM/DD"]
[]
[null,"健康保険"]
[null,"厚生年金保険",null,null,null,null,null,"-"]
[null,"雇用保険",null,null,null,null,null,"-",null,"-"]
[null,"労務費見積尊重宣言　対象企業"]
[null,"CCUS事業者登録状況/ID"]
[]
[null,"【見積情報】　弊社担当者とお打ち合わせの上、入力してください。",null,null,null,null,null,null,null,null,null,null,"　※プレビューは「見積内訳書」のみ表示されます。"]
[null,"項目",null,null,"入力して下さい",null,null,null,null,null,"入力形式",null,"　※プレビューには印刷されない内訳も表示されます。"]
[null,"発注区分",null,null,null,null,null,null,null,null,null,null,"　※見積内訳は 〔 １ 〕 枚印刷されます"]
[null,"工事名",null,null,null,null,null,null,null,null,null,null,"　※【見積書一括印刷】は、控えも含めて見積書、見積"]
[null,"施工場所",null,null,null,null,null,null,null,null,null,null,"　　内訳書が3部ずつと労務費内訳書が1部印刷されます。"]
[null,"今回見積金額（税抜）",null,null,null,null,null,"変更見積の場合は増減額",null,null,null,null,"　※見積内訳書の今回見積欄を入力しないとボタンから"]
[null,"既契約金額",null,null,null,null,null,"変更見積時にのみ入力",null,null,null,null,"　　は印刷できません。"]
[null,"工期（開始日）",null,null,null,null,null,null,null,null,"YYYY/MM/DD",null,"　　白紙で印刷する場合は、ファイル→印刷から印刷し"]
[null,"工期（終了日）",null,null,null,null,null,null,null,null,"YYYY/MM/DD",null,"　　てください。"]
[null,"見積年月日",null,null,null,null,null,null,null,null,"YYYY/MM/DD"]
[null,"見積有効期限",null,null,null,null,null,null,null,null,"YYYY/MM/DD"]
[null,null,"※〔基本情報〕シートに入力後、〔見積書（入力）〕シートに必要事項を入力して下さい。"]

{"sheet":"東洋入力","index":2,"n_rows":59,"n_cols":29,"rows_kept":59,"cut":false,"hidden":false,"merged":[[1,1,1,3],[1,4,1,10],[20,7,20,8],[22,5,22,8],[24,5,24,8]]}
[null,null,null,null,null,null,null,null,null,null,null,null,null,null,null,null,null,null,null,null,null,null,null,null,null,null,"仕訳工種CD","工種名称"]
[null,"項目",null,null,"入力して下さい",null,null,null,null,null,null,null,null,null,null,null,null,null,null,null,null,null,null,null,null,null,"00009","建築工事費",{"$f":"AA2&\" \"&AB2","v":"00009 建築工事費"}]
[null,null,null,null,null,null,null,null,null,null,null,null,null,null,null,null,null,null,null,null,null,null,null,null,null,null,"01001","土木工事費",{"$f":"AA3&\" \"&AB3","v":"01001 土木工事費"}]
[null,"支払条件",null,null,null,null,null,null,null,null,null,null,null,null,null,null,null,null,null,null,null,null,null,null,null,null,"01010","共通仮設・準備費","01010 共通仮設・準備費"]
[null,null,"支払比率",null,"現金",null,"%",null,null,null,null,null,null,null,null,null,null,null,null,null,null,null,null,null,null,null,"01011","共通仮設・調査試験費","01011 共通仮設・調査試験費"]
[null,null,null,null,"手形",null,"%","サイト",null,"日",null,null,null,null,null,null,null,null,null,null,null,null,null,null,null,null,"01012","共通仮設・仮囲費","01012 共通仮設・仮囲費"]
[null,null,"部分払",null,null,null,"%",null,null,null,null,null,null,null,null,null,null,null,null,null,null,null,null,null,null,null,"01013","共通仮設・仮設建物費","01013 共通仮設・仮設建物費"]
[null,null,null,null,null,null,null,null,null,null,null,null,null,null,null,null,null,null,null,null,null,null,null,null,null,null,"01014","共通仮設・借地費","01014 共通仮設・借地費"]
[null,null,"支払区分",null,null,null,"　　支払区分を選択",null,null,null,null,null,null,null,null,null,null,null,null,null,null,null,null,null,null,null,"01015","共通仮設・補修費","01015 共通仮設・補修費"]
[null,null,null,null,null,null,null,null,null,null,null,null,null,null,null,null,null,null,null,null,null,null,null,null,null,null,"01016","共通仮設・機械費","01016 共通仮設・機械費"]
[null,null,null,null,null,null,null,null,null,null,null,null,null,null,null,null,null,null,null,null,null,null,null,null,null,null,"01017","共通仮設・動力用水費","01017 共通仮設・動力用水費"]
[null,"契約日",null,null,null,null,"　　契約日を入力　YYYY/MM/DD",null,null,null,null,null,"契約日chk",{"$f":"IF(基本情報!E40<F12,\"※【エラー】契約日が工期開始より後ろになっています。\",\"ＯＫ\")","v":"ＯＫ"},null,null,null,null,null,null,null,null,null,null,null,null,"01018","共通仮設・仮設道路費","01018 共通仮設・仮設道路費"]
[null,null,null,null,null,null,null,null,null,null,null,null,null,null,null,null,null,null,null,null,null,null,null,null,null,null,"01019","共通仮設・保守管理費","01019 共通仮設・保守管理費"]
[null,null,null,null,null,null,null,null,null,null,null,null,null,null,null,null,null,null,null,null,null,null,null,null,null,null,"01020","共通仮設・運搬費","01020 共通仮設・運搬費"]
[null,"労災保険",null,null,null,null,null,null,null,null,null,null,null,null,null,null,null,null,null,null,null,null,null,null,null,null,"01021","共通仮設・雑材費","01021 共通仮設・雑材費"]
[null,null,"成立名義",null,null,"　","　　成立名義を選択",null,null,null,null,null,null,null,null,null,null,null,null,null,null,null,null,null,null,null,"01022","共通仮設・雑工費","01022 共通仮設・雑工費"]
[null,null,"保険料負担",null,null,"　","　　保険料負担を選択",null,null,null,null,null,null,null,null,null,null,null,null,null,null,null,null,null,null,null,"02025","直接仮設・遣方現寸費","02025 直接仮設・遣方現寸費"]
[null,null,"算出基礎",null,null,null,"　　算出基礎を選択",null,null,null,null,null,null,null,null,null,null,null,null,null,null,null,null,null,null,null,"02026","直接仮設・足場費","02026 直接仮設・足場費"]
[null,null,null,null,null,null,null,null,null,null,null,null,null,null,null,null,null,null,null,null,null,null,null,null,null,null,"02027","直接仮設・安全設備費","02027 直接仮設・安全設備費"]
[null,null,null,null,null,null,null,null,null,null,null,null,null,null,null,null,null,null,null,null,null,null,null,null,null,null,"02028","直接仮設・清掃養生費","02028 直接仮設・清掃養生費"]
[null,"工事番号",null,null,null,null,"－",null,null,null,null,null,"工事番号",{"$f":"F21&\"-\"&H21","v":"-"},null,null,null,null,null,null,null,null,null,null,null,null,"02029","直接仮設・運搬費","02029 直接仮設・運搬費"]
[null,null,null,null,null,null,null,null,null,null,null,null,null,null,null,null,null,null,null,null,null,null,null,null,null,null,"02030","直接仮設・その他","02030 直接仮設・その他"]
[null,"見積依頼番号",null,null,null,null,null,null,null,null,null,null,null,null,null,null,null,null,null,null,null,null,null,null,null,null,"03033","土工事","03033 土工事"]
[null,null,null,null,null,null,null,null,null,null,null,null,null,null,null,null,null,null,null,null,null,null,null,null,null,null,"03034","山留工事","03034 山留工事"]
[null,"工種",null,null,null,null,null,null,null,null,null,null,null,null,null,null,null,null,null,null,null,null,null,null,null,null,"03035","杭地業工事","03035 杭地業工事"]
[null,null,null,null,null,null,null,null,null,null,null,null,null,null,null,null,null,null,null,null,null,null,null,null,null,null,"03036","その他土工地業工事","03036 その他土工地業工事"]
[null,null,null,null,null,null,null,null,null,null,null,null,null,null,null,null,null,null,null,null,null,null,null,null,null,null,"03037","コンクリート工事","03037 コンクリート工事"]
[null,null,null,null,null,null,null,null,null,null,null,null,null,null,null,null,null,null,null,null,null,null,null,null,null,null,"03038","型枠工事","03038 型枠工事"]
[null,null,null,null,null,null,null,null,null,null,null,null,null,null,null,null,null,null,null,null,null,null,null,null,null,null,"03039","鉄筋工事","03039 鉄筋工事"]
[null,null,null,null,null,null,null,null,null,null,null,null,null,null,null,null,null,null,null,null,null,null,null,null,null,null,"03040","鉄骨工事","03040 鉄骨工事"]
[null,null,null,null,null,null,null,null,null,null,null,null,null,null,null,null,null,null,null,null,null,null,null,null,null,null,"03041","耐火被覆工事","03041 耐火被覆工事"]
[null,null,null,null,null,null,null,null,null,null,null,null,null,null,null,null,null,null,null,null,null,null,null,null,null,null,"03042","ピーシー版工事","03042 ピーシー版工事"]
[null,null,null,null,null,null,null,null,null,null,null,null,null,null,null,null,null,null,null,null,null,null,null,null,null,null,"03043","その他躯体工事","03043 その他躯体工事"]
[null,null,null,null,null,null,null,null,null,null,null,null,null,null,null,null,null,null,null,null,null,null,null,null,null,null,"03044","組積工事","03044 組積工事"]
[null,null,null,null,null,null,null,null,null,null,null,null,null,null,null,null,null,null,null,null,null,null,null,null,null,null,"03045","防水工事","03045 防水工事"]
[null,null,null,null,null,null,null,null,null,null,null,null,null,null,null,null,null,null,null,null,null,null,null,null,null,null,"03046","石工事","03046 石工事"]
[null,null,null,null,null,null,null,null,null,null,null,null,null,null,null,null,null,null,null,null,null,null,null,null,null,null,"03047","タイル工事","03047 タイル工事"]
[null,null,null,null,null,null,null,null,null,null,null,null,null,null,null,null,null,null,null,null,null,null,null,null,null,null,"03048","木工事","03048 木工事"]
[null,null,null,null,null,null,null,null,null,null,null,null,null,null,null,null,null,null,null,null,null,null,null,null,null,null,"03049","屋根・スレート工事","03049 屋根・スレート工事"]
[null,null,null,null,null,null,null,null,null,null,null,null,null,null,null,null,null,null,null,null,null,null,null,null,null,null,"03050","金属工事","03050 金属工事"]
[null,null,null,null,null,null,null,null,null,null,null,null,null,null,null,null,null,null,null,null,null,null,null,null,null,null,"03051","左官工事","03051 左官工事"]
[null,null,null,null,null,null,null,null,null,null,null,null,null,null,null,null,null,null,null,null,null,null,null,null,null,null,"03052","木製建具工事","03052 木製建具工事"]
[null,null,null,null,null,null,null,null,null,null,null,null,null,null,null,null,null,null,null,null,null,null,null,null,null,null,"03053","金属製建具工事","03053 金属製建具工事"]
[null,null,null,null,null,null,null,null,null,null,null,null,null,null,null,null,null,null,null,null,null,null,null,null,null,null,"03054","ガラス工事","03054 ガラス工事"]
[null,null,null,null,null,null,null,null,null,null,null,null,null,null,null,null,null,null,null,null,null,null,null,null,null,null,"03055","塗装工事","03055 塗装工事"]
[null,null,null,null,null,null,null,null,null,null,null,null,null,null,null,null,null,null,null,null,null,null,null,null,null,null,"03056","内装工事","03056 内装工事"]
[null,null,null,null,null,null,null,null,null,null,null,null,null,null,null,null,null,null,null,null,null,null,null,null,null,null,"03057","雑工事","03057 雑工事"]
[null,null,null,null,null,null,null,null,null,null,null,null,null,null,null,null,null,null,null,null,null,null,null,null,null,null,"03058","その他仕上工事","03058 その他仕上工事"]
[null,null,null,null,null,null,null,null,null,null,null,null,null,null,null,null,null,null,null,null,null,null,null,null,null,null,"04061","設備一括工事費","04061 設備一括工事費"]
[null,null,null,null,null,null,null,null,null,null,null,null,null,null,null,null,null,null,null,null,null,null,null,null,null,null,"04062","電気設備工事","04062 電気設備工事"]
[null,null,null,null,null,null,null,null,null,null,null,null,null,null,null,null,null,null,null,null,null,null,null,null,null,null,"04063","給排水衛生設備工事","04063 給排水衛生設備工事"]
[null,null,null,null,null,null,null,null,null,null,null,null,null,null,null,null,null,null,null,null,null,null,null,null,null,null,"04064","空調換気設備工事","04064 空調換気設備工事"]
[null,null,null,null,null,null,null,null,null,null,null,null,null,null,null,null,null,null,null,null,null,null,null,null,null,null,"04065","浄化槽工事","04065 浄化槽工事"]
[null,null,null,null,null,null,null,null,null,null,null,null,null,null,null,null,null,null,null,null,null,null,null,null,null,null,"04066","昇降搬送設備工事","04066 昇降搬送設備工事"]
[null,null,null,null,null,null,null,null,null,null,null,null,null,null,null,null,null,null,null,null,null,null,null,null,null,null,"04067","特殊設備工事","04067 特殊設備工事"]
[null,null,null,null,null,null,null,null,null,null,null,null,null,null,null,null,null,null,null,null,null,null,null,null,null,null,"04068","その他設備工事","04068 その他設備工事"]
[null,null,null,null,null,null,null,null,null,null,null,null,null,null,null,null,null,null,null,null,null,null,null,null,null,null,"05069","屋外工事","05069 屋外工事"]
[null,null,null,null,null,null,null,null,null,null,null,null,null,null,null,null,null,null,null,null,null,null,null,null,null,null,"05070","開発工事","05070 開発工事"]
[null,null,null,null,null,null,null,null,null,null,null,null,null,null,null,null,null,null,null,null,null,null,null,null,null,null,"05071","解体工事","05071 解体工事"]

{"sheet":"見積書（業者控）","index":3,"n_rows":20,"n_cols":55,"rows_kept":20,"cut":false,"hidden":false,"merged":[[14,49,14,60],[15,37,15,48],[15,49,15,60],[10,34,10,37],[9,43,10,57],[7,43,8,59],[14,20,15,23],[17,39,18,60],[16,45,16,54],[17,20,17,23],[17,24,17,36],[18,24,18,36],[16,37,18,38],[1,1,1,60],[2,2,3,15],[3,54,3,60],[4,1,7,1],[4,2,5,2],[4,3,5,3],[4,4,5,4],[4,5,5,5],[4,6,5,7],[4,8,5,10],[4,22,5,25],[4,26,5,40],[6,2,7,2],[6,3,7,3],[6,4,7,4],[6,5,7,5],[6,8,7,10],[6,11,7,21],[4,41,5,48],[4,49,5,60],[3,49,3,53],[6,29,6,31],[8,1,10,3],[8,29,8,31],[8,32,8,37],[9,26,9,27],[9,29,9,40],[10,26,10,27],[10,29,10,32],[14,24,15,36],[14,37,14,48],[11,37,11,39],[8,4,10,21],[11,1,13,3],[11,4,13,21],[11,26,11,27],[11,29,11,31],[12,33,12,36],[13,27,13,31],[13,33,13,37],[16,1,17,1],[16,11,17,12],[16,13,16,15],[16,16,16,17],[16,18,16,19],[16,20,16,23],[14,1,15,8],[14,9,15,19],[16,24,16,36],[17,13,17,15],[17,16,17,17],[17,18,17,19],[21,10,23,10],[23,22,23,29],[23,30,23,36],[25,18,25,19],[26,8,26,9],[26,10,26,11],[26,12,26,13],[18,1,20,1],[18,4,20,4],[18,5,18,7],[18,8,18,10],[18,11,18,12],[18,20,18,23],[19,2,20,2],[19,3,20,3],[19,11,20,12],[19,18,20,19],[19,22,19,36],[32,15,32,20],[29,27,29,32],[29,33,29,38],[29,47,29,52],[29,53,29,58],[30,15,30,20],[26,14,26,15],[26,16,26,17],[26,18,26,19],[29,1,29,14],[29,15,29,20],[29,21,29,26],[23,37,26,38],[24,1,26,7],[24,8,24,11],[24,12,24,15],[24,16,24,19],[25,8,25,9],[25,10,25,11],[25,12,25,13],[25,14,25,15],[25,16,25,17],[19,20,26,21],[21,1,21,8]]}
[]
[null,"見　　積　　書　（ 業者控 ）"]
[null,null,"東洋建設株式会社　御中"]
[null,null,null,null,null,null,null,null,null,null,null,null,null,null,null,null,null,null,null,null,null,null,null,null,null,null,null,null,null,null,null,null,null,null,null,null,null,null,null,null,null,null,null,null,null,null,null,null,null,"見積年月日",null,null,null,null,{"$f":"基本情報!$E$42","v":"00:00:00"}]
[null,"発注区分","新規","増額","減額","その他","変 更\n回 次",null," 契   約№",null,null,null,null,null,null,null,null,null,null,null,null,null,"取引先ｺ-ﾄﾞNo.",null,null,null,{"$f":"基本情報!E17","v":0},null,null,null,null,null,null,null,null,null,null,null,null,null,null,"適格請求書発行事業者\n登録番号",null,null,null,null,null,null,null,{"$f":"基本情報!E19&基本情報!F19","v":"T"}]
[]
[null,null,{"$f":"IF(基本情報!$AF$12=1,\"①\",1)","v":{"$error":"#N/A"}},{"$f":"IF(基本情報!$AF$12=2,\"②\",2)","v":{"$error":"#N/A"}},{"$f":"IF(基本情報!$AF$12=3,\"③\",3)","v":{"$error":"#N/A"}},{"$f":"IF(基本情報!$AF$12=4,\"④\",4)","v":{"$error":"#N/A"}},null,null," 原契約№",null,null,null,null,null,null,null,null,null,null,null,null,null,"（建設業許可番号年月日）",null,null,null,null,null,null,null,null,null,null,null,null,null,null,null,null,null,null,null,{"$f":"\"〒\"&基本情報!$E$10","v":"〒"}]
[null,null,null,null,null,null,null,null,null,null,null,null,null,null,null,null,null,null,null,null,null,null,null,{"$f":"IF(基本情報!$E$21=\"国土交通大臣\",\"国土交通大臣許可\",基本情報!$H$21&\"知事許可\")","v":"知事許可"},null,null,null,null,null,{"$f":"\" （ \"&基本情報!$E$22&\"－\"&TEXT(基本情報!$E$23,\"00\")&\" ）\"","v":" （ －00 ）"},null,null,null,null,{"$f":"\"第 \"&基本情報!$E$24&\" 号\"","v":"第  号"},null,null,null,null,null,null," 住  所",null,{"$f":"基本情報!$E$11&\" \"&基本情報!E12","v":" "}]
[null,"工事名",null,null,{"$f":"\" \"&基本情報!$E$36","v":" "},null,null,null,null,null,null,null,null,null,null,null,null,null,null,null,null,null,null,null,null,null,null,null,null,"許可日",null,null,{"$f":"基本情報!E25","v":"00:00:00"}]
[null,null,null,null,null,null,null,null,null,null,null,null,null,null,null,null,null,null,null,null,null,null,"（健康保険）",null,null,null,{"$f":"基本情報!E27","v":0},null,null,{"$f":"+基本情報!G27","v":0},null,null,null,null,null,null,null,null,null,null,null,null,null,{"$f":"基本情報!E4","v":0}]
[null,null,null,null,null,null,null,null,null,null,null,null,null,null,null,null,null,null,null,null,null,null,"（厚生年金保険）",null,null,null,{"$f":"基本情報!E28","v":0},null,null,{"$f":"+基本情報!G28","v":0},null,null,null,"－",{"$f":"基本情報!I28","v":0},null,null,null,null,null,null,"名　称"]
[null,"施工場所",null,null,{"$f":"\" \"&基本情報!$E$37","v":" "},null,null,null,null,null,null,null,null,null,null,null,null,null,null,null,null,null,"（雇用保険）",null,null,null,{"$f":"基本情報!E29","v":0},null,null,{"$f":"+基本情報!G29","v":0},null,null,"－",{"$f":"基本情報!I29","v":0},null,null,"－",{"$f":"基本情報!K29","v":0},null,null,null,null,null,null,{"$f":"基本情報!E6","v":0},null,null,null,null,null,null,{"$f":"基本情報!E8","v":0}]
[null,null,null,null,null,null,null,null,null,null,null,null,null,null,null,null,null,null,null,null,null,null,"（日建連{労務費見積尊重宣言　対象企業）",null,null,null,null,null,null,null,null,null,null,{"$f":"基本情報!E30","v":0},null,null,null,null,null,null,null," Ｔ Ｅ Ｌ",null,null,{"$f":"基本情報!$E$13","v":0},null,null,null,null,null," Ｆ Ａ Ｘ",null,null,{"$f":"基本情報!$E$14","v":0}]
[null,null,null,null,null,null,null,null,null,null,null,null,null,null,null,null,null,null,null,null,null,null,"（CCUS事業者登録）",null,null,null,null,{"$f":"基本情報!E31","v":0},null,null,null,null,null,{"$f":"基本情報!G31","v":0},null,null,null,null,null,null,null," 作成部署",null,null,{"$f":"基本情報!$E$15","v":0},null,null,null,null,null,"担当者",null,null,{"$f":"基本情報!$E$16","v":0}]
[null,"既契約金額\n(変更見積の場合入力）",null,null,null,null,null,null,null,{"$f":"基本情報!E39","v":0},null,null,null,null,null,null,null,null,null,null,"見積金額\n(消費税含まず)",null,null,null,{"$f":"基本情報!E38","v":0},null,null,null,null,null,null,null,null,null,null,null,null,"　左記に含まれる労務費",null,null,null,null,null,null,null,null,null,null,null,{"$f":"労務費内訳書!K30","v":0}]
[null,null,null,null,null,null,null,null,null,null,null,null,null,null,null,null,null,null,null,null,null,null,null,null,null,null,null,null,null,null,null,null,null,null,null,null,null,"　左記に含まれる法定福利費",null,null,null,null,null,null,null,null,null,null,null,{"$f":"労務費内訳書!K31","v":0}]
[null,null,null,null,null,null,null,null,null,null,null,"工期",null,{"$f":"IF(基本情報!$E$40=\"\",\"\",YEAR(基本情報!$E$40))","v":""},null,null,{"$f":"IF(基本情報!$E$40=\"\",\"\",MONTH(基本情報!$E$40))","v":""},null,{"$f":"DAY(基本情報!$E$40)","v":0},null,"累 計 金 額",null,null,null,{"$f":"+Y15+J15","v":0},null,null,null,null,null,null,null,null,null,null,null,null,"見積条件",null,"　１．見積有効期限",null,null,null,null,null,{"$f":"基本情報!$E$43","v":"00:00:00"}]
[null,null,null,null,null,null,null,null,null,null,null,null,null,{"$f":"IF(基本情報!$E$41=\"\",\"\",YEAR(基本情報!$E$41))","v":""},null,null,{"$f":"IF(基本情報!$E$41=\"\",\"\",MONTH(基本情報!$E$41))","v":""},null,{"$f":"DAY(基本情報!$E$41)","v":0},null,"決 定 金 額",null,null,null,null,null,null,null,null,null,null,null,null,null,null,null,null,null,null,"　２．見積金額には、消費税はふくまれておりません。\n　３．本見積書は、貴社見積条件による。\n\n"]
[]
[null,null,null,null,null,null,null,null,null,null,null,null,null,null,null,null,null,null,null,null,null,null,null,null,null,null,null,null,null,null,null,null,null,null,null,null,null,null,null,"見積依頼番号：",null,null,null,null,{"$f":"東洋入力!F23","v":0}]

{"sheet":"見積書（正）","index":4,"n_rows":36,"n_cols":55,"rows_kept":36,"cut":false,"hidden":false,"merged":[[1,1,1,60],[2,2,3,15],[3,54,3,60],[4,1,7,1],[4,2,5,2],[4,3,5,3],[4,4,5,4],[4,5,5,5],[4,6,5,7],[4,8,5,10],[4,22,5,25],[4,26,5,40],[6,2,7,2],[6,3,7,3],[6,4,7,4],[6,5,7,5],[6,8,7,10],[6,11,7,21],[6,29,6,31],[4,41,5,48],[4,49,5,60],[3,49,3,53],[14,24,15,36],[14,37,14,48],[14,49,14,60],[15,37,15,48],[15,49,15,60],[10,34,10,37],[11,1,13,3],[11,4,13,21],[11,26,11,27],[11,29,11,31],[11,37,11,39],[12,33,12,36],[13,27,13,31],[13,33,13,37],[8,1,10,3],[8,4,10,21],[8,32,8,37],[9,26,9,27],[10,26,10,27],[7,43,8,59],[9,29,9,40],[9,43,10,57],[8,29,8,31],[10,29,10,32],[16,1,17,1],[16,11,17,12],[16,13,16,15],[16,16,16,17],[16,18,16,19],[16,20,16,23],[14,1,15,8],[14,9,15,19],[14,20,15,23],[21,1,21,8],[21,10,23,10],[21,11,23,19],[23,2,23,4],[23,5,23,6],[23,7,23,8],[19,11,20,12],[19,15,20,17],[19,18,20,19],[18,1,20,1],[18,4,20,4],[18,5,18,7],[18,8,18,10],[18,11,18,12],[19,2,20,2],[19,3,20,3],[19,5,20,7],[19,8,20,10],[32,15,32,20],[29,1,29,14],[29,15,29,20],[29,21,29,26],[29,27,29,32],[29,33,29,38],[29,39,29,44],[26,8,26,9],[26,10,26,11],[26,12,26,13],[26,14,26,15],[26,16,26,17],[26,18,26,19],[24,1,26,7],[24,8,24,11],[24,12,24,15],[24,16,24,19],[25,8,25,9],[25,10,25,11],[25,12,25,13],[25,14,25,15],[25,16,25,17],[25,18,25,19],[19,20,26,21],[29,47,29,52],[29,53,29,58],[30,15,30,20],[16,45,16,54],[17,13,17,15],[17,16,17,17],[17,18,17,19],[17,20,17,23],[17,24,17,36],[17,39,18,59],[18,24,18,36],[19,22,19,36],[19,37,22,38],[23,22,23,29],[23,30,23,36],[23,37,26,38],[18,20,18,23],[16,24,16,36],[16,37,18,38]]}
[]
[null,"見　　積　　書　（ 正 ）"]
[null,null,"東洋建設株式会社　御中"]
[null,null,null,null,null,null,null,null,null,null,null,null,null,null,null,null,null,null,null,null,null,null,null,null,null,null,null,null,null,null,null,null,null,null,null,null,null,null,null,null,null,null,null,null,null,null,null,null,null,"見積年月日",null,null,null,null,{"$f":"基本情報!$E$42","v":"00:00:00"}]
[null,"発注区分","新規","増額","減額","その他","変 更\n回 次",null," 契   約№",null,null,null,null,null,null,null,null,null,null,null,null,null,"取引先ｺ-ﾄﾞNo.",null,null,null,{"$f":"基本情報!E17","v":0},null,null,null,null,null,null,null,null,null,null,null,null,null,null,"適格請求書発行事業者\n登録番号",null,null,null,null,null,null,null,{"$f":"基本情報!E19&基本情報!F19","v":"T"}]
[]
[null,null,{"$f":"IF(基本情報!$AF$12=1,\"①\",1)","v":{"$error":"#N/A"}},{"$f":"IF(基本情報!$AF$12=2,\"②\",2)","v":{"$error":"#N/A"}},{"$f":"IF(基本情報!$AF$12=3,\"③\",3)","v":{"$error":"#N/A"}},{"$f":"IF(基本情報!$AF$12=4,\"④\",4)","v":{"$error":"#N/A"}},null,null," 原契約№",null,null,null,null,null,null,null,null,null,null,null,null,null,"（建設業許可番号年月日）",null,null,null,null,null,null,null,null,null,null,null,null,null,null,null,null,null,null,null,{"$f":"\"〒\"&基本情報!$E$10","v":"〒"}]
[null,null,null,null,null,null,null,null,null,null,null,null,null,null,null,null,null,null,null,null,null,null,null,{"$f":"IF(基本情報!$E$21=\"国土交通大臣\",\"国土交通大臣許可\",基本情報!$H$21&\"知事許可\")","v":"知事許可"},null,null,null,null,null,{"$f":"\" （ \"&基本情報!$E$22&\"－\"&TEXT(基本情報!$E$23,\"00\")&\" ）\"","v":" （ －00 ）"},null,null,null,null,{"$f":"\"第 \"&基本情報!$E$24&\" 号\"","v":"第  号"},null,null,null,null,null,null," 住  所",null,{"$f":"基本情報!$E$11&\" \"&基本情報!E12","v":" "}]
[null,"工事名",null,null,{"$f":"\" \"&基本情報!$E$36","v":" "},null,null,null,null,null,null,null,null,null,null,null,null,null,null,null,null,null,null,null,null,null,null,null,null,"許可日",null,null,{"$f":"基本情報!E25","v":"00:00:00"}]
[null,null,null,null,null,null,null,null,null,null,null,null,null,null,null,null,null,null,null,null,null,null,"（健康保険）",null,null,null,{"$f":"基本情報!E27","v":0},null,null,{"$f":"+基本情報!G27","v":0},null,null,null,null,null,null,null,null,null,null,null,null,null,{"$f":"基本情報!E4","v":0}]
[null,null,null,null,null,null,null,null,null,null,null,null,null,null,null,null,null,null,null,null,null,null,"（厚生年金保険）",null,null,null,{"$f":"基本情報!E28","v":0},null,null,{"$f":"+基本情報!G28","v":0},null,null,null,"－",{"$f":"基本情報!I28","v":0},null,null,null,null,null,null,"名　称"]
[null,"施工場所",null,null,{"$f":"\" \"&基本情報!$E$37","v":" "},null,null,null,null,null,null,null,null,null,null,null,null,null,null,null,null,null,"（雇用保険）",null,null,null,{"$f":"基本情報!E29","v":0},null,null,{"$f":"+基本情報!G29","v":0},null,null,"－",{"$f":"基本情報!I29","v":0},null,null,"－",{"$f":"基本情報!K29","v":0},null,null,null,null,null,null,{"$f":"基本情報!E6","v":0},null,null,null,null,null,null,{"$f":"基本情報!E8","v":0}]
[null,null,null,null,null,null,null,null,null,null,null,null,null,null,null,null,null,null,null,null,null,null,"（日建連{労務費見積尊重宣言　対象企業）",null,null,null,null,null,null,null,null,null,null,{"$f":"基本情報!E30","v":0},null,null,null,null,null,null,null," Ｔ Ｅ Ｌ",null,null,{"$f":"基本情報!$E$13","v":0},null,null,null,null,null," Ｆ Ａ Ｘ",null,null,{"$f":"基本情報!$E$14","v":0}]
[null,null,null,null,null,null,null,null,null,null,null,null,null,null,null,null,null,null,null,null,null,null,"（CCUS事業者登録）",null,null,null,null,{"$f":"基本情報!E31","v":0},null,null,null,null,null,{"$f":"基本情報!G31","v":0},null,null,null,null,null,null,null," 作成部署",null,null,{"$f":"基本情報!$E$15","v":0},null,null,null,null,null,"担当者",null,null,{"$f":"基本情報!$E$16","v":0}]
[null,"既契約金額\n(変更見積の場合入力）",null,null,null,null,null,null,null,{"$f":"基本情報!E39","v":0},null,null,null,null,null,null,null,null,null,null,"見積金額\n(消費税含まず)",null,null,null,{"$f":"基本情報!E38","v":0},null,null,null,null,null,null,null,null,null,null,null,null,"　左記に含まれる労務費",null,null,null,null,null,null,null,null,null,null,null,{"$f":"労務費内訳書!K30","v":0}]
[null,null,null,null,null,null,null,null,null,null,null,null,null,null,null,null,null,null,null,null,null,null,null,null,null,null,null,null,null,null,null,null,null,null,null,null,null,"　左記に含まれる法定福利費",null,null,null,null,null,null,null,null,null,null,null,{"$f":"労務費内訳書!K31","v":0}]
[null,"工事番号",null,{"$f":"東洋入力!N21","v":"-"},null,null,null,null,null,null,null,"工期",null,{"$f":"IF(基本情報!$E$40=\"\",\"\",YEAR(基本情報!$E$40))","v":""},null,null,{"$f":"IF(基本情報!$E$40=\"\",\"\",MONTH(基本情報!$E$40))","v":""},null,{"$f":"IF(基本情報!$E$40=\"\",\"\",DAY(基本情報!$E$40))","v":""},null,"累 計 金 額",null,null,null,{"$f":"+Y15+J15","v":0},null,null,null,null,null,null,null,null,null,null,null,null,"見積条件",null,"　１．見積有効期限",null,null,null,null,null,{"$f":"基本情報!$E$43","v":"00:00:00"}]
[null,null,null,null,null,null,null,null,null,null,null,null,null,{"$f":"IF(基本情報!$E$41=\"\",\"\",YEAR(基本情報!$E$41))","v":""},null,null,{"$f":"IF(基本情報!$E$41=\"\",\"\",MONTH(基本情報!$E$41))","v":""},null,{"$f":"IF(基本情報!$E$41=\"\",\"\",DAY(基本情報!$E$41))","v":""},null,"決 定 金 額",null,null,null,null,null,null,null,null,null,null,null,null,null,null,null,null,null,null,"　２．見積金額には、消費税はふくまれておりません。\n　３．本見積書は、貴社見積条件による。\n\n"]
[null,"支払区分","基準","その他","支払条件","現金％",null,null,"手形％",null,null,"前渡金",null,null,null,null,null,null,null,null,"実行予算額"]
[null,null,{"$f":"IF(東洋入力!$F$9=\"1:基準\",\"①\",\"1\")","v":"1"},{"$f":"IF(東洋入力!$F$9=\"2:その他\",\"②\",\"2\")","v":"2"},null,{"$f":"東洋入力!F5","v":0},null,null,{"$f":"東洋入力!F6","v":0},null,null,"部分払",null,null,null,{"$f":"東洋入力!F7","v":0},null,null,"％",null,"捺　　印　　欄",null,"支　　　　　　　　店",null,null,null,null,null,null,null,null,null,null,null,null,null,null,"所見欄"]
[null,null,"1","1"]
[null,"契　　　約　　　日",null,null,null,null,null,null,null,"そ","支払内訳"]
[null,null,null,null,"年",null,"月",null,"日","の"]
[null,null,{"$f":"IF(東洋入力!$F$12=\"\",\"\",YEAR(東洋入力!$F$12))","v":""},null,null,{"$f":"IF(東洋入力!$F$12=\"\",\"\",MONTH(東洋入力!$F$12))","v":""},null,{"$f":"IF(東洋入力!$F$12=\"\",\"\",DAY(東洋入力!$F$12))","v":""},null,"他",null,null,null,null,null,null,null,null,null,null,null,null,"　営業所・事務所",null,null,null,null,null,null,null,"作　業　所",null,null,null,null,null,null,"所見欄"]
[null,"労 災 保 険",null,null,null,null,null,null,"成立名義",null,null,null,"保険料負担",null,null,null,"算出基礎"]
[null,null,null,null,null,null,null,null,"発注者",null,"請負業者",null,"発注者",null,"請負業者",null,"請負金額",null,"実質賃金"]
[null,null,null,null,null,null,null,null,{"$f":"IF(東洋入力!$F$16=\"1:発注者\",\"①\",\"1\")","v":"1"},null,{"$f":"IF(東洋入力!$F$16=\"2:請負業者\",\"②\",\"2\")","v":"2"},null,{"$f":"IF(東洋入力!$F$16=\"1:発注者\",\"①\",\"1\")","v":"1"},null,{"$f":"IF(東洋入力!$F$16=\"2:請負業者\",\"②\",\"2\")","v":"2"},null,{"$f":"IF(東洋入力!$F$18=\"1:請負金額\",\"①\",\"1\")","v":"1"},null,{"$f":"IF(東洋入力!$F$18=\"2:実質賃金\",\"②\",\"2\")","v":"2"}]
[null,null,null,null,null,null,null,null,null,null,null,null,null,null,null,null,null,null,null,null,null,null,null,null,null,null,null,null,null,null,null,null,null,null,null,null,null,null,null,"見積依頼番号：",null,null,null,null,{"$f":"東洋入力!F23","v":0}]
[]
[null,"工種コード・名称（勘定科目）",null,null,null,null,null,null,null,null,null,null,null,null,null,"見 積 金 額",null,null,null,null,null,"値 引 金 額",null,null,null,null,null,"決 定 金 額",null,null,null,null,null,"実 行 予 算 額",null,null,null,null,null,"差 額 (予算－決定）",null,null,null,null,null,null,null," 追加変更決定額概算",null,null,null,null,null,"追加変更見込"]
[null,"　新規",null,"変更　",null,{"$f":"東洋入力!F25","v":0},null,null,null,null,null,null,null,null,null,{"$f":"IF(基本情報!BP35=\"\",基本情報!BP34,基本情報!BP35)","v":0}]
[]
[null,"　原契約",null,null,null,null,null,null,null,null,null,null,null,null,null,{"$f":"IF(基本情報!BP35=\"\",\"\",基本情報!BP34)","v":""}]
[]
[]
[null,null,"(注）"]

{"sheet":"見積書（控）","index":5,"n_rows":36,"n_cols":55,"rows_kept":36,"cut":false,"hidden":false,"merged":[[1,1,1,60],[2,2,3,15],[3,54,3,60],[4,1,7,1],[4,2,5,2],[4,3,5,3],[4,4,5,4],[4,5,5,5],[4,6,5,7],[4,8,5,10],[4,22,5,25],[4,26,5,40],[6,2,7,2],[6,3,7,3],[6,4,7,4],[6,5,7,5],[6,8,7,10],[6,11,7,21],[6,29,6,31],[4,41,5,48],[4,49,5,60],[3,49,3,53],[14,24,15,36],[14,37,14,48],[14,49,14,60],[15,37,15,48],[15,49,15,60],[10,34,10,37],[11,1,13,3],[11,4,13,21],[11,26,11,27],[11,29,11,31],[11,37,11,39],[12,33,12,36],[13,27,13,31],[13,33,13,37],[8,1,10,3],[8,4,10,21],[8,32,8,37],[9,26,9,27],[10,26,10,27],[7,43,8,59],[9,29,9,40],[9,43,10,57],[8,29,8,31],[10,29,10,32],[16,1,17,1],[16,11,17,12],[16,13,16,15],[16,16,16,17],[16,18,16,19],[16,20,16,23],[14,1,15,8],[14,9,15,19],[14,20,15,23],[21,1,21,8],[21,10,23,10],[21,11,23,19],[23,2,23,4],[23,5,23,6],[23,7,23,8],[19,11,20,12],[19,15,20,17],[19,18,20,19],[18,1,20,1],[18,4,20,4],[18,5,18,7],[18,8,18,10],[18,11,18,12],[19,2,20,2],[19,3,20,3],[19,5,20,7],[19,8,20,10],[32,15,32,20],[29,1,29,14],[29,15,29,20],[29,21,29,26],[29,27,29,32],[29,33,29,38],[29,39,29,44],[26,8,26,9],[26,10,26,11],[26,12,26,13],[26,14,26,15],[26,16,26,17],[26,18,26,19],[24,1,26,7],[24,8,24,11],[24,12,24,15],[24,16,24,19],[25,8,25,9],[25,10,25,11],[25,12,25,13],[25,14,25,15],[25,16,25,17],[25,18,25,19],[19,20,26,21],[29,47,29,52],[29,53,29,58],[30,15,30,20],[16,45,16,54],[17,13,17,15],[17,16,17,17],[17,18,17,19],[17,20,17,23],[17,24,17,36],[17,39,18,59],[18,24,18,36],[19,22,19,36],[19,37,22,38],[23,22,23,29],[23,30,23,36],[23,37,26,38],[18,20,18,23],[16,24,16,36],[16,37,18,38]]}
[]
[null,"見　　積　　書　（ 控 ）"]
[null,null,"東洋建設株式会社　御中"]
[null,null,null,null,null,null,null,null,null,null,null,null,null,null,null,null,null,null,null,null,null,null,null,null,null,null,null,null,null,null,null,null,null,null,null,null,null,null,null,null,null,null,null,null,null,null,null,null,null,"見積年月日",null,null,null,null,{"$f":"基本情報!$E$42","v":"00:00:00"}]
[null,"発注区分","新規","増額","減額","その他","変 更\n回 次",null," 契   約№",null,null,null,null,null,null,null,null,null,null,null,null,null,"取引先ｺ-ﾄﾞNo.",null,null,null,{"$f":"基本情報!E17","v":0},null,null,null,null,null,null,null,null,null,null,null,null,null,null,"適格請求書発行事業者\n登録番号",null,null,null,null,null,null,null,{"$f":"基本情報!E19&基本情報!F19","v":"T"}]
[]
[null,null,{"$f":"IF(基本情報!$AF$12=1,\"①\",1)","v":{"$error":"#N/A"}},{"$f":"IF(基本情報!$AF$12=2,\"②\",2)","v":{"$error":"#N/A"}},{"$f":"IF(基本情報!$AF$12=3,\"③\",3)","v":{"$error":"#N/A"}},{"$f":"IF(基本情報!$AF$12=4,\"④\",4)","v":{"$error":"#N/A"}},null,null," 原契約№",null,null,null,null,null,null,null,null,null,null,null,null,null,"（建設業許可番号年月日）",null,null,null,null,null,null,null,null,null,null,null,null,null,null,null,null,null,null,null,{"$f":"\"〒\"&基本情報!$E$10","v":"〒"}]
[null,null,null,null,null,null,null,null,null,null,null,null,null,null,null,null,null,null,null,null,null,null,null,{"$f":"IF(基本情報!$E$21=\"国土交通大臣\",\"国土交通大臣許可\",基本情報!$H$21&\"知事許可\")","v":"知事許可"},null,null,null,null,null,{"$f":"\" （ \"&基本情報!$E$22&\"－\"&TEXT(基本情報!$E$23,\"00\")&\" ）\"","v":" （ －00 ）"},null,null,null,null,{"$f":"\"第 \"&基本情報!$E$24&\" 号\"","v":"第  号"},null,null,null,null,null,null," 住  所",null,{"$f":"基本情報!$E$11&\" \"&基本情報!E12","v":" "}]
[null,"工事名",null,null,{"$f":"\" \"&基本情報!$E$36","v":" "},null,null,null,null,null,null,null,null,null,null,null,null,null,null,null,null,null,null,null,null,null,null,null,null,"許可日",null,null,{"$f":"基本情報!E25","v":"00:00:00"}]
[null,null,null,null,null,null,null,null,null,null,null,null,null,null,null,null,null,null,null,null,null,null,"（健康保険）",null,null,null,{"$f":"基本情報!E27","v":0},null,null,{"$f":"+基本情報!G27","v":0},null,null,null,null,null,null,null,null,null,null,null,null,null,{"$f":"基本情報!E4","v":0}]
[null,null,null,null,null,null,null,null,null,null,null,null,null,null,null,null,null,null,null,null,null,null,"（厚生年金保険）",null,null,null,{"$f":"基本情報!E28","v":0},null,null,{"$f":"+基本情報!G28","v":0},null,null,null,"－",{"$f":"基本情報!I28","v":0},null,null,null,null,null,null,"名　称"]
[null,"施工場所",null,null,{"$f":"\" \"&基本情報!$E$37","v":" "},null,null,null,null,null,null,null,null,null,null,null,null,null,null,null,null,null,"（雇用保険）",null,null,null,{"$f":"基本情報!E29","v":0},null,null,{"$f":"+基本情報!G29","v":0},null,null,"－",{"$f":"基本情報!I29","v":0},null,null,"－",{"$f":"基本情報!K29","v":0},null,null,null,null,null,null,{"$f":"基本情報!E6","v":0},null,null,null,null,null,null,{"$f":"基本情報!E8","v":0}]
[null,null,null,null,null,null,null,null,null,null,null,null,null,null,null,null,null,null,null,null,null,null,"（日建連{労務費見積尊重宣言　対象企業）",null,null,null,null,null,null,null,null,null,null,{"$f":"基本情報!E30","v":0},null,null,null,null,null,null,null," Ｔ Ｅ Ｌ",null,null,{"$f":"基本情報!$E$13","v":0},null,null,null,null,null," Ｆ Ａ Ｘ",null,null,{"$f":"基本情報!$E$14","v":0}]
[null,null,null,null,null,null,null,null,null,null,null,null,null,null,null,null,null,null,null,null,null,null,"（CCUS事業者登録）",null,null,null,null,{"$f":"基本情報!E31","v":0},null,null,null,null,null,{"$f":"基本情報!G31","v":0},null,null,null,null,null,null,null," 作成部署",null,null,{"$f":"基本情報!$E$15","v":0},null,null,null,null,null,"担当者",null,null,{"$f":"基本情報!$E$16","v":0}]
[null,"既契約金額\n(変更見積の場合入力）",null,null,null,null,null,null,null,{"$f":"基本情報!E39","v":0},null,null,null,null,null,null,null,null,null,null,"見積金額\n(消費税含まず)",null,null,null,{"$f":"基本情報!E38","v":0},null,null,null,null,null,null,null,null,null,null,null,null,"　左記に含まれる労務費",null,null,null,null,null,null,null,null,null,null,null,{"$f":"労務費内訳書!K30","v":0}]
[null,null,null,null,null,null,null,null,null,null,null,null,null,null,null,null,null,null,null,null,null,null,null,null,null,null,null,null,null,null,null,null,null,null,null,null,null,"　左記に含まれる法定福利費",null,null,null,null,null,null,null,null,null,null,null,{"$f":"労務費内訳書!K31","v":0}]
[null,"工事番号",null,{"$f":"東洋入力!N21","v":"-"},null,null,null,null,null,null,null,"工期",null,{"$f":"IF(基本情報!$E$40=\"\",\"\",YEAR(基本情報!$E$40))","v":""},null,null,{"$f":"IF(基本情報!$E$40=\"\",\"\",MONTH(基本情報!$E$40))","v":""},null,{"$f":"IF(基本情報!$E$40=\"\",\"\",DAY(基本情報!$E$40))","v":""},null,"累 計 金 額",null,null,null,{"$f":"+Y15+J15","v":0},null,null,null,null,null,null,null,null,null,null,null,null,"見積条件",null,"　１．見積有効期限",null,null,null,null,null,{"$f":"基本情報!$E$43","v":"00:00:00"}]
[null,null,null,null,null,null,null,null,null,null,null,null,null,{"$f":"IF(基本情報!$E$41=\"\",\"\",YEAR(基本情報!$E$41))","v":""},null,null,{"$f":"IF(基本情報!$E$41=\"\",\"\",MONTH(基本情報!$E$41))","v":""},null,{"$f":"IF(基本情報!$E$41=\"\",\"\",DAY(基本情報!$E$41))","v":""},null,"決 定 金 額",null,null,null,null,null,null,null,null,null,null,null,null,null,null,null,null,null,null,"　２．見積金額には、消費税はふくまれておりません。\n　３．本見積書は、貴社見積条件による。\n\n"]
[null,"支払区分","基準","その他","支払条件","現金％",null,null,"手形％",null,null,"前渡金",null,null,null,null,null,null,null,null,"実行予算額"]
[null,null,{"$f":"IF(東洋入力!$F$9=\"1:基準\",\"①\",\"1\")","v":"1"},{"$f":"IF(東洋入力!$F$9=\"2:その他\",\"②\",\"2\")","v":"2"},null,{"$f":"東洋入力!F5","v":0},null,null,{"$f":"東洋入力!F6","v":0},null,null,"部分払",null,null,null,{"$f":"東洋入力!F7","v":0},null,null,"％",null,"捺　　印　　欄",null,"支　　　　　　　　店",null,null,null,null,null,null,null,null,null,null,null,null,null,null,"所見欄"]
[null,null,"1","1"]
[null,"契　　　約　　　日",null,null,null,null,null,null,null,"そ","支払内訳"]
[null,null,null,null,"年",null,"月",null,"日","の"]
[null,null,{"$f":"IF(東洋入力!$F$12=\"\",\"\",YEAR(東洋入力!$F$12))","v":""},null,null,{"$f":"IF(東洋入力!$F$12=\"\",\"\",MONTH(東洋入力!$F$12))","v":""},null,{"$f":"IF(東洋入力!$F$12=\"\",\"\",DAY(東洋入力!$F$12))","v":""},null,"他",null,null,null,null,null,null,null,null,null,null,null,null,"　営業所・事務所",null,null,null,null,null,null,null,"作　業　所",null,null,null,null,null,null,"所見欄"]
[null,"労 災 保 険",null,null,null,null,null,null,"成立名義",null,null,null,"保険料負担",null,null,null,"算出基礎"]
[null,null,null,null,null,null,null,null,"発注者",null,"請負業者",null,"発注者",null,"請負業者",null,"請負金額",null,"実質賃金"]
[null,null,null,null,null,null,null,null,{"$f":"IF(東洋入力!$F$16=\"1:発注者\",\"①\",\"1\")","v":"1"},null,{"$f":"IF(東洋入力!$F$16=\"2:請負業者\",\"②\",\"2\")","v":"2"},null,{"$f":"IF(東洋入力!$F$16=\"1:発注者\",\"①\",\"1\")","v":"1"},null,{"$f":"IF(東洋入力!$F$16=\"2:請負業者\",\"②\",\"2\")","v":"2"},null,{"$f":"IF(東洋入力!$F$18=\"1:請負金額\",\"①\",\"1\")","v":"1"},null,{"$f":"IF(東洋入力!$F$18=\"2:実質賃金\",\"②\",\"2\")","v":"2"}]
[null,null,null,null,null,null,null,null,null,null,null,null,null,null,null,null,null,null,null,null,null,null,null,null,null,null,null,null,null,null,null,null,null,null,null,null,null,null,null,"見積依頼番号：",null,null,null,null,{"$f":"東洋入力!F23","v":0}]
[]
[null,"工種コード・名称（勘定科目）",null,null,null,null,null,null,null,null,null,null,null,null,null,"見 積 金 額",null,null,null,null,null,"値 引 金 額",null,null,null,null,null,"決 定 金 額",null,null,null,null,null,"実 行 予 算 額",null,null,null,null,null,"差 額 (予算－決定）",null,null,null,null,null,null,null," 追加変更決定額概算",null,null,null,null,null,"追加変更見込"]
[null,"　新規",null,"変更　",null,{"$f":"東洋入力!F25","v":0},null,null,null,null,null,null,null,null,null,{"$f":"IF(基本情報!BP35=\"\",基本情報!BP34,基本情報!BP35)","v":0}]
[]
[null,"　原契約",null,null,null,null,null,null,null,null,null,null,null,null,null,{"$f":"IF(基本情報!BP35=\"\",\"\",基本情報!BP34)","v":""}]
[]
[]
[null,null,"(注）"]

{"sheet":"見積内訳書","index":6,"n_rows":1010,"n_cols":86,"rows_kept":1010,"cut":false,"hidden":false,"merged":[[8,50,8,51],[8,52,8,53],[8,54,8,55],[8,64,8,65],[8,56,8,57],[8,58,8,59],[8,60,8,61],[8,62,8,63],[8,48,8,49],[8,34,8,35],[8,36,8,37],[8,38,8,39],[8,40,8,41],[8,24,8,25],[8,7,8,10],[8,42,8,43],[8,44,8,45],[8,46,8,47],[8,2,9,2],[8,1,9,1],[3,1,3,65],[4,1,4,23],[6,1,7,1],[8,12,8,15],[8,18,8,19],[8,20,8,21],[8,22,8,23],[8,16,9,16],[8,26,8,27],[8,28,8,29],[8,30,8,31],[8,32,8,33],[8,17,9,17],[8,3,8,6]]}
[null,null,null,null,null,null,null,null,null,null,null,null,null,null,null,null,null,null,{"$f":"SUM(T11:T1010)","v":1000},null,{"$f":"SUM(V11:V1010)","v":0},null,{"$f":"SUM(X11:X1010)","v":0},null,{"$f":"SUM(Z11:Z1010)","v":0},null,{"$f":"SUM(AB11:AB1010)","v":0},null,{"$f":"SUM(AD11:AD1010)","v":0},null,{"$f":"SUM(AF11:AF1010)","v":0},null,{"$f":"SUM(AH11:AH1010)","v":0},null,{"$f":"SUM(AJ11:AJ1010)","v":0},null,{"$f":"SUM(AL11:AL1010)","v":0},null,{"$f":"SUM(AN11:AN1010)","v":0},null,{"$f":"SUM(AP11:AP1010)","v":0},null,{"$f":"SUM(AR11:AR1010)","v":0},null,{"$f":"SUM(AT11:AT1010)","v":0},null,{"$f":"SUM(AV11:AV1010)","v":0},null,{"$f":"SUM(AX11:AX1010)","v":0},null,{"$f":"SUM(AZ11:AZ1010)","v":0},null,{"$f":"SUM(BB11:BB1010)","v":0},null,{"$f":"SUM(BD11:BD1010)","v":0},null,{"$f":"SUM(BF11:BF1010)","v":0},null,{"$f":"SUM(BH11:BH1010)","v":0},null,{"$f":"SUM(BJ11:BJ1010)","v":0},null,{"$f":"SUM(BL11:BL1010)","v":0},null,{"$f":"SUM(BN11:BN1010)","v":0},null,null,null,null,null,null,null,null,null,null,null,null,null,null,"←東洋モードの状況"]
[null,null,null,null,null,null,null,null,null,null,null,null,null,null,null,null,null,null,{"$f":"IF(W1<>0,1,0)","v":0},null,{"$f":"IF(Y1<>0,1,0)","v":0},null,{"$f":"IF(AA1<>0,1,0)","v":0},null,{"$f":"IF(AC1<>0,1,0)","v":0},null,{"$f":"IF(AE1<>0,1,0)","v":0},null,{"$f":"IF(AG1<>0,1,0)","v":0},null,{"$f":"IF(AI1<>0,1,0)","v":0},null,{"$f":"IF(AK1<>0,1,0)","v":0},null,{"$f":"IF(AM1<>0,1,0)","v":0},null,{"$f":"IF(AO1<>0,1,0)","v":0},null,{"$f":"IF(AQ1<>0,1,0)","v":0},null,{"$f":"IF(AS1<>0,1,0)","v":0},null,{"$f":"IF(AU1<>0,1,0)","v":0},null,{"$f":"IF(AW1<>0,1,0)","v":0},null,{"$f":"IF(AY1<>0,1,0)","v":0},null,{"$f":"IF(BA1<>0,1,0)","v":0},null,{"$f":"IF(BC1<>0,1,0)","v":0},null,{"$f":"IF(BE1<>0,1,0)","v":0},null,{"$f":"IF(BG1<>0,1,0)","v":0},null,{"$f":"IF(BI1<>0,1,0)","v":0},null,{"$f":"IF(BK1<>0,1,0)","v":0},null,0,null,0,null,0]
[null,null,null,null,null,null,null,null,null,null,null,null,null,null,null,null,null,null,1,null,2,null,3,null,4,null,5,null,6,null,7,null,8,null,9,null,10,null,11,null,12,null,13,null,14,null,15,null,16,null,17,null,18,null,19,null,20,null,21,null,22,null,23,null,24]
[null,"見 積 内 訳 書"]
[null,"〔　総括　・　内訳　〕"]
[]
[]
[]
[null,"名称","形状寸法","前　回　見　積（既契約金額）",null,null,null,"今　回　見　積（変更の場合は累計）",null,null,null,"差額","検　　討（実行予算）",null,null,null,"差　　額\n(検討－見積)","備考","2021年　　11月末累計出来高 ",null,"年　　　月末累計出来高 ",null,"年　　　月末累計出来高 ",null,"年　　　月末累計出来高 ",null,"年　　　月末累計出来高 ",null,"年　　　月末累計出来高 ",null,"年　　　月末累計出来高 ",null,"年　　　月末累計出来高 ",null,"年　　　月末累計出来高 ",null,"年　　　月末累計出来高 ",null,"年　　　月末累計出来高 ",null,"年　　　月末累計出来高 ",null,"年　　　月末累計出来高 ",null,"年　　　月末累計出来高 ",null,"年　　　月末累計出来高 ",null,"年　　　月末累計出来高 ",null,"年　　　月末累計出来高 ",null,"年　　　月末累計出来高 ",null,"年　　　月末累計出来高 ",null,"年　　　月末累計出来高 ",null,"年　　　月末累計出来高 ",null,"年　　　月末累計出来高 ",null,"年　　　月末累計出来高 ",null,"年　　　月末累計出来高 ",null,null,null,null,null,null,null,null,null,null,null,null,null,"↓最大ページの抽出",null,null,"↓指定印刷頁Index",null,"↓最大入力月の抽出（調書）"]
[null,null,null,"数量","単位","単価","金額","数量","単位","単価","金額","（今回－前回）","数量","単位","単価","金額",null,null,"数量","金額","数量","金額","数量","金額","数量","金額","数量","金額","数量","金額","数量","金額","数量","金額","数量","金額","数量","金額","数量","金額","数量","金額","数量","金額","数量","金額","数量","金額","数量","金額","数量","金額","数量","金額","数量","金額","数量","金額","数量","金額","数量","金額","数量","金額","数量","金額",null,null,null,null,null,null,null,null,null,null,null,null,null,null,null,"表紙",9999]
["↓ 1page ",null,null,null,null,null,{"$f":"ROUNDDOWN(D11*F11,0)","v":0},null,null,null,{"$f":"ROUNDDOWN(H11*J11,0)","v":0},{"$f":"K11-G11","v":0},null,null,null,{"$f":"ROUNDDOWN(M11*O11,0)","v":0},{"$f":"P11-K11","v":0},null,10,1000,null,null,null,null,null,null,null,null,null,null,null,null,null,null,null,null,null,null,null,null,null,null,null,null,null,null,null,null,null,null,null,null,null,null,null,null,null,null,null,null,null,null,null,null,null,null,null,null,null,null,null,null,null,null,null,null,null,null,1,{"$f":"SUM(K11:K30)","v":0},{"$f":"IF(CB11<>0,CA11,\"\")","v":""},"内訳１",1,1,{"$f":"SUM(T$11:T$1010)","v":1000},{"$f":"IF(CG11<>0,CF11,\"\")","v":1}]
[null,null,null,null,null,null,{"$f":"ROUNDDOWN(D12*F12,0)","v":0},null,null,null,{"$f":"ROUNDDOWN(H12*J12,0)","v":0},{"$f":"K12-G12","v":0},null,null,null,{"$f":"ROUNDDOWN(M12*O12,0)","v":0},{"$f":"P12-K12","v":0},null,null,null,null,null,null,null,null,null,null,null,null,null,null,null,null,null,null,null,null,null,null,null,null,null,null,null,null,null,null,null,null,null,null,null,null,null,null,null,null,null,null,null,null,null,null,null,null,null,null,null,null,null,null,null,null,null,null,null,null,null,2,{"$f":"SUM(K31:K50)","v":300000},{"$f":"IF(CB12<>0,CA12,\"\")","v":2},"内訳２",2,2,{"$f":"SUM(V$11:V$1010)","v":0},{"$f":"IF(CG12<>0,CF12,\"\")","v":""}]
[null,null,null,null,null,null,0,null,null,null,0,0,null,null,null,0,{"$f":"P13-K13","v":0},null,null,null,null,null,null,null,null,null,null,null,null,null,null,null,null,null,null,null,null,null,null,null,null,null,null,null,null,null,null,null,null,null,null,null,null,null,null,null,null,null,null,null,null,null,null,null,null,null,null,null,null,null,null,null,null,null,null,null,null,null,3,{"$f":"SUM(K51:K70)","v":0},"","内訳３",3,3,{"$f":"SUM(X$11:X$1010)","v":0},""]
[null,null,null,null,null,null,0,null,null,null,0,0,null,null,null,0,0,null,null,null,null,null,null,null,null,null,null,null,null,null,null,null,null,null,null,null,null,null,null,null,null,null,null,null,null,null,null,null,null,null,null,null,null,null,null,null,null,null,null,null,null,null,null,null,null,null,null,null,null,null,null,null,null,null,null,null,null,null,4,{"$f":"SUM(K71:K90)","v":0},"","内訳４",4,4,{"$f":"SUM(Z$11:Z$1010)","v":0},""]
[null,null,null,null,null,null,0,null,null,null,0,0,null,null,null,0,0,null,null,null,null,null,null,null,null,null,null,null,null,null,null,null,null,null,null,null,null,null,null,null,null,null,null,null,null,null,null,null,null,null,null,null,null,null,null,null,null,null,null,null,null,null,null,null,null,null,null,null,null,null,null,null,null,null,null,null,null,null,5,{"$f":"SUM(K91:K110)","v":0},"","内訳５",5,5,{"$f":"SUM(AB$11:AB$1010)","v":0},""]
[null,null,null,null,null,null,0,null,null,null,0,0,null,null,null,0,0,null,null,null,null,null,null,null,null,null,null,null,null,null,null,null,null,null,null,null,null,null,null,null,null,null,null,null,null,null,null,null,null,null,null,null,null,null,null,null,null,null,null,null,null,null,null,null,null,null,null,null,null,null,null,null,null,null,null,null,null,null,6,{"$f":"SUM(K111:K130)","v":0},"","内訳６",6,6,{"$f":"SUM(AD$11:AD$1010)","v":0},""]
[null,null,null,null,null,null,0,null,null,null,0,0,null,null,null,0,0,null,null,null,null,null,null,null,null,null,null,null,null,null,null,null,null,null,null,null,null,null,null,null,null,null,null,null,null,null,null,null,null,null,null,null,null,null,null,null,null,null,null,null,null,null,null,null,null,null,null,null,null,null,null,null,null,null,null,null,null,null,7,{"$f":"SUM(K131:K150)","v":0},"","内訳７",7,7,{"$f":"SUM(AF$11:AF$1010)","v":0},""]
[null,null,null,null,null,null,0,null,null,null,0,0,null,null,null,0,0,null,null,null,null,null,null,null,null,null,null,null,null,null,null,null,null,null,null,null,null,null,null,null,null,null,null,null,null,null,null,null,null,null,null,null,null,null,null,null,null,null,null,null,null,null,null,null,null,null,null,null,null,null,null,null,null,null,null,null,null,null,8,{"$f":"SUM(K151:K170)","v":0},"","内訳８",8,8,{"$f":"SUM(AH$11:AH$1010)","v":0},""]
[null,null,null,null,null,null,0,null,null,null,0,0,null,null,null,0,0,null,null,null,null,null,null,null,null,null,null,null,null,null,null,null,null,null,null,null,null,null,null,null,null,null,null,null,null,null,null,null,null,null,null,null,null,null,null,null,null,null,null,null,null,null,null,null,null,null,null,null,null,null,null,null,null,null,null,null,null,null,9,{"$f":"SUM(K171:K190)","v":0},"","内訳９",9,9,{"$f":"SUM(AJ$11:AJ$1010)","v":0},""]
[null,null,null,null,null,null,0,null,null,null,0,0,null,null,null,0,0,null,null,null,null,null,null,null,null,null,null,null,null,null,null,null,null,null,null,null,null,null,null,null,null,null,null,null,null,null,null,null,null,null,null,null,null,null,null,null,null,null,null,null,null,null,null,null,null,null,null,null,null,null,null,null,null,null,null,null,null,null,10,{"$f":"SUM(K191:K210)","v":0},"","内訳１０",10,10,{"$f":"SUM(AL$11:AL$1010)","v":0},""]
[null,null,null,null,null,null,0,null,null,null,0,0,null,null,null,0,0,null,null,null,null,null,null,null,null,null,null,null,null,null,null,null,null,null,null,null,null,null,null,null,null,null,null,null,null,null,null,null,null,null,null,null,null,null,null,null,null,null,null,null,null,null,null,null,null,null,null,null,null,null,null,null,null,null,null,null,null,null,11,{"$f":"SUM(K211:K230)","v":0},"","内訳１１",11,11,{"$f":"SUM(AN$11:AN$1010)","v":0},""]
[null,null,null,null,null,null,0,null,null,null,0,0,null,null,null,0,0,null,null,null,null,null,null,null,null,null,null,null,null,null,null,null,null,null,null,null,null,null,null,null,null,null,null,null,null,null,null,null,null,null,null,null,null,null,null,null,null,null,null,null,null,null,null,null,null,null,null,null,null,null,null,null,null,null,null,null,null,null,12,{"$f":"SUM(K231:K250)","v":0},"","内訳１２",12,12,{"$f":"SUM(AP$11:AP$1010)","v":0},""]
[null,null,null,null,null,null,{"$f":"ROUNDDOWN(D23*F23,0)","v":0},null,null,null,0,0,null,null,null,{"$f":"ROUNDDOWN(M23*O23,0)","v":0},{"$f":"P23-K23","v":0},null,null,null,null,null,null,null,null,null,null,null,null,null,null,null,null,null,null,null,null,null,null,null,null,null,null,null,null,null,null,null,null,null,null,null,null,null,null,null,null,null,null,null,null,null,null,null,null,null,null,null,null,null,null,null,null,null,null,null,null,null,13,{"$f":"SUM(K251:K270)","v":0},"","内訳１３",13,13,{"$f":"SUM(AR$11:AR$1010)","v":0},""]
[null,null,null,null,null,null,0,null,null,null,0,0,null,null,null,0,0,null,null,null,null,null,null,null,null,null,null,null,null,null,null,null,null,null,null,null,null,null,null,null,null,null,null,null,null,null,null,null,null,null,null,null,null,null,null,null,null,null,null,null,null,null,null,null,null,null,null,null,null,null,null,null,null,null,null,null,null,null,14,{"$f":"SUM(K271:K290)","v":0},"","内訳１４",14,14,{"$f":"SUM(AT$11:AT$1010)","v":0},""]
[null,null,null,null,null,null,0,null,null,null,0,0,null,null,null,0,0,null,null,null,null,null,null,null,null,null,null,null,null,null,null,null,null,null,null,null,null,null,null,null,null,null,null,null,null,null,null,null,null,null,null,null,null,null,null,null,null,null,null,null,null,null,null,null,null,null,null,null,null,null,null,null,null,null,null,null,null,null,15,{"$f":"SUM(K291:K310)","v":0},"","内訳１５",15,15,{"$f":"SUM(AV$11:AV$1010)","v":0},""]
[null,null,null,null,null,null,0,null,null,null,0,0,null,null,null,0,0,null,null,null,null,null,null,null,null,null,null,null,null,null,null,null,null,null,null,null,null,null,null,null,null,null,null,null,null,null,null,null,null,null,null,null,null,null,null,null,null,null,null,null,null,null,null,null,null,null,null,null,null,null,null,null,null,null,null,null,null,null,16,{"$f":"SUM(K311:K330)","v":0},"","内訳１６",16,16,{"$f":"SUM(AX$11:AX$1010)","v":0},""]
[null,null,null,null,null,null,0,null,null,null,0,0,null,null,null,0,0,null,null,null,null,null,null,null,null,null,null,null,null,null,null,null,null,null,null,null,null,null,null,null,null,null,null,null,null,null,null,null,null,null,null,null,null,null,null,null,null,null,null,null,null,null,null,null,null,null,null,null,null,null,null,null,null,null,null,null,null,null,17,{"$f":"SUM(K331:K350)","v":0},"","内訳１７",17,17,{"$f":"SUM(AZ$11:AZ$1010)","v":0},""]
[null,null,null,null,null,null,0,null,null,null,0,0,null,null,null,0,0,null,null,null,null,null,null,null,null,null,null,null,null,null,null,null,null,null,null,null,null,null,null,null,null,null,null,null,null,null,null,null,null,null,null,null,null,null,null,null,null,null,null,null,null,null,null,null,null,null,null,null,null,null,null,null,null,null,null,null,null,null,18,{"$f":"SUM(K351:K370)","v":0},"","内訳１８",18,18,{"$f":"SUM(BB$11:BB$1010)","v":0},""]
[null,null,null,null,null,null,0,null,null,null,0,0,null,null,null,0,0,null,null,null,null,null,null,null,null,null,null,null,null,null,null,null,null,null,null,null,null,null,null,null,null,null,null,null,null,null,null,null,null,null,null,null,null,null,null,null,null,null,null,null,null,null,null,null,null,null,null,null,null,null,null,null,null,null,null,null,null,null,19,{"$f":"SUM(K371:K390)","v":0},"","内訳１９",19,19,{"$f":"SUM(BD$11:BD$1010)","v":0},""]
[null,null,null,null,null,null,0,null,null,null,0,0,null,null,null,0,0,null,null,null,null,null,null,null,null,null,null,null,null,null,null,null,null,null,null,null,null,null,null,null,null,null,null,null,null,null,null,null,null,null,null,null,null,null,null,null,null,null,null,null,null,null,null,null,null,null,null,null,null,null,null,null,null,null,null,null,null,null,20,{"$f":"SUM(K391:K410)","v":0},"","内訳２０",20,20,{"$f":"SUM(BF$11:BF$1010)","v":0},""]
["↓ 2page ",null,null,null,null,null,0,null,null,null,0,0,null,null,null,0,0,null,null,null,null,null,null,null,null,null,null,null,null,null,null,null,null,null,null,null,null,null,null,null,null,null,null,null,null,null,null,null,null,null,null,null,null,null,null,null,null,null,null,null,null,null,null,null,null,null,null,null,null,null,null,null,null,null,null,null,null,null,21,{"$f":"SUM(K411:K430)","v":0},"","内訳２１",21,21,{"$f":"SUM(BH$11:BH$1010)","v":0},""]
[null,"2201」",null,null,null,null,0,500,null,600,300000,300000,null,null,null,0,-300000,null,null,null,null,null,null,null,null,null,null,null,null,null,null,null,null,null,null,null,null,null,null,null,null,null,null,null,null,null,null,null,null,null,null,null,null,null,null,null,null,null,null,null,null,null,null,null,null,null,null,null,null,null,null,null,null,null,null,null,null,null,22,{"$f":"SUM(K431:K450)","v":0},"","内訳２２",22,22,{"$f":"SUM(BJ$11:BJ$1010)","v":0},""]
[null,null,null,null,null,null,0,null,null,null,0,0,null,null,null,0,{"$f":"P33-K33","v":0},null,null,null,null,null,null,null,null,null,null,null,null,null,null,null,null,null,null,null,null,null,null,null,null,null,null,null,null,null,null,null,null,null,null,null,null,null,null,null,null,null,null,null,null,null,null,null,null,null,null,null,null,null,null,null,null,null,null,null,null,null,23,{"$f":"SUM(K451:K470)","v":0},"","内訳２３",23,23,{"$f":"SUM(BL$11:BL$1010)","v":0},""]
[null,null,null,null,null,null,0,null,null,null,0,0,null,null,null,0,{"$f":"P34-K34","v":0},null,null,null,null,null,null,null,null,null,null,null,null,null,null,null,null,null,null,null,null,null,null,null,null,null,null,null,null,null,null,null,null,null,null,null,null,null,null,null,null,null,null,null,null,null,null,null,null,null,null,null,null,null,null,null,null,null,null,null,null,null,24,{"$f":"SUM(K471:K490)","v":0},"","内訳２４",24,24,{"$f":"SUM(BN$11:BN$1010)","v":0},""]
[null,null,null,null,null,null,0,null,null,null,0,0,null,null,null,0,0,null,null,null,null,null,null,null,null,null,null,null,null,null,null,null,null,null,null,null,null,null,null,null,null,null,null,null,null,null,null,null,null,null,null,null,null,null,null,null,null,null,null,null,null,null,null,null,null,null,null,null,null,null,null,null,null,null,null,null,null,null,25,{"$f":"SUM(K491:K510)","v":0},"","内訳２５",25,null,"max-month",{"$f":"MAX(CH11:CH34)","v":1}]
[null,null,null,null,null,null,0,null,null,null,0,0,null,null,null,0,0,null,null,null,null,null,null,null,null,null,null,null,null,null,null,null,null,null,null,null,null,null,null,null,null,null,null,null,null,null,null,null,null,null,null,null,null,null,null,null,null,null,null,null,null,null,null,null,null,null,null,null,null,null,null,null,null,null,null,null,null,null,26,{"$f":"SUM(K511:K530)","v":0},"","内訳２６",26]
[null,null,null,null,null,null,0,null,null,null,0,0,null,null,null,0,0,null,null,null,null,null,null,null,null,null,null,null,null,null,null,null,null,null,null,null,null,null,null,null,null,null,null,null,null,null,null,null,null,null,null,null,null,null,null,null,null,null,null,null,null,null,null,null,null,null,null,null,null,null,null,null,null,null,null,null,null,null,27,{"$f":"SUM(K531:K550)","v":0},"","内訳２７",27]
[null,null,null,null,null,null,0,null,null,null,0,0,null,null,null,0,0,null,null,null,null,null,null,null,null,null,null,null,null,null,null,null,null,null,null,null,null,null,null,null,null,null,null,null,null,null,null,null,null,null,null,null,null,null,null,null,null,null,null,null,null,null,null,null,null,null,null,null,null,null,null,null,null,null,null,null,null,null,28,{"$f":"SUM(K551:K570)","v":0},"","内訳２８",28]
[null,null,null,null,null,null,0,null,null,null,0,0,null,null,null,0,0,null,null,null,null,null,null,null,null,null,null,null,null,null,null,null,null,null,null,null,null,null,null,null,null,null,null,null,null,null,null,null,null,null,null,null,null,null,null,null,null,null,null,null,null,null,null,null,null,null,null,null,null,null,null,null,null,null,null,null,null,null,29,{"$f":"SUM(K571:K590)","v":0},"","内訳２９",29]
[null,null,null,null,null,null,0,null,null,null,0,0,null,null,null,0,0,null,null,null,null,null,null,null,null,null,null,null,null,null,null,null,null,null,null,null,null,null,null,null,null,null,null,null,null,null,null,null,null,null,null,null,null,null,null,null,null,null,null,null,null,null,null,null,null,null,null,null,null,null,null,null,null,null,null,null,null,null,30,{"$f":"SUM(K591:K610)","v":0},"","内訳３０",30]
[null,null,null,null,null,null,0,null,null,null,0,0,null,null,null,0,0,null,null,null,null,null,null,null,null,null,null,null,null,null,null,null,null,null,null,null,null,null,null,null,null,null,null,null,null,null,null,null,null,null,null,null,null,null,null,null,null,null,null,null,null,null,null,null,null,null,null,null,null,null,null,null,null,null,null,null,null,null,31,{"$f":"SUM(K611:K630)","v":0},"","内訳３１",31]
[null,null,null,null,null,null,0,null,null,null,0,0,null,null,null,0,0,null,null,null,null,null,null,null,null,null,null,null,null,null,null,null,null,null,null,null,null,null,null,null,null,null,null,null,null,null,null,null,null,null,null,null,null,null,null,null,null,null,null,null,null,null,null,null,null,null,null,null,null,null,null,null,null,null,null,null,null,null,32,{"$f":"SUM(K631:K650)","v":0},"","内訳３２",32]
[null,null,null,null,null,null,0,null,null,null,0,0,null,null,null,0,0,null,null,null,null,null,null,null,null,null,null,null,null,null,null,null,null,null,null,null,null,null,null,null,null,null,null,null,null,null,null,null,null,null,null,null,null,null,null,null,null,null,null,null,null,null,null,null,null,null,null,null,null,null,null,null,null,null,null,null,null,null,33,{"$f":"SUM(K651:K670)","v":0},"","内訳３３",33]
[null,null,null,null,null,null,0,null,null,null,0,0,null,null,null,0,0,null,null,null,null,null,null,null,null,null,null,null,null,null,null,null,null,null,null,null,null,null,null,null,null,null,null,null,null,null,null,null,null,null,null,null,null,null,null,null,null,null,null,null,null,null,null,null,null,null,null,null,null,null,null,null,null,null,null,null,null,null,34,{"$f":"SUM(K671:K690)","v":0},"","内訳３４",34]
[null,null,null,null,null,null,0,null,null,null,0,0,null,null,null,0,0,null,null,null,null,null,null,null,null,null,null,null,null,null,null,null,null,null,null,null,null,null,null,null,null,null,null,null,null,null,null,null,null,null,null,null,null,null,null,null,null,null,null,null,null,null,null,null,null,null,null,null,null,null,null,null,null,null,null,null,null,null,35,{"$f":"SUM(K691:K710)","v":0},"","内訳３５",35]
[null,null,null,null,null,null,0,null,null,null,0,0,null,null,null,0,0,null,null,null,null,null,null,null,null,null,null,null,null,null,null,null,null,null,null,null,null,null,null,null,null,null,null,null,null,null,null,null,null,null,null,null,null,null,null,null,null,null,null,null,null,null,null,null,null,null,null,null,null,null,null,null,null,null,null,null,null,null,36,{"$f":"SUM(K711:K730)","v":0},"","内訳３６",36]
[null,null,null,null,null,null,0,null,null,null,0,0,null,null,null,0,0,null,null,null,null,null,null,null,null,null,null,null,null,null,null,null,null,null,null,null,null,null,null,null,null,null,null,null,null,null,null,null,null,null,null,null,null,null,null,null,null,null,null,null,null,null,null,null,null,null,null,null,null,null,null,null,null,null,null,null,null,null,37,{"$f":"SUM(K731:K750)","v":0},"","内訳３７",37]
[null,null,null,null,null,null,0,null,null,null,0,0,null,null,null,0,0,null,null,null,null,null,null,null,null,null,null,null,null,null,null,null,null,null,null,null,null,null,null,null,null,null,null,null,null,null,null,null,null,null,null,null,null,null,null,null,null,null,null,null,null,null,null,null,null,null,null,null,null,null,null,null,null,null,null,null,null,null,38,{"$f":"SUM(K751:K770)","v":0},"","内訳３８",38]
[null,null,null,null,null,null,0,null,null,null,0,0,null,null,null,0,0,null,null,null,null,null,null,null,null,null,null,null,null,null,null,null,null,null,null,null,null,null,null,null,null,null,null,null,null,null,null,null,null,null,null,null,null,null,null,null,null,null,null,null,null,null,null,null,null,null,null,null,null,null,null,null,null,null,null,null,null,null,39,{"$f":"SUM(K771:K790)","v":0},"","内訳３９",39]
[null,null,null,null,null,null,0,null,null,null,0,0,null,null,null,0,0,null,null,null,null,null,null,null,null,null,null,null,null,null,null,null,null,null,null,null,null,null,null,null,null,null,null,null,null,null,null,null,null,null,null,null,null,null,null,null,null,null,null,null,null,null,null,null,null,null,null,null,null,null,null,null,null,null,null,null,null,null,40,{"$f":"SUM(K791:K810)","v":0},"","内訳４０",40]
["↓ 3page ",null,null,null,null,null,0,null,null,null,0,0,null,null,null,0,0,null,null,null,null,null,null,null,null,null,null,null,null,null,null,null,null,null,null,null,null,null,null,null,null,null,null,null,null,null,null,null,null,null,null,null,null,null,null,null,null,null,null,null,null,null,null,null,null,null,null,null,null,null,null,null,null,null,null,null,null,null,41,{"$f":"SUM(K811:K830)","v":0},"","内訳４１",41]
[null,null,null,null,null,null,0,null,null,null,0,0,null,null,null,0,0,null,null,null,null,null,null,null,null,null,null,null,null,null,null,null,null,null,null,null,null,null,null,null,null,null,null,null,null,null,null,null,null,null,null,null,null,null,null,null,null,null,null,null,null,null,null,null,null,null,null,null,null,null,null,null,null,null,null,null,null,null,42,{"$f":"SUM(K831:K850)","v":0},"","内訳４２",42]
[null,null,null,null,null,null,0,null,null,null,0,0,null,null,null,0,0,null,null,null,null,null,null,null,null,null,null,null,null,null,null,null,null,null,null,null,null,null,null,null,null,null,null,null,null,null,null,null,null,null,null,null,null,null,null,null,null,null,null,null,null,null,null,null,null,null,null,null,null,null,null,null,null,null,null,null,null,null,43,{"$f":"SUM(K851:K870)","v":0},"","内訳４３",43]
[null,null,null,null,null,null,0,null,null,null,0,0,null,null,null,0,0,null,null,null,null,null,null,null,null,null,null,null,null,null,null,null,null,null,null,null,null,null,null,null,null,null,null,null,null,null,null,null,null,null,null,null,null,null,null,null,null,null,null,null,null,null,null,null,null,null,null,null,null,null,null,null,null,null,null,null,null,null,44,{"$f":"SUM(K871:K890)","v":0},"","内訳４４",44]
[null,null,null,null,null,null,0,null,null,null,0,0,null,null,null,0,0,null,null,null,null,null,null,null,null,null,null,null,null,null,null,null,null,null,null,null,null,null,null,null,null,null,null,null,null,null,null,null,null,null,null,null,null,null,null,null,null,null,null,null,null,null,null,null,null,null,null,null,null,null,null,null,null,null,null,null,null,null,45,{"$f":"SUM(K891:K910)","v":0},"","内訳４５",45]
[null,null,null,null,null,null,0,null,null,null,0,0,null,null,null,0,0,null,null,null,null,null,null,null,null,null,null,null,null,null,null,null,null,null,null,null,null,null,null,null,null,null,null,null,null,null,null,null,null,null,null,null,null,null,null,null,null,null,null,null,null,null,null,null,null,null,null,null,null,null,null,null,null,null,null,null,null,null,46,{"$f":"SUM(K911:K930)","v":0},"","内訳４６",46]
[null,null,null,null,null,null,0,null,null,null,0,0,null,null,null,0,0,null,null,null,null,null,null,null,null,null,null,null,null,null,null,null,null,null,null,null,null,null,null,null,null,null,null,null,null,null,null,null,null,null,null,null,null,null,null,null,null,null,null,null,null,null,null,null,null,null,null,null,null,null,null,null,null,null,null,null,null,null,47,{"$f":"SUM(K931:K950)","v":0},"","内訳４７",47]
[null,null,null,null,null,null,0,null,null,null,0,0,null,null,null,0,0,null,null,null,null,null,null,null,null,null,null,null,null,null,null,null,null,null,null,null,null,null,null,null,null,null,null,null,null,null,null,null,null,null,null,null,null,null,null,null,null,null,null,null,null,null,null,null,null,null,null,null,null,null,null,null,null,null,null,null,null,null,48,{"$f":"SUM(K951:K970)","v":0},"","内訳４８",48]
[null,null,null,null,null,null,0,null,null,null,0,0,null,null,null,0,0,null,null,null,null,null,null,null,null,null,null,null,null,null,null,null,null,null,null,null,null,null,null,null,null,null,null,null,null,null,null,null,null,null,null,null,null,null,null,null,null,null,null,null,null,null,null,null,null,null,null,null,null,null,null,null,null,null,null,null,null,null,49,{"$f":"SUM(K971:K990)","v":0},"","内訳４９",49]
[null,null,null,null,null,null,0,null,null,null,0,0,null,null,null,0,0,null,null,null,null,null,null,null,null,null,null,null,null,null,null,null,null,null,null,null,null,null,null,null,null,null,null,null,null,null,null,null,null,null,null,null,null,null,null,null,null,null,null,null,null,null,null,null,null,null,null,null,null,null,null,null,null,null,null,null,null,null,50,{"$f":"SUM(K991:K1010)","v":0},"","内訳５０",50]
[null,null,null,null,null,null,0,null,null,null,0,0,null,null,null,0,0,null,null,null,null,null,null,null,null,null,null,null,null,null,null,null,null,null,null,null,null,null,null,null,null,null,null,null,null,null,null,null,null,null,null,null,null,null,null,null,null,null,null,null,null,null,null,null,null,null,null,null,null,null,null,null,null,null,null,null,null,null,null,"max-page:",{"$f":"MAX(CC11:CC60)","v":2},"page_select:",{"$f":"VLOOKUP(#REF!,見積内訳書!CD10:CE60,2,FALSE)","v":{"$error":"#REF!"}}]
[null,null,null,null,null,null,0,null,null,null,0,0,null,null,null,0,0]
[null,null,null,null,null,null,0,null,null,null,0,0,null,null,null,0,0]
[null,null,null,null,null,null,0,null,null,null,0,0,null,null,null,0,0]
[null,null,null,null,null,null,0,null,null,null,0,0,null,null,null,0,0]
[null,null,null,null,null,null,0,null,null,null,0,0,null,null,null,0,0]
[null,null,null,null,null,null,0,null,null,null,0,0,null,null,null,0,0]
[null,null,null,null,null,null,0,null,null,null,0,0,null,null,null,0,0]
[null,null,null,null,null,null,0,null,null,null,0,0,null,null,null,0,0]
[null,null,null,null,null,null,0,null,null,null,0,0,null,null,null,0,0]
["↓ 4page ",null,null,null,null,null,0,null,null,null,0,0,null,null,null,0,0]
[null,null,null,null,null,null,0,null,null,null,0,0,null,null,null,0,0]
[null,null,null,null,null,null,0,null,null,null,0,0,null,null,null,0,0]
[null,null,null,null,null,null,0,null,null,null,0,0,null,null,null,0,0]
[null,null,null,null,null,null,0,null,null,null,0,0,null,null,null,0,0]
[null,null,null,null,null,null,{"$f":"ROUNDDOWN(D76*F76,0)","v":0},null,null,null,{"$f":"ROUNDDOWN(H76*J76,0)","v":0},{"$f":"K76-G76","v":0},null,null,null,{"$f":"ROUNDDOWN(M76*O76,0)","v":0},{"$f":"P76-K76","v":0}]
[null,null,null,null,null,null,0,null,null,null,0,0,null,null,null,0,0]
[null,null,null,null,null,null,0,null,null,null,0,0,null,null,null,0,0]
[null,null,null,null,null,null,0,null,null,null,0,0,null,null,null,0,0]
[null,null,null,null,null,null,0,null,null,null,0,0,null,null,null,0,0]
[null,null,null,null,null,null,0,null,null,null,0,0,null,null,null,0,0]
[null,null,null,null,null,null,0,null,null,null,0,0,null,null,null,0,0]
[null,null,null,null,null,null,0,null,null,null,0,0,null,null,null,0,0]
[null,null,null,null,null,null,0,null,null,null,0,0,null,null,null,0,0]
[null,null,null,null,null,null,0,null,null,null,0,0,null,null,null,0,0]
[null,null,null,null,null,null,0,null,null,null,0,0,null,null,null,0,0]
[null,null,null,null,null,null,0,null,null,null,0,0,null,null,null,0,0]
[null,null,null,null,null,null,0,null,null,null,0,0,null,null,null,0,0]
[null,null,null,null,null,null,0,null,null,null,0,0,null,null,null,0,0]
[null,null,null,null,null,null,0,null,null,null,0,0,null,null,null,0,0]
["↓ 5page ",null,null,null,null,null,0,null,null,null,0,0,null,null,null,0,0]
[null,null,null,null,null,null,0,null,null,null,0,0,null,null,null,0,0]
[null,null,null,null,null,null,0,null,null,null,0,0,null,null,null,0,0]
[null,null,null,null,null,null,0,null,null,null,0,0,null,null,null,0,0]
[null,null,null,null,null,null,0,null,null,null,0,0,null,null,null,0,0]
[null,null,null,null,null,null,0,null,null,null,0,0,null,null,null,0,0]
[null,null,null,null,null,null,0,null,null,null,0,0,null,null,null,0,0]
[null,null,null,null,null,null,0,null,null,null,0,0,null,null,null,0,0]
[null,null,null,null,null,null,0,null,null,null,0,0,null,null,null,0,0]
[null,null,null,null,null,null,0,null,null,null,0,0,null,null,null,0,0]
[null,null,null,null,null,null,0,null,null,null,0,0,null,null,null,0,0]
[null,null,null,null,null,null,0,null,null,null,0,0,null,null,null,0,0]
[null,null,null,null,null,null,0,null,null,null,0,0,null,null,null,0,0]
[null,null,null,null,null,null,0,null,null,null,0,0,null,null,null,0,0]
[null,null,null,null,null,null,0,null,null,null,0,0,null,null,null,0,0]
[null,null,null,null,null,null,0,null,null,null,0,0,null,null,null,0,0]
[null,null,null,null,null,null,0,null,null,null,0,0,null,null,null,0,0]
[null,null,null,null,null,null,0,null,null,null,0,0,null,null,null,0,0]
[null,null,null,null,null,null,0,null,null,null,0,0,null,null,null,0,0]
[null,null,null,null,null,null,0,null,null,null,0,0,null,null,null,0,0]
["↓ 6page ",null,null,null,null,null,0,null,null,null,0,0,null,null,null,0,0]
[null,null,null,null,null,null,0,null,null,null,0,0,null,null,null,0,0]
[null,null,null,null,null,null,0,null,null,null,0,0,null,null,null,0,0]
[null,null,null,null,null,null,0,null,null,null,0,0,null,null,null,0,0]
[null,null,null,null,null,null,0,null,null,null,0,0,null,null,null,0,0]
[null,null,null,null,null,null,0,null,null,null,0,0,null,null,null,0,0]
[null,null,null,null,null,null,0,null,null,null,0,0,null,null,null,0,0]
[null,null,null,null,null,null,0,null,null,null,0,0,null,null,null,0,0]
[null,null,null,null,null,null,0,null,null,null,0,0,null,null,null,0,0]
[null,null,null,null,null,null,0,null,null,null,0,0,null,null,null,0,0]
[null,null,null,null,null,null,0,null,null,null,0,0,null,null,null,0,0]
[null,null,null,null,null,null,0,null,null,null,0,0,null,null,null,0,0]
[null,null,null,null,null,null,0,null,null,null,0,0,null,null,null,0,0]
[null,null,null,null,null,null,0,null,null,null,0,0,null,null,null,0,0]
[null,null,null,null,null,null,0,null,null,null,0,0,null,null,null,0,0]
[null,null,null,null,null,null,0,null,null,null,0,0,null,null,null,0,0]
[null,null,null,null,null,null,0,null,null,null,0,0,null,null,null,0,0]
[null,null,null,null,null,null,0,null,null,null,0,0,null,null,null,0,0]
[null,null,null,null,null,null,0,null,null,null,0,0,null,null,null,0,0]
[null,null,null,null,null,null,0,null,null,null,0,0,null,null,null,0,0]
["↓ 7page ",null,null,null,null,null,0,null,null,null,0,0,null,null,null,0,0]
[null,null,null,null,null,null,0,null,null,null,0,0,null,null,null,0,0]
[null,null,null,null,null,null,0,null,null,null,0,0,null,null,null,0,0]
[null,null,null,null,null,null,0,null,null,null,0,0,null,null,null,0,0]
[null,null,null,null,null,null,0,null,null,null,0,0,null,null,null,0,0]
[null,null,null,null,null,null,0,null,null,null,0,0,null,null,null,0,0]
[null,null,null,null,null,null,0,null,null,null,0,0,null,null,null,0,0]
[null,null,null,null,null,null,0,null,null,null,0,0,null,null,null,0,0]
[null,null,null,null,null,null,0,null,null,null,0,0,null,null,null,0,0]
[null,null,null,null,null,null,{"$f":"ROUNDDOWN(D140*F140,0)","v":0},null,null,null,{"$f":"ROUNDDOWN(H140*J140,0)","v":0},{"$f":"K140-G140","v":0},null,null,null,{"$f":"ROUNDDOWN(M140*O140,0)","v":0},{"$f":"P140-K140","v":0}]
[null,null,null,null,null,null,0,null,null,null,0,0,null,null,null,0,0]
[null,null,null,null,null,null,0,null,null,null,0,0,null,null,null,0,0]
[null,null,null,null,null,null,0,null,null,null,0,0,null,null,null,0,0]
[null,null,null,null,null,null,0,null,null,null,0,0,null,null,null,0,0]
[null,null,null,null,null,null,0,null,null,null,0,0,null,null,null,0,0]
[null,null,null,null,null,null,0,null,null,null,0,0,null,null,null,0,0]
[null,null,null,null,null,null,0,null,null,null,0,0,null,null,null,0,0]
[null,null,null,null,null,null,0,null,null,null,0,0,null,null,null,0,0]
[null,null,null,null,null,null,0,null,null,null,0,0,null,null,null,0,0]
[null,null,null,null,null,null,0,null,null,null,0,0,null,null,null,0,0]
["↓ 8page ",null,null,null,null,null,0,null,null,null,0,0,null,null,null,0,0]
[null,null,null,null,null,null,0,null,null,null,0,0,null,null,null,0,0]
[null,null,null,null,null,null,0,null,null,null,0,0,null,null,null,0,0]
[null,null,null,null,null,null,0,null,null,null,0,0,null,null,null,0,0]
[null,null,null,null,null,null,0,null,null,null,0,0,null,null,null,0,0]
[null,null,null,null,null,null,0,null,null,null,0,0,null,null,null,0,0]
[null,null,null,null,null,null,0,null,null,null,0,0,null,null,null,0,0]
[null,null,null,null,null,null,0,null,null,null,0,0,null,null,null,0,0]
[null,null,null,null,null,null,0,null,null,null,0,0,null,null,null,0,0]
[null,null,null,null,null,null,0,null,null,null,0,0,null,null,null,0,0]
[null,null,null,null,null,null,0,null,null,null,0,0,null,null,null,0,0]
[null,null,null,null,null,null,0,null,null,null,0,0,null,null,null,0,0]
[null,null,null,null,null,null,0,null,null,null,0,0,null,null,null,0,0]
[null,null,null,null,null,null,0,null,null,null,0,0,null,null,null,0,0]
[null,null,null,null,null,null,0,null,null,null,0,0,null,null,null,0,0]
[null,null,null,null,null,null,0,null,null,null,0,0,null,null,null,0,0]
[null,null,null,null,null,null,0,null,null,null,0,0,null,null,null,0,0]
[null,null,null,null,null,null,0,null,null,null,0,0,null,null,null,0,0]
[null,null,null,null,null,null,0,null,null,null,0,0,null,null,null,0,0]
[null,null,null,null,null,null,0,null,null,null,0,0,null,null,null,0,0]
["↓ 9page ",null,null,null,null,null,0,null,null,null,0,0,null,null,null,0,0]
[null,null,null,null,null,null,0,null,null,null,0,0,null,null,null,0,0]
[null,null,null,null,null,null,0,null,null,null,0,0,null,null,null,0,0]
[null,null,null,null,null,null,0,null,null,null,0,0,null,null,null,0,0]
[null,null,null,null,null,null,0,null,null,null,0,0,null,null,null,0,0]
[null,null,null,null,null,null,0,null,null,null,0,0,null,null,null,0,0]
[null,null,null,null,null,null,0,null,null,null,0,0,null,null,null,0,0]
[null,null,null,null,null,null,0,null,null,null,0,0,null,null,null,0,0]
[null,null,null,null,null,null,0,null,null,null,0,0,null,null,null,0,0]
[null,null,null,null,null,null,0,null,null,null,0,0,null,null,null,0,0]
[null,null,null,null,null,null,0,null,null,null,0,0,null,null,null,0,0]
[null,null,null,null,null,null,0,null,null,null,0,0,null,null,null,0,0]
[null,null,null,null,null,null,0,null,null,null,0,0,null,null,null,0,0]
[null,null,null,null,null,null,0,null,null,null,0,0,null,null,null,0,0]
[null,null,null,null,null,null,0,null,null,null,0,0,null,null,null,0,0]
[null,null,null,null,null,null,0,null,null,null,0,0,null,null,null,0,0]
[null,null,null,null,null,null,0,null,null,null,0,0,null,null,null,0,0]
[null,null,null,null,null,null,0,null,null,null,0,0,null,null,null,0,0]
[null,null,null,null,null,null,0,null,null,null,0,0,null,null,null,0,0]
[null,null,null,null,null,null,0,null,null,null,0,0,null,null,null,0,0]
["↓ 10page ",null,null,null,null,null,0,null,null,null,0,0,null,null,null,0,0]
[null,null,null,null,null,null,0,null,null,null,0,0,null,null,null,0,0]
[null,null,null,null,null,null,0,null,null,null,0,0,null,null,null,0,0]
[null,null,null,null,null,null,0,null,null,null,0,0,null,null,null,0,0]
[null,null,null,null,null,null,0,null,null,null,0,0,null,null,null,0,0]
[null,null,null,null,null,null,0,null,null,null,0,0,null,null,null,0,0]
[null,null,null,null,null,null,0,null,null,null,0,0,null,null,null,0,0]
[null,null,null,null,null,null,0,null,null,null,0,0,null,null,null,0,0]
[null,null,null,null,null,null,0,null,null,null,0,0,null,null,null,0,0]
[null,null,null,null,null,null,0,null,null,null,0,0,null,null,null,0,0]
[null,null,null,null,null,null,0,null,null,null,0,0,null,null,null,0,0]
[null,null,null,null,null,null,0,null,null,null,0,0,null,null,null,0,0]
[null,null,null,null,null,null,0,null,null,null,0,0,null,null,null,0,0]
[null,null,null,null,null,null,{"$f":"ROUNDDOWN(D204*F204,0)","v":0},null,null,null,{"$f":"ROUNDDOWN(H204*J204,0)","v":0},{"$f":"K204-G204","v":0},null,null,null,{"$f":"ROUNDDOWN(M204*O204,0)","v":0},{"$f":"P204-K204","v":0}]
[null,null,null,null,null,null,0,null,null,null,0,0,null,null,null,0,0]
[null,null,null,null,null,null,0,null,null,null,0,0,null,null,null,0,0]
[null,null,null,null,null,null,0,null,null,null,0,0,null,null,null,0,0]
[null,null,null,null,null,null,0,null,null,null,0,0,null,null,null,0,0]
[null,null,null,null,null,null,0,null,null,null,0,0,null,null,null,0,0]
[null,null,null,null,null,null,0,null,null,null,0,0,null,null,null,0,0]
["↓ 11page ",null,null,null,null,null,0,null,null,null,0,0,null,null,null,0,0]
[null,null,null,null,null,null,0,null,null,null,0,0,null,null,null,0,0]
[null,null,null,null,null,null,0,null,null,null,0,0,null,null,null,0,0]
[null,null,null,null,null,null,0,null,null,null,0,0,null,null,null,0,0]
[null,null,null,null,null,null,0,null,null,null,0,0,null,null,null,0,0]
[null,null,null,null,null,null,0,null,null,null,0,0,null,null,null,0,0]
[null,null,null,null,null,null,0,null,null,null,0,0,null,null,null,0,0]
[null,null,null,null,null,null,0,null,null,null,0,0,null,null,null,0,0]
[null,null,null,null,null,null,0,null,null,null,0,0,null,null,null,0,0]
[null,null,null,null,null,null,0,null,null,null,0,0,null,null,null,0,0]
[null,null,null,null,null,null,0,null,null,null,0,0,null,null,null,0,0]
[null,null,null,null,null,null,0,null,null,null,0,0,null,null,null,0,0]
[null,null,null,null,null,null,0,null,null,null,0,0,null,null,null,0,0]
[null,null,null,null,null,null,0,null,null,null,0,0,null,null,null,0,0]
[null,null,null,null,null,null,0,null,null,null,0,0,null,null,null,0,0]
[null,null,null,null,null,null,0,null,null,null,0,0,null,null,null,0,0]
[null,null,null,null,null,null,0,null,null,null,0,0,null,null,null,0,0]
[null,null,null,null,null,null,0,null,null,null,0,0,null,null,null,0,0]
[null,null,null,null,null,null,0,null,null,null,0,0,null,null,null,0,0]
[null,null,null,null,null,null,0,null,null,null,0,0,null,null,null,0,0]
["↓ 12page ",null,null,null,null,null,0,null,null,null,0,0,null,null,null,0,0]
[null,null,null,null,null,null,0,null,null,null,0,0,null,null,null,0,0]
[null,null,null,null,null,null,0,null,null,null,0,0,null,null,null,0,0]
[null,null,null,null,null,null,0,null,null,null,0,0,null,null,null,0,0]
[null,null,null,null,null,null,0,null,null,null,0,0,null,null,null,0,0]
[null,null,null,null,null,null,0,null,null,null,0,0,null,null,null,0,0]
[null,null,null,null,null,null,0,null,null,null,0,0,null,null,null,0,0]
[null,null,null,null,null,null,0,null,null,null,0,0,null,null,null,0,0]
[null,null,null,null,null,null,0,null,null,null,0,0,null,null,null,0,0]
[null,null,null,null,null,null,0,null,null,null,0,0,null,null,null,0,0]
[null,null,null,null,null,null,0,null,null,null,0,0,null,null,null,0,0]
[null,null,null,null,null,null,0,null,null,null,0,0,null,null,null,0,0]
[null,null,null,null,null,null,0,null,null,null,0,0,null,null,null,0,0]
[null,null,null,null,null,null,0,null,null,null,0,0,null,null,null,0,0]
[null,null,null,null,null,null,0,null,null,null,0,0,null,null,null,0,0]
[null,null,null,null,null,null,0,null,null,null,0,0,null,null,null,0,0]
[null,null,null,null,null,null,0,null,null,null,0,0,null,null,null,0,0]
[null,null,null,null,null,null,0,null,null,null,0,0,null,null,null,0,0]
[null,null,null,null,null,null,0,null,null,null,0,0,null,null,null,0,0]
[null,null,null,null,null,null,0,null,null,null,0,0,null,null,null,0,0]
["↓ 13page ",null,null,null,null,null,0,null,null,null,0,0,null,null,null,0,0]
[null,null,null,null,null,null,0,null,null,null,0,0,null,null,null,0,0]
[null,null,null,null,null,null,0,null,null,null,0,0,null,null,null,0,0]
[null,null,null,null,null,null,0,null,null,null,0,0,null,null,null,0,0]
[null,null,null,null,null,null,0,null,null,null,0,0,null,null,null,0,0]
[null,null,null,null,null,null,0,null,null,null,0,0,null,null,null,0,0]
[null,null,null,null,null,null,0,null,null,null,0,0,null,null,null,0,0]
[null,null,null,null,null,null,0,null,null,null,0,0,null,null,null,0,0]
[null,null,null,null,null,null,0,null,null,null,0,0,null,null,null,0,0]
[null,null,null,null,null,null,0,null,null,null,0,0,null,null,null,0,0]
[null,null,null,null,null,null,0,null,null,null,0,0,null,null,null,0,0]
[null,null,null,null,null,null,0,null,null,null,0,0,null,null,null,0,0]
[null,null,null,null,null,null,0,null,null,null,0,0,null,null,null,0,0]
[null,null,null,null,null,null,0,null,null,null,0,0,null,null,null,0,0]
[null,null,null,null,null,null,0,null,null,null,0,0,null,null,null,0,0]
[null,null,null,null,null,null,0,null,null,null,0,0,null,null,null,0,0]
[null,null,null,null,null,null,0,null,null,null,0,0,null,null,null,0,0]
[null,null,null,null,null,null,{"$f":"ROUNDDOWN(D268*F268,0)","v":0},null,null,null,{"$f":"ROUNDDOWN(H268*J268,0)","v":0},{"$f":"K268-G268","v":0},null,null,null,{"$f":"ROUNDDOWN(M268*O268,0)","v":0},{"$f":"P268-K268","v":0}]
[null,null,null,null,null,null,0,null,null,null,0,0,null,null,null,0,0]
[null,null,null,null,null,null,0,null,null,null,0,0,null,null,null,0,0]
["↓ 14page ",null,null,null,null,null,0,null,null,null,0,0,null,null,null,0,0]
[null,null,null,null,null,null,0,null,null,null,0,0,null,null,null,0,0]
[null,null,null,null,null,null,0,null,null,null,0,0,null,null,null,0,0]
[null,null,null,null,null,null,0,null,null,null,0,0,null,null,null,0,0]
[null,null,null,null,null,null,0,null,null,null,0,0,null,null,null,0,0]
[null,null,null,null,null,null,0,null,null,null,0,0,null,null,null,0,0]
[null,null,null,null,null,null,0,null,null,null,0,0,null,null,null,0,0]
[null,null,null,null,null,null,0,null,null,null,0,0,null,null,null,0,0]
[null,null,null,null,null,null,0,null,null,null,0,0,null,null,null,0,0]
[null,null,null,null,null,null,0,null,null,null,0,0,null,null,null,0,0]
[null,null,null,null,null,null,0,null,null,null,0,0,null,null,null,0,0]
[null,null,null,null,null,null,0,null,null,null,0,0,null,null,null,0,0]
[null,null,null,null,null,null,0,null,null,null,0,0,null,null,null,0,0]
[null,null,null,null,null,null,0,null,null,null,0,0,null,null,null,0,0]
[null,null,null,null,null,null,0,null,null,null,0,0,null,null,null,0,0]
[null,null,null,null,null,null,0,null,null,null,0,0,null,null,null,0,0]
[null,null,null,null,null,null,0,null,null,null,0,0,null,null,null,0,0]
[null,null,null,null,null,null,0,null,null,null,0,0,null,null,null,0,0]
[null,null,null,null,null,null,0,null,null,null,0,0,null,null,null,0,0]
[null,null,null,null,null,null,0,null,null,null,0,0,null,null,null,0,0]
["↓ 15page ",null,null,null,null,null,0,null,null,null,0,0,null,null,null,0,0]
[null,null,null,null,null,null,0,null,null,null,0,0,null,null,null,0,0]
[null,null,null,null,null,null,0,null,null,null,0,0,null,null,null,0,0]
[null,null,null,null,null,null,0,null,null,null,0,0,null,null,null,0,0]
[null,null,null,null,null,null,0,null,null,null,0,0,null,null,null,0,0]
[null,null,null,null,null,null,0,null,null,null,0,0,null,null,null,0,0]
[null,null,null,null,null,null,0,null,null,null,0,0,null,null,null,0,0]
[null,null,null,null,null,null,0,null,null,null,0,0,null,null,null,0,0]
[null,null,null,null,null,null,0,null,null,null,0,0,null,null,null,0,0]
[null,null,null,null,null,null,0,null,null,null,0,0,null,null,null,0,0]
[null,null,null,null,null,null,0,null,null,null,0,0,null,null,null,0,0]
[null,null,null,null,null,null,0,null,null,null,0,0,null,null,null,0,0]
[null,null,null,null,null,null,0,null,null,null,0,0,null,null,null,0,0]
[null,null,null,null,null,null,0,null,null,null,0,0,null,null,null,0,0]
[null,null,null,null,null,null,0,null,null,null,0,0,null,null,null,0,0]
[null,null,null,null,null,null,0,null,null,null,0,0,null,null,null,0,0]
[null,null,null,null,null,null,0,null,null,null,0,0,null,null,null,0,0]
[null,null,null,null,null,null,0,null,null,null,0,0,null,null,null,0,0]
[null,null,null,null,null,null,0,null,null,null,0,0,null,null,null,0,0]
[null,null,null,null,null,null,0,null,null,null,0,0,null,null,null,0,0]
["↓ 16page ",null,null,null,null,null,0,null,null,null,0,0,null,null,null,0,0]
[null,null,null,null,null,null,0,null,null,null,0,0,null,null,null,0,0]
[null,null,null,null,null,null,0,null,null,null,0,0,null,null,null,0,0]
[null,null,null,null,null,null,0,null,null,null,0,0,null,null,null,0,0]
[null,null,null,null,null,null,0,null,null,null,0,0,null,null,null,0,0]
[null,null,null,null,null,null,0,null,null,null,0,0,null,null,null,0,0]
[null,null,null,null,null,null,0,null,null,null,0,0,null,null,null,0,0]
[null,null,null,null,null,null,0,null,null,null,0,0,null,null,null,0,0]
[null,null,null,null,null,null,0,null,null,null,0,0,null,null,null,0,0]
[null,null,null,null,null,null,0,null,null,null,0,0,null,null,null,0,0]
[null,null,null,null,null,null,0,null,null,null,0,0,null,null,null,0,0]
[null,null,null,null,null,null,0,null,null,null,0,0,null,null,null,0,0]
[null,null,null,null,null,null,0,null,null,null,0,0,null,null,null,0,0]
[null,null,null,null,null,null,0,null,null,null,0,0,null,null,null,0,0]
[null,null,null,null,null,null,0,null,null,null,0,0,null,null,null,0,0]
[null,null,null,null,null,null,0,null,null,null,0,0,null,null,null,0,0]
[null,null,null,null,null,null,0,null,null,null,0,0,null,null,null,0,0]
[null,null,null,null,null,null,0,null,null,null,0,0,null,null,null,0,0]
[null,null,null,null,null,null,0,null,null,null,0,0,null,null,null,0,0]
[null,null,null,null,null,null,0,null,null,null,0,0,null,null,null,0,0]
["↓ 17page ",null,null,null,null,null,0,null,null,null,0,0,null,null,null,0,0]
[null,null,null,null,null,null,{"$f":"ROUNDDOWN(D332*F332,0)","v":0},null,null,null,{"$f":"ROUNDDOWN(H332*J332,0)","v":0},{"$f":"K332-G332","v":0},null,null,null,{"$f":"ROUNDDOWN(M332*O332,0)","v":0},{"$f":"P332-K332","v":0}]
[null,null,null,null,null,null,0,null,null,null,0,0,null,null,null,0,0]
[null,null,null,null,null,null,0,null,null,null,0,0,null,null,null,0,0]
[null,null,null,null,null,null,0,null,null,null,0,0,null,null,null,0,0]
[null,null,null,null,null,null,0,null,null,null,0,0,null,null,null,0,0]
[null,null,null,null,null,null,0,null,null,null,0,0,null,null,null,0,0]
[null,null,null,null,null,null,0,null,null,null,0,0,null,null,null,0,0]
[null,null,null,null,null,null,0,null,null,null,0,0,null,null,null,0,0]
[null,null,null,null,null,null,0,null,null,null,0,0,null,null,null,0,0]
[null,null,null,null,null,null,0,null,null,null,0,0,null,null,null,0,0]
[null,null,null,null,null,null,0,null,null,null,0,0,null,null,null,0,0]
[null,null,null,null,null,null,0,null,null,null,0,0,null,null,null,0,0]
[null,null,null,null,null,null,0,null,null,null,0,0,null,null,null,0,0]
[null,null,null,null,null,null,0,null,null,null,0,0,null,null,null,0,0]
[null,null,null,null,null,null,0,null,null,null,0,0,null,null,null,0,0]
[null,null,null,null,null,null,0,null,null,null,0,0,null,null,null,0,0]
[null,null,null,null,null,null,0,null,null,null,0,0,null,null,null,0,0]
[null,null,null,null,null,null,0,null,null,null,0,0,null,null,null,0,0]
[null,null,null,null,null,null,0,null,null,null,0,0,null,null,null,0,0]
["↓ 18page ",null,null,null,null,null,0,null,null,null,0,0,null,null,null,0,0]
[null,null,null,null,null,null,0,null,null,null,0,0,null,null,null,0,0]
[null,null,null,null,null,null,0,null,null,null,0,0,null,null,null,0,0]
[null,null,null,null,null,null,0,null,null,null,0,0,null,null,null,0,0]
[null,null,null,null,null,null,0,null,null,null,0,0,null,null,null,0,0]
[null,null,null,null,null,null,0,null,null,null,0,0,null,null,null,0,0]
[null,null,null,null,null,null,0,null,null,null,0,0,null,null,null,0,0]
[null,null,null,null,null,null,0,null,null,null,0,0,null,null,null,0,0]
[null,null,null,null,null,null,0,null,null,null,0,0,null,null,null,0,0]
[null,null,null,null,null,null,0,null,null,null,0,0,null,null,null,0,0]
[null,null,null,null,null,null,0,null,null,null,0,0,null,null,null,0,0]
[null,null,null,null,null,null,0,null,null,null,0,0,null,null,null,0,0]
[null,null,null,null,null,null,0,null,null,null,0,0,null,null,null,0,0]
[null,null,null,null,null,null,0,null,null,null,0,0,null,null,null,0,0]
[null,null,null,null,null,null,0,null,null,null,0,0,null,null,null,0,0]
[null,null,null,null,null,null,0,null,null,null,0,0,null,null,null,0,0]
[null,null,null,null,null,null,0,null,null,null,0,0,null,null,null,0,0]
[null,null,null,null,null,null,0,null,null,null,0,0,null,null,null,0,0]
[null,null,null,null,null,null,0,null,null,null,0,0,null,null,null,0,0]
[null,null,null,null,null,null,0,null,null,null,0,0,null,null,null,0,0]
["↓ 19page ",null,null,null,null,null,0,null,null,null,0,0,null,null,null,0,0]
[null,null,null,null,null,null,0,null,null,null,0,0,null,null,null,0,0]
[null,null,null,null,null,null,0,null,null,null,0,0,null,null,null,0,0]
[null,null,null,null,null,null,0,null,null,null,0,0,null,null,null,0,0]
[null,null,null,null,null,null,0,null,null,null,0,0,null,null,null,0,0]
[null,null,null,null,null,null,0,null,null,null,0,0,null,null,null,0,0]
[null,null,null,null,null,null,0,null,null,null,0,0,null,null,null,0,0]
[null,null,null,null,null,null,0,null,null,null,0,0,null,null,null,0,0]
[null,null,null,null,null,null,0,null,null,null,0,0,null,null,null,0,0]
[null,null,null,null,null,null,0,null,null,null,0,0,null,null,null,0,0]
[null,null,null,null,null,null,0,null,null,null,0,0,null,null,null,0,0]
[null,null,null,null,null,null,0,null,null,null,0,0,null,null,null,0,0]
[null,null,null,null,null,null,0,null,null,null,0,0,null,null,null,0,0]
[null,null,null,null,null,null,0,null,null,null,0,0,null,null,null,0,0]
[null,null,null,null,null,null,0,null,null,null,0,0,null,null,null,0,0]
[null,null,null,null,null,null,0,null,null,null,0,0,null,null,null,0,0]
[null,null,null,null,null,null,0,null,null,null,0,0,null,null,null,0,0]
[null,null,null,null,null,null,0,null,null,null,0,0,null,null,null,0,0]
[null,null,null,null,null,null,0,null,null,null,0,0,null,null,null,0,0]
[null,null,null,null,null,null,0,null,null,null,0,0,null,null,null,0,0]
["↓ 20page ",null,null,null,null,null,0,null,null,null,0,0,null,null,null,0,0]
[null,null,null,null,null,null,0,null,null,null,0,0,null,null,null,0,0]
[null,null,null,null,null,null,0,null,null,null,0,0,null,null,null,0,0]
[null,null,null,null,null,null,0,null,null,null,0,0,null,null,null,0,0]
[null,null,null,null,null,null,0,null,null,null,0,0,null,null,null,0,0]
[null,null,null,null,null,null,{"$f":"ROUNDDOWN(D396*F396,0)","v":0},null,null,null,{"$f":"ROUNDDOWN(H396*J396,0)","v":0},{"$f":"K396-G396","v":0},null,null,null,{"$f":"ROUNDDOWN(M396*O396,0)","v":0},{"$f":"P396-K396","v":0}]
[null,null,null,null,null,null,0,null,null,null,0,0,null,null,null,0,0]
[null,null,null,null,null,null,0,null,null,null,0,0,null,null,null,0,0]
[null,null,null,null,null,null,0,null,null,null,0,0,null,null,null,0,0]
[null,null,null,null,null,null,0,null,null,null,0,0,null,null,null,0,0]
[null,null,null,null,null,null,0,null,null,null,0,0,null,null,null,0,0]
[null,null,null,null,null,null,0,null,null,null,0,0,null,null,null,0,0]
[null,null,null,null,null,null,0,null,null,null,0,0,null,null,null,0,0]
[null,null,null,null,null,null,0,null,null,null,0,0,null,null,null,0,0]
[null,null,null,null,null,null,0,null,null,null,0,0,null,null,null,0,0]
[null,null,null,null,null,null,0,null,null,null,0,0,null,null,null,0,0]
[null,null,null,null,null,null,0,null,null,null,0,0,null,null,null,0,0]
[null,null,null,null,null,null,0,null,null,null,0,0,null,null,null,0,0]
[null,null,null,null,null,null,0,null,null,null,0,0,null,null,null,0,0]
[null,null,null,null,null,null,0,null,null,null,0,0,null,null,null,0,0]
["↓ 21page ",null,null,null,null,null,0,null,null,null,0,0,null,null,null,0,0]
[null,null,null,null,null,null,0,null,null,null,0,0,null,null,null,0,0]
[null,null,null,null,null,null,0,null,null,null,0,0,null,null,null,0,0]
[null,null,null,null,null,null,0,null,null,null,0,0,null,null,null,0,0]
[null,null,null,null,null,null,0,null,null,null,0,0,null,null,null,0,0]
[null,null,null,null,null,null,0,null,null,null,0,0,null,null,null,0,0]
[null,null,null,null,null,null,0,null,null,null,0,0,null,null,null,0,0]
[null,null,null,null,null,null,0,null,null,null,0,0,null,null,null,0,0]
[null,null,null,null,null,null,0,null,null,null,0,0,null,null,null,0,0]
[null,null,null,null,null,null,0,null,null,null,0,0,null,null,null,0,0]
[null,null,null,null,null,null,0,null,null,null,0,0,null,null,null,0,0]
[null,null,null,null,null,null,0,null,null,null,0,0,null,null,null,0,0]
[null,null,null,null,null,null,0,null,null,null,0,0,null,null,null,0,0]
[null,null,null,null,null,null,0,null,null,null,0,0,null,null,null,0,0]
[null,null,null,null,null,null,0,null,null,null,0,0,null,null,null,0,0]
[null,null,null,null,null,null,0,null,null,null,0,0,null,null,null,0,0]
[null,null,null,null,null,null,0,null,null,null,0,0,null,null,null,0,0]
[null,null,null,null,null,null,0,null,null,null,0,0,null,null,null,0,0]
[null,null,null,null,null,null,0,null,null,null,0,0,null,null,null,0,0]
[null,null,null,null,null,null,0,null,null,null,0,0,null,null,null,0,0]
["↓ 22page ",null,null,null,null,null,0,null,null,null,0,0,null,null,null,0,0]
[null,null,null,null,null,null,0,null,null,null,0,0,null,null,null,0,0]
[null,null,null,null,null,null,0,null,null,null,0,0,null,null,null,0,0]
[null,null,null,null,null,null,0,null,null,null,0,0,null,null,null,0,0]
[null,null,null,null,null,null,0,null,null,null,0,0,null,null,null,0,0]
[null,null,null,null,null,null,0,null,null,null,0,0,null,null,null,0,0]
[null,null,null,null,null,null,0,null,null,null,0,0,null,null,null,0,0]
[null,null,null,null,null,null,0,null,null,null,0,0,null,null,null,0,0]
[null,null,null,null,null,null,0,null,null,null,0,0,null,null,null,0,0]
[null,null,null,null,null,null,0,null,null,null,0,0,null,null,null,0,0]
[null,null,null,null,null,null,0,null,null,null,0,0,null,null,null,0,0]
[null,null,null,null,null,null,0,null,null,null,0,0,null,null,null,0,0]
[null,null,null,null,null,null,0,null,null,null,0,0,null,null,null,0,0]
[null,null,null,null,null,null,0,null,null,null,0,0,null,null,null,0,0]
[null,null,null,null,null,null,0,null,null,null,0,0,null,null,null,0,0]
[null,null,null,null,null,null,0,null,null,null,0,0,null,null,null,0,0]
[null,null,null,null,null,null,0,null,null,null,0,0,null,null,null,0,0]
[null,null,null,null,null,null,0,null,null,null,0,0,null,null,null,0,0]
[null,null,null,null,null,null,0,null,null,null,0,0,null,null,null,0,0]
[null,null,null,null,null,null,0,null,null,null,0,0,null,null,null,0,0]
["↓ 23page ",null,null,null,null,null,0,null,null,null,0,0,null,null,null,0,0]
[null,null,null,null,null,null,0,null,null,null,0,0,null,null,null,0,0]
[null,null,null,null,null,null,0,null,null,null,0,0,null,null,null,0,0]
[null,null,null,null,null,null,0,null,null,null,0,0,null,null,null,0,0]
[null,null,null,null,null,null,0,null,null,null,0,0,null,null,null,0,0]
[null,null,null,null,null,null,0,null,null,null,0,0,null,null,null,0,0]
[null,null,null,null,null,null,0,null,null,null,0,0,null,null,null,0,0]
[null,null,null,null,null,null,0,null,null,null,0,0,null,null,null,0,0]
[null,null,null,null,null,null,0,null,null,null,0,0,null,null,null,0,0]
[null,null,null,null,null,null,{"$f":"ROUNDDOWN(D460*F460,0)","v":0},null,null,null,{"$f":"ROUNDDOWN(H460*J460,0)","v":0},{"$f":"K460-G460","v":0},null,null,null,{"$f":"ROUNDDOWN(M460*O460,0)","v":0},{"$f":"P460-K460","v":0}]
[null,null,null,null,null,null,0,null,null,null,0,0,null,null,null,0,0]
[null,null,null,null,null,null,0,null,null,null,0,0,null,null,null,0,0]
[null,null,null,null,null,null,0,null,null,null,0,0,null,null,null,0,0]
[null,null,null,null,null,null,0,null,null,null,0,0,null,null,null,0,0]
[null,null,null,null,null,null,0,null,null,null,0,0,null,null,null,0,0]
[null,null,null,null,null,null,0,null,null,null,0,0,null,null,null,0,0]
[null,null,null,null,null,null,0,null,null,null,0,0,null,null,null,0,0]
[null,null,null,null,null,null,0,null,null,null,0,0,null,null,null,0,0]
[null,null,null,null,null,null,0,null,null,null,0,0,null,null,null,0,0]
[null,null,null,null,null,null,0,null,null,null,0,0,null,null,null,0,0]
["↓ 24page ",null,null,null,null,null,0,null,null,null,0,0,null,null,null,0,0]
[null,null,null,null,null,null,0,null,null,null,0,0,null,null,null,0,0]
[null,null,null,null,null,null,0,null,null,null,0,0,null,null,null,0,0]
[null,null,null,null,null,null,0,null,null,null,0,0,null,null,null,0,0]
[null,null,null,null,null,null,0,null,null,null,0,0,null,null,null,0,0]
[null,null,null,null,null,null,0,null,null,null,0,0,null,null,null,0,0]
[null,null,null,null,null,null,0,null,null,null,0,0,null,null,null,0,0]
[null,null,null,null,null,null,0,null,null,null,0,0,null,null,null,0,0]
[null,null,null,null,null,null,0,null,null,null,0,0,null,null,null,0,0]
[null,null,null,null,null,null,0,null,null,null,0,0,null,null,null,0,0]
[null,null,null,null,null,null,0,null,null,null,0,0,null,null,null,0,0]
[null,null,null,null,null,null,0,null,null,null,0,0,null,null,null,0,0]
[null,null,null,null,null,null,0,null,null,null,0,0,null,null,null,0,0]
[null,null,null,null,null,null,0,null,null,null,0,0,null,null,null,0,0]
[null,null,null,null,null,null,0,null,null,null,0,0,null,null,null,0,0]
[null,null,null,null,null,null,0,null,null,null,0,0,null,null,null,0,0]
[null,null,null,null,null,null,0,null,null,null,0,0,null,null,null,0,0]
[null,null,null,null,null,null,0,null,null,null,0,0,null,null,null,0,0]
[null,null,null,null,null,null,0,null,null,null,0,0,null,null,null,0,0]
[null,null,null,null,null,null,0,null,null,null,0,0,null,null,null,0,0]
["↓ 25page ",null,null,null,null,null,0,null,null,null,0,0,null,null,null,0,0]
[null,null,null,null,null,null,0,null,null,null,0,0,null,null,null,0,0]
[null,null,null,null,null,null,0,null,null,null,0,0,null,null,null,0,0]
[null,null,null,null,null,null,0,null,null,null,0,0,null,null,null,0,0]
[null,null,null,null,null,null,0,null,null,null,0,0,null,null,null,0,0]
[null,null,null,null,null,null,0,null,null,null,0,0,null,null,null,0,0]
[null,null,null,null,null,null,0,null,null,null,0,0,null,null,null,0,0]
[null,null,null,null,null,null,0,null,null,null,0,0,null,null,null,0,0]
[null,null,null,null,null,null,0,null,null,null,0,0,null,null,null,0,0]
[null,null,null,null,null,null,0,null,null,null,0,0,null,null,null,0,0]
[null,null,null,null,null,null,0,null,null,null,0,0,null,null,null,0,0]
[null,null,null,null,null,null,0,null,null,null,0,0,null,null,null,0,0]
[null,null,null,null,null,null,0,null,null,null,0,0,null,null,null,0,0]
[null,null,null,null,null,null,0,null,null,null,0,0,null,null,null,0,0]
[null,null,null,null,null,null,0,null,null,null,0,0,null,null,null,0,0]
[null,null,null,null,null,null,0,null,null,null,0,0,null,null,null,0,0]
[null,null,null,null,null,null,0,null,null,null,0,0,null,null,null,0,0]
[null,null,null,null,null,null,0,null,null,null,0,0,null,null,null,0,0]
[null,null,null,null,null,null,0,null,null,null,0,0,null,null,null,0,0]
[null,null,null,null,null,null,0,null,null,null,0,0,null,null,null,0,0]
["↓ 26page ",null,null,null,null,null,0,null,null,null,0,0,null,null,null,0,0]
[null,null,null,null,null,null,0,null,null,null,0,0,null,null,null,0,0]
[null,null,null,null,null,null,0,null,null,null,0,0,null,null,null,0,0]
[null,null,null,null,null,null,0,null,null,null,0,0,null,null,null,0,0]
[null,null,null,null,null,null,0,null,null,null,0,0,null,null,null,0,0]
[null,null,null,null,null,null,0,null,null,null,0,0,null,null,null,0,0]
[null,null,null,null,null,null,0,null,null,null,0,0,null,null,null,0,0]
[null,null,null,null,null,null,0,null,null,null,0,0,null,null,null,0,0]
[null,null,null,null,null,null,0,null,null,null,0,0,null,null,null,0,0]
[null,null,null,null,null,null,0,null,null,null,0,0,null,null,null,0,0]
[null,null,null,null,null,null,0,null,null,null,0,0,null,null,null,0,0]
[null,null,null,null,null,null,0,null,null,null,0,0,null,null,null,0,0]
[null,null,null,null,null,null,0,null,null,null,0,0,null,null,null,0,0]
[null,null,null,null,null,null,{"$f":"ROUNDDOWN(D524*F524,0)","v":0},null,null,null,{"$f":"ROUNDDOWN(H524*J524,0)","v":0},{"$f":"K524-G524","v":0},null,null,null,{"$f":"ROUNDDOWN(M524*O524,0)","v":0},{"$f":"P524-K524","v":0}]
[null,null,null,null,null,null,0,null,null,null,0,0,null,null,null,0,0]
[null,null,null,null,null,null,0,null,null,null,0,0,null,null,null,0,0]
[null,null,null,null,null,null,0,null,null,null,0,0,null,null,null,0,0]
[null,null,null,null,null,null,0,null,null,null,0,0,null,null,null,0,0]
[null,null,null,null,null,null,0,null,null,null,0,0,null,null,null,0,0]
[null,null,null,null,null,null,0,null,null,null,0,0,null,null,null,0,0]
["↓ 27page ",null,null,null,null,null,0,null,null,null,0,0,null,null,null,0,0]
[null,null,null,null,null,null,0,null,null,null,0,0,null,null,null,0,0]
[null,null,null,null,null,null,0,null,null,null,0,0,null,null,null,0,0]
[null,null,null,null,null,null,0,null,null,null,0,0,null,null,null,0,0]
[null,null,null,null,null,null,0,null,null,null,0,0,null,null,null,0,0]
[null,null,null,null,null,null,0,null,null,null,0,0,null,null,null,0,0]
[null,null,null,null,null,null,0,null,null,null,0,0,null,null,null,0,0]
[null,null,null,null,null,null,0,null,null,null,0,0,null,null,null,0,0]
[null,null,null,null,null,null,0,null,null,null,0,0,null,null,null,0,0]
[null,null,null,null,null,null,0,null,null,null,0,0,null,null,null,0,0]
[null,null,null,null,null,null,0,null,null,null,0,0,null,null,null,0,0]
[null,null,null,null,null,null,0,null,null,null,0,0,null,null,null,0,0]
[null,null,null,null,null,null,0,null,null,null,0,0,null,null,null,0,0]
[null,null,null,null,null,null,0,null,null,null,0,0,null,null,null,0,0]
[null,null,null,null,null,null,0,null,null,null,0,0,null,null,null,0,0]
[null,null,null,null,null,null,0,null,null,null,0,0,null,null,null,0,0]
[null,null,null,null,null,null,0,null,null,null,0,0,null,null,null,0,0]
[null,null,null,null,null,null,0,null,null,null,0,0,null,null,null,0,0]
[null,null,null,null,null,null,0,null,null,null,0,0,null,null,null,0,0]
[null,null,null,null,null,null,0,null,null,null,0,0,null,null,null,0,0]
["↓ 28page ",null,null,null,null,null,0,null,null,null,0,0,null,null,null,0,0]
[null,null,null,null,null,null,0,null,null,null,0,0,null,null,null,0,0]
[null,null,null,null,null,null,0,null,null,null,0,0,null,null,null,0,0]
[null,null,null,null,null,null,0,null,null,null,0,0,null,null,null,0,0]
[null,null,null,null,null,null,0,null,null,null,0,0,null,null,null,0,0]
[null,null,null,null,null,null,0,null,null,null,0,0,null,null,null,0,0]
[null,null,null,null,null,null,0,null,null,null,0,0,null,null,null,0,0]
[null,null,null,null,null,null,0,null,null,null,0,0,null,null,null,0,0]
[null,null,null,null,null,null,0,null,null,null,0,0,null,null,null,0,0]
[null,null,null,null,null,null,0,null,null,null,0,0,null,null,null,0,0]
[null,null,null,null,null,null,0,null,null,null,0,0,null,null,null,0,0]
[null,null,null,null,null,null,0,null,null,null,0,0,null,null,null,0,0]
[null,null,null,null,null,null,0,null,null,null,0,0,null,null,null,0,0]
[null,null,null,null,null,null,0,null,null,null,0,0,null,null,null,0,0]
[null,null,null,null,null,null,0,null,null,null,0,0,null,null,null,0,0]
[null,null,null,null,null,null,0,null,null,null,0,0,null,null,null,0,0]
[null,null,null,null,null,null,0,null,null,null,0,0,null,null,null,0,0]
[null,null,null,null,null,null,0,null,null,null,0,0,null,null,null,0,0]
[null,null,null,null,null,null,0,null,null,null,0,0,null,null,null,0,0]
[null,null,null,null,null,null,0,null,null,null,0,0,null,null,null,0,0]
["↓ 29page ",null,null,null,null,null,0,null,null,null,0,0,null,null,null,0,0]
[null,null,null,null,null,null,0,null,null,null,0,0,null,null,null,0,0]
[null,null,null,null,null,null,0,null,null,null,0,0,null,null,null,0,0]
[null,null,null,null,null,null,0,null,null,null,0,0,null,null,null,0,0]
[null,null,null,null,null,null,0,null,null,null,0,0,null,null,null,0,0]
[null,null,null,null,null,null,0,null,null,null,0,0,null,null,null,0,0]
[null,null,null,null,null,null,0,null,null,null,0,0,null,null,null,0,0]
[null,null,null,null,null,null,0,null,null,null,0,0,null,null,null,0,0]
[null,null,null,null,null,null,0,null,null,null,0,0,null,null,null,0,0]
[null,null,null,null,null,null,0,null,null,null,0,0,null,null,null,0,0]
[null,null,null,null,null,null,0,null,null,null,0,0,null,null,null,0,0]
[null,null,null,null,null,null,0,null,null,null,0,0,null,null,null,0,0]
[null,null,null,null,null,null,0,null,null,null,0,0,null,null,null,0,0]
[null,null,null,null,null,null,0,null,null,null,0,0,null,null,null,0,0]
[null,null,null,null,null,null,0,null,null,null,0,0,null,null,null,0,0]
[null,null,null,null,null,null,0,null,null,null,0,0,null,null,null,0,0]
[null,null,null,null,null,null,0,null,null,null,0,0,null,null,null,0,0]
[null,null,null,null,null,null,{"$f":"ROUNDDOWN(D588*F588,0)","v":0},null,null,null,{"$f":"ROUNDDOWN(H588*J588,0)","v":0},{"$f":"K588-G588","v":0},null,null,null,{"$f":"ROUNDDOWN(M588*O588,0)","v":0},{"$f":"P588-K588","v":0}]
[null,null,null,null,null,null,0,null,null,null,0,0,null,null,null,0,0]
[null,null,null,null,null,null,0,null,null,null,0,0,null,null,null,0,0]
["↓ 30page ",null,null,null,null,null,0,null,null,null,0,0,null,null,null,0,0]
[null,null,null,null,null,null,0,null,null,null,0,0,null,null,null,0,0]
[null,null,null,null,null,null,0,null,null,null,0,0,null,null,null,0,0]
[null,null,null,null,null,null,0,null,null,null,0,0,null,null,null,0,0]
[null,null,null,null,null,null,0,null,null,null,0,0,null,null,null,0,0]
[null,null,null,null,null,null,0,null,null,null,0,0,null,null,null,0,0]
[null,null,null,null,null,null,0,null,null,null,0,0,null,null,null,0,0]
[null,null,null,null,null,null,0,null,null,null,0,0,null,null,null,0,0]
[null,null,null,null,null,null,0,null,null,null,0,0,null,null,null,0,0]
[null,null,null,null,null,null,0,null,null,null,0,0,null,null,null,0,0]
[null,null,null,null,null,null,0,null,null,null,0,0,null,null,null,0,0]
[null,null,null,null,null,null,0,null,null,null,0,0,null,null,null,0,0]
[null,null,null,null,null,null,0,null,null,null,0,0,null,null,null,0,0]
[null,null,null,null,null,null,0,null,null,null,0,0,null,null,null,0,0]
[null,null,null,null,null,null,0,null,null,null,0,0,null,null,null,0,0]
[null,null,null,null,null,null,0,null,null,null,0,0,null,null,null,0,0]
[null,null,null,null,null,null,0,null,null,null,0,0,null,null,null,0,0]
[null,null,null,null,null,null,0,null,null,null,0,0,null,null,null,0,0]
[null,null,null,null,null,null,0,null,null,null,0,0,null,null,null,0,0]
[null,null,null,null,null,null,0,null,null,null,0,0,null,null,null,0,0]
["↓ 31page ",null,null,null,null,null,0,null,null,null,0,0,null,null,null,0,0]
[null,null,null,null,null,null,0,null,null,null,0,0,null,null,null,0,0]
[null,null,null,null,null,null,0,null,null,null,0,0,null,null,null,0,0]
[null,null,null,null,null,null,0,null,null,null,0,0,null,null,null,0,0]
[null,null,null,null,null,null,0,null,null,null,0,0,null,null,null,0,0]
[null,null,null,null,null,null,0,null,null,null,0,0,null,null,null,0,0]
[null,null,null,null,null,null,0,null,null,null,0,0,null,null,null,0,0]
[null,null,null,null,null,null,0,null,null,null,0,0,null,null,null,0,0]
[null,null,null,null,null,null,0,null,null,null,0,0,null,null,null,0,0]
[null,null,null,null,null,null,0,null,null,null,0,0,null,null,null,0,0]
[null,null,null,null,null,null,0,null,null,null,0,0,null,null,null,0,0]
[null,null,null,null,null,null,0,null,null,null,0,0,null,null,null,0,0]
[null,null,null,null,null,null,0,null,null,null,0,0,null,null,null,0,0]
[null,null,null,null,null,null,0,null,null,null,0,0,null,null,null,0,0]
[null,null,null,null,null,null,0,null,null,null,0,0,null,null,null,0,0]
[null,null,null,null,null,null,0,null,null,null,0,0,null,null,null,0,0]
[null,null,null,null,null,null,0,null,null,null,0,0,null,null,null,0,0]
[null,null,null,null,null,null,0,null,null,null,0,0,null,null,null,0,0]
[null,null,null,null,null,null,0,null,null,null,0,0,null,null,null,0,0]
[null,null,null,null,null,null,0,null,null,null,0,0,null,null,null,0,0]
["↓ 32page ",null,null,null,null,null,0,null,null,null,0,0,null,null,null,0,0]
[null,null,null,null,null,null,0,null,null,null,0,0,null,null,null,0,0]
[null,null,null,null,null,null,0,null,null,null,0,0,null,null,null,0,0]
[null,null,null,null,null,null,0,null,null,null,0,0,null,null,null,0,0]
[null,null,null,null,null,null,0,null,null,null,0,0,null,null,null,0,0]
[null,null,null,null,null,null,0,null,null,null,0,0,null,null,null,0,0]
[null,null,null,null,null,null,0,null,null,null,0,0,null,null,null,0,0]
[null,null,null,null,null,null,0,null,null,null,0,0,null,null,null,0,0]
[null,null,null,null,null,null,0,null,null,null,0,0,null,null,null,0,0]
[null,null,null,null,null,null,0,null,null,null,0,0,null,null,null,0,0]
[null,null,null,null,null,null,0,null,null,null,0,0,null,null,null,0,0]
[null,null,null,null,null,null,0,null,null,null,0,0,null,null,null,0,0]
[null,null,null,null,null,null,0,null,null,null,0,0,null,null,null,0,0]
[null,null,null,null,null,null,0,null,null,null,0,0,null,null,null,0,0]
[null,null,null,null,null,null,0,null,null,null,0,0,null,null,null,0,0]
[null,null,null,null,null,null,0,null,null,null,0,0,null,null,null,0,0]
[null,null,null,null,null,null,0,null,null,null,0,0,null,null,null,0,0]
[null,null,null,null,null,null,0,null,null,null,0,0,null,null,null,0,0]
[null,null,null,null,null,null,0,null,null,null,0,0,null,null,null,0,0]
[null,null,null,null,null,null,0,null,null,null,0,0,null,null,null,0,0]
["↓ 33page ",null,null,null,null,null,0,null,null,null,0,0,null,null,null,0,0]
[null,null,null,null,null,null,{"$f":"ROUNDDOWN(D652*F652,0)","v":0},null,null,null,{"$f":"ROUNDDOWN(H652*J652,0)","v":0},{"$f":"K652-G652","v":0},null,null,null,{"$f":"ROUNDDOWN(M652*O652,0)","v":0},{"$f":"P652-K652","v":0}]
[null,null,null,null,null,null,0,null,null,null,0,0,null,null,null,0,0]
[null,null,null,null,null,null,0,null,null,null,0,0,null,null,null,0,0]
[null,null,null,null,null,null,0,null,null,null,0,0,null,null,null,0,0]
[null,null,null,null,null,null,0,null,null,null,0,0,null,null,null,0,0]
[null,null,null,null,null,null,0,null,null,null,0,0,null,null,null,0,0]
[null,null,null,null,null,null,0,null,null,null,0,0,null,null,null,0,0]
[null,null,null,null,null,null,0,null,null,null,0,0,null,null,null,0,0]
[null,null,null,null,null,null,0,null,null,null,0,0,null,null,null,0,0]
[null,null,null,null,null,null,0,null,null,null,0,0,null,null,null,0,0]
[null,null,null,null,null,null,0,null,null,null,0,0,null,null,null,0,0]
[null,null,null,null,null,null,0,null,null,null,0,0,null,null,null,0,0]
[null,null,null,null,null,null,0,null,null,null,0,0,null,null,null,0,0]
[null,null,null,null,null,null,0,null,null,null,0,0,null,null,null,0,0]
[null,null,null,null,null,null,0,null,null,null,0,0,null,null,null,0,0]
[null,null,null,null,null,null,0,null,null,null,0,0,null,null,null,0,0]
[null,null,null,null,null,null,0,null,null,null,0,0,null,null,null,0,0]
[null,null,null,null,null,null,0,null,null,null,0,0,null,null,null,0,0]
[null,null,null,null,null,null,0,null,null,null,0,0,null,null,null,0,0]
["↓ 34page ",null,null,null,null,null,0,null,null,null,0,0,null,null,null,0,0]
[null,null,null,null,null,null,0,null,null,null,0,0,null,null,null,0,0]
[null,null,null,null,null,null,0,null,null,null,0,0,null,null,null,0,0]
[null,null,null,null,null,null,0,null,null,null,0,0,null,null,null,0,0]
[null,null,null,null,null,null,0,null,null,null,0,0,null,null,null,0,0]
[null,null,null,null,null,null,0,null,null,null,0,0,null,null,null,0,0]
[null,null,null,null,null,null,0,null,null,null,0,0,null,null,null,0,0]
[null,null,null,null,null,null,0,null,null,null,0,0,null,null,null,0,0]
[null,null,null,null,null,null,0,null,null,null,0,0,null,null,null,0,0]
[null,null,null,null,null,null,0,null,null,null,0,0,null,null,null,0,0]
[null,null,null,null,null,null,0,null,null,null,0,0,null,null,null,0,0]
[null,null,null,null,null,null,0,null,null,null,0,0,null,null,null,0,0]
[null,null,null,null,null,null,0,null,null,null,0,0,null,null,null,0,0]
[null,null,null,null,null,null,0,null,null,null,0,0,null,null,null,0,0]
[null,null,null,null,null,null,0,null,null,null,0,0,null,null,null,0,0]
[null,null,null,null,null,null,0,null,null,null,0,0,null,null,null,0,0]
[null,null,null,null,null,null,0,null,null,null,0,0,null,null,null,0,0]
[null,null,null,null,null,null,0,null,null,null,0,0,null,null,null,0,0]
[null,null,null,null,null,null,0,null,null,null,0,0,null,null,null,0,0]
[null,null,null,null,null,null,0,null,null,null,0,0,null,null,null,0,0]
["↓ 35page ",null,null,null,null,null,0,null,null,null,0,0,null,null,null,0,0]
[null,null,null,null,null,null,0,null,null,null,0,0,null,null,null,0,0]
[null,null,null,null,null,null,0,null,null,null,0,0,null,null,null,0,0]
[null,null,null,null,null,null,0,null,null,null,0,0,null,null,null,0,0]
[null,null,null,null,null,null,0,null,null,null,0,0,null,null,null,0,0]
[null,null,null,null,null,null,0,null,null,null,0,0,null,null,null,0,0]
[null,null,null,null,null,null,0,null,null,null,0,0,null,null,null,0,0]
[null,null,null,null,null,null,0,null,null,null,0,0,null,null,null,0,0]
[null,null,null,null,null,null,0,null,null,null,0,0,null,null,null,0,0]
[null,null,null,null,null,null,0,null,null,null,0,0,null,null,null,0,0]
[null,null,null,null,null,null,0,null,null,null,0,0,null,null,null,0,0]
[null,null,null,null,null,null,0,null,null,null,0,0,null,null,null,0,0]
[null,null,null,null,null,null,0,null,null,null,0,0,null,null,null,0,0]
[null,null,null,null,null,null,0,null,null,null,0,0,null,null,null,0,0]
[null,null,null,null,null,null,0,null,null,null,0,0,null,null,null,0,0]
[null,null,null,null,null,null,0,null,null,null,0,0,null,null,null,0,0]
[null,null,null,null,null,null,0,null,null,null,0,0,null,null,null,0,0]
[null,null,null,null,null,null,0,null,null,null,0,0,null,null,null,0,0]
[null,null,null,null,null,null,0,null,null,null,0,0,null,null,null,0,0]
[null,null,null,null,null,null,0,null,null,null,0,0,null,null,null,0,0]
["↓ 36page ",null,null,null,null,null,0,null,null,null,0,0,null,null,null,0,0]
[null,null,null,null,null,null,0,null,null,null,0,0,null,null,null,0,0]
[null,null,null,null,null,null,0,null,null,null,0,0,null,null,null,0,0]
[null,null,null,null,null,null,0,null,null,null,0,0,null,null,null,0,0]
[null,null,null,null,null,null,0,null,null,null,0,0,null,null,null,0,0]
[null,null,null,null,null,null,{"$f":"ROUNDDOWN(D716*F716,0)","v":0},null,null,null,{"$f":"ROUNDDOWN(H716*J716,0)","v":0},{"$f":"K716-G716","v":0},null,null,null,{"$f":"ROUNDDOWN(M716*O716,0)","v":0},{"$f":"P716-K716","v":0}]
[null,null,null,null,null,null,0,null,null,null,0,0,null,null,null,0,0]
[null,null,null,null,null,null,0,null,null,null,0,0,null,null,null,0,0]
[null,null,null,null,null,null,0,null,null,null,0,0,null,null,null,0,0]
[null,null,null,null,null,null,0,null,null,null,0,0,null,null,null,0,0]
[null,null,null,null,null,null,0,null,null,null,0,0,null,null,null,0,0]
[null,null,null,null,null,null,0,null,null,null,0,0,null,null,null,0,0]
[null,null,null,null,null,null,0,null,null,null,0,0,null,null,null,0,0]
[null,null,null,null,null,null,0,null,null,null,0,0,null,null,null,0,0]
[null,null,null,null,null,null,0,null,null,null,0,0,null,null,null,0,0]
[null,null,null,null,null,null,0,null,null,null,0,0,null,null,null,0,0]
[null,null,null,null,null,null,0,null,null,null,0,0,null,null,null,0,0]
[null,null,null,null,null,null,0,null,null,null,0,0,null,null,null,0,0]
[null,null,null,null,null,null,0,null,null,null,0,0,null,null,null,0,0]
[null,null,null,null,null,null,0,null,null,null,0,0,null,null,null,0,0]
["↓ 37page ",null,null,null,null,null,0,null,null,null,0,0,null,null,null,0,0]
[null,null,null,null,null,null,0,null,null,null,0,0,null,null,null,0,0]
[null,null,null,null,null,null,0,null,null,null,0,0,null,null,null,0,0]
[null,null,null,null,null,null,0,null,null,null,0,0,null,null,null,0,0]
[null,null,null,null,null,null,0,null,null,null,0,0,null,null,null,0,0]
[null,null,null,null,null,null,0,null,null,null,0,0,null,null,null,0,0]
[null,null,null,null,null,null,0,null,null,null,0,0,null,null,null,0,0]
[null,null,null,null,null,null,0,null,null,null,0,0,null,null,null,0,0]
[null,null,null,null,null,null,0,null,null,null,0,0,null,null,null,0,0]
[null,null,null,null,null,null,0,null,null,null,0,0,null,null,null,0,0]
[null,null,null,null,null,null,0,null,null,null,0,0,null,null,null,0,0]
[null,null,null,null,null,null,0,null,null,null,0,0,null,null,null,0,0]
[null,null,null,null,null,null,0,null,null,null,0,0,null,null,null,0,0]
[null,null,null,null,null,null,0,null,null,null,0,0,null,null,null,0,0]
[null,null,null,null,null,null,0,null,null,null,0,0,null,null,null,0,0]
[null,null,null,null,null,null,0,null,null,null,0,0,null,null,null,0,0]
[null,null,null,null,null,null,0,null,null,null,0,0,null,null,null,0,0]
[null,null,null,null,null,null,0,null,null,null,0,0,null,null,null,0,0]
[null,null,null,null,null,null,0,null,null,null,0,0,null,null,null,0,0]
[null,null,null,null,null,null,0,null,null,null,0,0,null,null,null,0,0]
["↓ 38page ",null,null,null,null,null,0,null,null,null,0,0,null,null,null,0,0]
[null,null,null,null,null,null,0,null,null,null,0,0,null,null,null,0,0]
[null,null,null,null,null,null,0,null,null,null,0,0,null,null,null,0,0]
[null,null,null,null,null,null,0,null,null,null,0,0,null,null,null,0,0]
[null,null,null,null,null,null,0,null,null,null,0,0,null,null,null,0,0]
[null,null,null,null,null,null,0,null,null,null,0,0,null,null,null,0,0]
[null,null,null,null,null,null,0,null,null,null,0,0,null,null,null,0,0]
[null,null,null,null,null,null,0,null,null,null,0,0,null,null,null,0,0]
[null,null,null,null,null,null,0,null,null,null,0,0,null,null,null,0,0]
[null,null,null,null,null,null,0,null,null,null,0,0,null,null,null,0,0]
[null,null,null,null,null,null,0,null,null,null,0,0,null,null,null,0,0]
[null,null,null,null,null,null,0,null,null,null,0,0,null,null,null,0,0]
[null,null,null,null,null,null,0,null,null,null,0,0,null,null,null,0,0]
[null,null,null,null,null,null,0,null,null,null,0,0,null,null,null,0,0]
[null,null,null,null,null,null,0,null,null,null,0,0,null,null,null,0,0]
[null,null,null,null,null,null,0,null,null,null,0,0,null,null,null,0,0]
[null,null,null,null,null,null,0,null,null,null,0,0,null,null,null,0,0]
[null,null,null,null,null,null,0,null,null,null,0,0,null,null,null,0,0]
[null,null,null,null,null,null,0,null,null,null,0,0,null,null,null,0,0]
[null,null,null,null,null,null,0,null,null,null,0,0,null,null,null,0,0]
["↓ 39page ",null,null,null,null,null,0,null,null,null,0,0,null,null,null,0,0]
[null,null,null,null,null,null,0,null,null,null,0,0,null,null,null,0,0]
[null,null,null,null,null,null,0,null,null,null,0,0,null,null,null,0,0]
[null,null,null,null,null,null,0,null,null,null,0,0,null,null,null,0,0]
[null,null,null,null,null,null,0,null,null,null,0,0,null,null,null,0,0]
[null,null,null,null,null,null,0,null,null,null,0,0,null,null,null,0,0]
[null,null,null,null,null,null,0,null,null,null,0,0,null,null,null,0,0]
[null,null,null,null,null,null,0,null,null,null,0,0,null,null,null,0,0]
[null,null,null,null,null,null,0,null,null,null,0,0,null,null,null,0,0]
[null,null,null,null,null,null,{"$f":"ROUNDDOWN(D780*F780,0)","v":0},null,null,null,{"$f":"ROUNDDOWN(H780*J780,0)","v":0},{"$f":"K780-G780","v":0},null,null,null,{"$f":"ROUNDDOWN(M780*O780,0)","v":0},{"$f":"P780-K780","v":0}]
[null,null,null,null,null,null,0,null,null,null,0,0,null,null,null,0,0]
[null,null,null,null,null,null,0,null,null,null,0,0,null,null,null,0,0]
[null,null,null,null,null,null,0,null,null,null,0,0,null,null,null,0,0]
[null,null,null,null,null,null,0,null,null,null,0,0,null,null,null,0,0]
[null,null,null,null,null,null,0,null,null,null,0,0,null,null,null,0,0]
[null,null,null,null,null,null,0,null,null,null,0,0,null,null,null,0,0]
[null,null,null,null,null,null,0,null,null,null,0,0,null,null,null,0,0]
[null,null,null,null,null,null,0,null,null,null,0,0,null,null,null,0,0]
[null,null,null,null,null,null,0,null,null,null,0,0,null,null,null,0,0]
[null,null,null,null,null,null,0,null,null,null,0,0,null,null,null,0,0]
["↓ 40page ",null,null,null,null,null,0,null,null,null,0,0,null,null,null,0,0]
[null,null,null,null,null,null,0,null,null,null,0,0,null,null,null,0,0]
[null,null,null,null,null,null,0,null,null,null,0,0,null,null,null,0,0]
[null,null,null,null,null,null,0,null,null,null,0,0,null,null,null,0,0]
[null,null,null,null,null,null,0,null,null,null,0,0,null,null,null,0,0]
[null,null,null,null,null,null,0,null,null,null,0,0,null,null,null,0,0]
[null,null,null,null,null,null,0,null,null,null,0,0,null,null,null,0,0]
[null,null,null,null,null,null,0,null,null,null,0,0,null,null,null,0,0]
[null,null,null,null,null,null,0,null,null,null,0,0,null,null,null,0,0]
[null,null,null,null,null,null,0,null,null,null,0,0,null,null,null,0,0]
[null,null,null,null,null,null,0,null,null,null,0,0,null,null,null,0,0]
[null,null,null,null,null,null,0,null,null,null,0,0,null,null,null,0,0]
[null,null,null,null,null,null,0,null,null,null,0,0,null,null,null,0,0]
[null,null,null,null,null,null,0,null,null,null,0,0,null,null,null,0,0]
[null,null,null,null,null,null,0,null,null,null,0,0,null,null,null,0,0]
[null,null,null,null,null,null,0,null,null,null,0,0,null,null,null,0,0]
[null,null,null,null,null,null,0,null,null,null,0,0,null,null,null,0,0]
[null,null,null,null,null,null,0,null,null,null,0,0,null,null,null,0,0]
[null,null,null,null,null,null,0,null,null,null,0,0,null,null,null,0,0]
[null,null,null,null,null,null,0,null,null,null,0,0,null,null,null,0,0]
["↓ 41page ",null,null,null,null,null,0,null,null,null,0,0,null,null,null,0,0]
[null,null,null,null,null,null,0,null,null,null,0,0,null,null,null,0,0]
[null,null,null,null,null,null,0,null,null,null,0,0,null,null,null,0,0]
[null,null,null,null,null,null,0,null,null,null,0,0,null,null,null,0,0]
[null,null,null,null,null,null,0,null,null,null,0,0,null,null,null,0,0]
[null,null,null,null,null,null,0,null,null,null,0,0,null,null,null,0,0]
[null,null,null,null,null,null,0,null,null,null,0,0,null,null,null,0,0]
[null,null,null,null,null,null,0,null,null,null,0,0,null,null,null,0,0]
[null,null,null,null,null,null,0,null,null,null,0,0,null,null,null,0,0]
[null,null,null,null,null,null,0,null,null,null,0,0,null,null,null,0,0]
[null,null,null,null,null,null,0,null,null,null,0,0,null,null,null,0,0]
[null,null,null,null,null,null,0,null,null,null,0,0,null,null,null,0,0]
[null,null,null,null,null,null,0,null,null,null,0,0,null,null,null,0,0]
[null,null,null,null,null,null,0,null,null,null,0,0,null,null,null,0,0]
[null,null,null,null,null,null,0,null,null,null,0,0,null,null,null,0,0]
[null,null,null,null,null,null,0,null,null,null,0,0,null,null,null,0,0]
[null,null,null,null,null,null,0,null,null,null,0,0,null,null,null,0,0]
[null,null,null,null,null,null,0,null,null,null,0,0,null,null,null,0,0]
[null,null,null,null,null,null,0,null,null,null,0,0,null,null,null,0,0]
[null,null,null,null,null,null,0,null,null,null,0,0,null,null,null,0,0]
["↓ 42page ",null,null,null,null,null,0,null,null,null,0,0,null,null,null,0,0]
[null,null,null,null,null,null,0,null,null,null,0,0,null,null,null,0,0]
[null,null,null,null,null,null,0,null,null,null,0,0,null,null,null,0,0]
[null,null,null,null,null,null,0,null,null,null,0,0,null,null,null,0,0]
[null,null,null,null,null,null,0,null,null,null,0,0,null,null,null,0,0]
[null,null,null,null,null,null,0,null,null,null,0,0,null,null,null,0,0]
[null,null,null,null,null,null,0,null,null,null,0,0,null,null,null,0,0]
[null,null,null,null,null,null,0,null,null,null,0,0,null,null,null,0,0]
[null,null,null,null,null,null,0,null,null,null,0,0,null,null,null,0,0]
[null,null,null,null,null,null,0,null,null,null,0,0,null,null,null,0,0]
[null,null,null,null,null,null,0,null,null,null,0,0,null,null,null,0,0]
[null,null,null,null,null,null,0,null,null,null,0,0,null,null,null,0,0]
[null,null,null,null,null,null,0,null,null,null,0,0,null,null,null,0,0]
[null,null,null,null,null,null,{"$f":"ROUNDDOWN(D844*F844,0)","v":0},null,null,null,{"$f":"ROUNDDOWN(H844*J844,0)","v":0},{"$f":"K844-G844","v":0},null,null,null,{"$f":"ROUNDDOWN(M844*O844,0)","v":0},{"$f":"P844-K844","v":0}]
[null,null,null,null,null,null,0,null,null,null,0,0,null,null,null,0,0]
[null,null,null,null,null,null,0,null,null,null,0,0,null,null,null,0,0]
[null,null,null,null,null,null,0,null,null,null,0,0,null,null,null,0,0]
[null,null,null,null,null,null,0,null,null,null,0,0,null,null,null,0,0]
[null,null,null,null,null,null,0,null,null,null,0,0,null,null,null,0,0]
[null,null,null,null,null,null,0,null,null,null,0,0,null,null,null,0,0]
["↓ 43page ",null,null,null,null,null,0,null,null,null,0,0,null,null,null,0,0]
[null,null,null,null,null,null,0,null,null,null,0,0,null,null,null,0,0]
[null,null,null,null,null,null,0,null,null,null,0,0,null,null,null,0,0]
[null,null,null,null,null,null,0,null,null,null,0,0,null,null,null,0,0]
[null,null,null,null,null,null,0,null,null,null,0,0,null,null,null,0,0]
[null,null,null,null,null,null,0,null,null,null,0,0,null,null,null,0,0]
[null,null,null,null,null,null,0,null,null,null,0,0,null,null,null,0,0]
[null,null,null,null,null,null,0,null,null,null,0,0,null,null,null,0,0]
[null,null,null,null,null,null,0,null,null,null,0,0,null,null,null,0,0]
[null,null,null,null,null,null,0,null,null,null,0,0,null,null,null,0,0]
[null,null,null,null,null,null,0,null,null,null,0,0,null,null,null,0,0]
[null,null,null,null,null,null,0,null,null,null,0,0,null,null,null,0,0]
[null,null,null,null,null,null,0,null,null,null,0,0,null,null,null,0,0]
[null,null,null,null,null,null,0,null,null,null,0,0,null,null,null,0,0]
[null,null,null,null,null,null,0,null,null,null,0,0,null,null,null,0,0]
[null,null,null,null,null,null,0,null,null,null,0,0,null,null,null,0,0]
[null,null,null,null,null,null,0,null,null,null,0,0,null,null,null,0,0]
[null,null,null,null,null,null,0,null,null,null,0,0,null,null,null,0,0]
[null,null,null,null,null,null,0,null,null,null,0,0,null,null,null,0,0]
[null,null,null,null,null,null,0,null,null,null,0,0,null,null,null,0,0]
["↓ 44page ",null,null,null,null,null,0,null,null,null,0,0,null,null,null,0,0]
[null,null,null,null,null,null,0,null,null,null,0,0,null,null,null,0,0]
[null,null,null,null,null,null,0,null,null,null,0,0,null,null,null,0,0]
[null,null,null,null,null,null,0,null,null,null,0,0,null,null,null,0,0]
[null,null,null,null,null,null,0,null,null,null,0,0,null,null,null,0,0]
[null,null,null,null,null,null,0,null,null,null,0,0,null,null,null,0,0]
[null,null,null,null,null,null,0,null,null,null,0,0,null,null,null,0,0]
[null,null,null,null,null,null,0,null,null,null,0,0,null,null,null,0,0]
[null,null,null,null,null,null,0,null,null,null,0,0,null,null,null,0,0]
[null,null,null,null,null,null,0,null,null,null,0,0,null,null,null,0,0]
[null,null,null,null,null,null,0,null,null,null,0,0,null,null,null,0,0]
[null,null,null,null,null,null,0,null,null,null,0,0,null,null,null,0,0]
[null,null,null,null,null,null,0,null,null,null,0,0,null,null,null,0,0]
[null,null,null,null,null,null,0,null,null,null,0,0,null,null,null,0,0]
[null,null,null,null,null,null,0,null,null,null,0,0,null,null,null,0,0]
[null,null,null,null,null,null,0,null,null,null,0,0,null,null,null,0,0]
[null,null,null,null,null,null,0,null,null,null,0,0,null,null,null,0,0]
[null,null,null,null,null,null,0,null,null,null,0,0,null,null,null,0,0]
[null,null,null,null,null,null,0,null,null,null,0,0,null,null,null,0,0]
[null,null,null,null,null,null,0,null,null,null,0,0,null,null,null,0,0]
["↓ 45page ",null,null,null,null,null,0,null,null,null,0,0,null,null,null,0,0]
[null,null,null,null,null,null,0,null,null,null,0,0,null,null,null,0,0]
[null,null,null,null,null,null,0,null,null,null,0,0,null,null,null,0,0]
[null,null,null,null,null,null,0,null,null,null,0,0,null,null,null,0,0]
[null,null,null,null,null,null,0,null,null,null,0,0,null,null,null,0,0]
[null,null,null,null,null,null,0,null,null,null,0,0,null,null,null,0,0]
[null,null,null,null,null,null,0,null,null,null,0,0,null,null,null,0,0]
[null,null,null,null,null,null,0,null,null,null,0,0,null,null,null,0,0]
[null,null,null,null,null,null,0,null,null,null,0,0,null,null,null,0,0]
[null,null,null,null,null,null,0,null,null,null,0,0,null,null,null,0,0]
[null,null,null,null,null,null,0,null,null,null,0,0,null,null,null,0,0]
[null,null,null,null,null,null,0,null,null,null,0,0,null,null,null,0,0]
[null,null,null,null,null,null,0,null,null,null,0,0,null,null,null,0,0]
[null,null,null,null,null,null,0,null,null,null,0,0,null,null,null,0,0]
[null,null,null,null,null,null,0,null,null,null,0,0,null,null,null,0,0]
[null,null,null,null,null,null,0,null,null,null,0,0,null,null,null,0,0]
[null,null,null,null,null,null,0,null,null,null,0,0,null,null,null,0,0]
[null,null,null,null,null,null,{"$f":"ROUNDDOWN(D908*F908,0)","v":0},null,null,null,{"$f":"ROUNDDOWN(H908*J908,0)","v":0},{"$f":"K908-G908","v":0},null,null,null,{"$f":"ROUNDDOWN(M908*O908,0)","v":0},{"$f":"P908-K908","v":0}]
[null,null,null,null,null,null,0,null,null,null,0,0,null,null,null,0,0]
[null,null,null,null,null,null,0,null,null,null,0,0,null,null,null,0,0]
["↓ 46page ",null,null,null,null,null,0,null,null,null,0,0,null,null,null,0,0]
[null,null,null,null,null,null,0,null,null,null,0,0,null,null,null,0,0]
[null,null,null,null,null,null,0,null,null,null,0,0,null,null,null,0,0]
[null,null,null,null,null,null,0,null,null,null,0,0,null,null,null,0,0]
[null,null,null,null,null,null,0,null,null,null,0,0,null,null,null,0,0]
[null,null,null,null,null,null,0,null,null,null,0,0,null,null,null,0,0]
[null,null,null,null,null,null,0,null,null,null,0,0,null,null,null,0,0]
[null,null,null,null,null,null,0,null,null,null,0,0,null,null,null,0,0]
[null,null,null,null,null,null,0,null,null,null,0,0,null,null,null,0,0]
[null,null,null,null,null,null,0,null,null,null,0,0,null,null,null,0,0]
[null,null,null,null,null,null,0,null,null,null,0,0,null,null,null,0,0]
[null,null,null,null,null,null,0,null,null,null,0,0,null,null,null,0,0]
[null,null,null,null,null,null,0,null,null,null,0,0,null,null,null,0,0]
[null,null,null,null,null,null,0,null,null,null,0,0,null,null,null,0,0]
[null,null,null,null,null,null,0,null,null,null,0,0,null,null,null,0,0]
[null,null,null,null,null,null,0,null,null,null,0,0,null,null,null,0,0]
[null,null,null,null,null,null,0,null,null,null,0,0,null,null,null,0,0]
[null,null,null,null,null,null,0,null,null,null,0,0,null,null,null,0,0]
[null,null,null,null,null,null,0,null,null,null,0,0,null,null,null,0,0]
[null,null,null,null,null,null,0,null,null,null,0,0,null,null,null,0,0]
["↓ 47page ",null,null,null,null,null,0,null,null,null,0,0,null,null,null,0,0]
[null,null,null,null,null,null,0,null,null,null,0,0,null,null,null,0,0]
[null,null,null,null,null,null,0,null,null,null,0,0,null,null,null,0,0]
[null,null,null,null,null,null,0,null,null,null,0,0,null,null,null,0,0]
[null,null,null,null,null,null,0,null,null,null,0,0,null,null,null,0,0]
[null,null,null,null,null,null,0,null,null,null,0,0,null,null,null,0,0]
[null,null,null,null,null,null,0,null,null,null,0,0,null,null,null,0,0]
[null,null,null,null,null,null,0,null,null,null,0,0,null,null,null,0,0]
[null,null,null,null,null,null,0,null,null,null,0,0,null,null,null,0,0]
[null,null,null,null,null,null,0,null,null,null,0,0,null,null,null,0,0]
[null,null,null,null,null,null,0,null,null,null,0,0,null,null,null,0,0]
[null,null,null,null,null,null,0,null,null,null,0,0,null,null,null,0,0]
[null,null,null,null,null,null,0,null,null,null,0,0,null,null,null,0,0]
[null,null,null,null,null,null,0,null,null,null,0,0,null,null,null,0,0]
[null,null,null,null,null,null,0,null,null,null,0,0,null,null,null,0,0]
[null,null,null,null,null,null,0,null,null,null,0,0,null,null,null,0,0]
[null,null,null,null,null,null,0,null,null,null,0,0,null,null,null,0,0]
[null,null,null,null,null,null,0,null,null,null,0,0,null,null,null,0,0]
[null,null,null,null,null,null,0,null,null,null,0,0,null,null,null,0,0]
[null,null,null,null,null,null,0,null,null,null,0,0,null,null,null,0,0]
["↓ 48page ",null,null,null,null,null,0,null,null,null,0,0,null,null,null,0,0]
[null,null,null,null,null,null,0,null,null,null,0,0,null,null,null,0,0]
[null,null,null,null,null,null,0,null,null,null,0,0,null,null,null,0,0]
[null,null,null,null,null,null,0,null,null,null,0,0,null,null,null,0,0]
[null,null,null,null,null,null,0,null,null,null,0,0,null,null,null,0,0]
[null,null,null,null,null,null,0,null,null,null,0,0,null,null,null,0,0]
[null,null,null,null,null,null,0,null,null,null,0,0,null,null,null,0,0]
[null,null,null,null,null,null,0,null,null,null,0,0,null,null,null,0,0]
[null,null,null,null,null,null,0,null,null,null,0,0,null,null,null,0,0]
[null,null,null,null,null,null,0,null,null,null,0,0,null,null,null,0,0]
[null,null,null,null,null,null,0,null,null,null,0,0,null,null,null,0,0]
[null,null,null,null,null,null,0,null,null,null,0,0,null,null,null,0,0]
[null,null,null,null,null,null,0,null,null,null,0,0,null,null,null,0,0]
[null,null,null,null,null,null,0,null,null,null,0,0,null,null,null,0,0]
[null,null,null,null,null,null,0,null,null,null,0,0,null,null,null,0,0]
[null,null,null,null,null,null,0,null,null,null,0,0,null,null,null,0,0]
[null,null,null,null,null,null,0,null,null,null,0,0,null,null,null,0,0]
[null,null,null,null,null,null,0,null,null,null,0,0,null,null,null,0,0]
[null,null,null,null,null,null,0,null,null,null,0,0,null,null,null,0,0]
[null,null,null,null,null,null,0,null,null,null,0,0,null,null,null,0,0]
["↓ 49page ",null,null,null,null,null,0,null,null,null,0,0,null,null,null,0,0]
[null,null,null,null,null,null,{"$f":"ROUNDDOWN(D972*F972,0)","v":0},null,null,null,{"$f":"ROUNDDOWN(H972*J972,0)","v":0},{"$f":"K972-G972","v":0},null,null,null,{"$f":"ROUNDDOWN(M972*O972,0)","v":0},{"$f":"P972-K972","v":0}]
[null,null,null,null,null,null,0,null,null,null,0,0,null,null,null,0,0]
[null,null,null,null,null,null,0,null,null,null,0,0,null,null,null,0,0]
[null,null,null,null,null,null,0,null,null,null,0,0,null,null,null,0,0]
[null,null,null,null,null,null,0,null,null,null,0,0,null,null,null,0,0]
[null,null,null,null,null,null,0,null,null,null,0,0,null,null,null,0,0]
[null,null,null,null,null,null,0,null,null,null,0,0,null,null,null,0,0]
[null,null,null,null,null,null,0,null,null,null,0,0,null,null,null,0,0]
[null,null,null,null,null,null,0,null,null,null,0,0,null,null,null,0,0]
[null,null,null,null,null,null,0,null,null,null,0,0,null,null,null,0,0]
[null,null,null,null,null,null,0,null,null,null,0,0,null,null,null,0,0]
[null,null,null,null,null,null,0,null,null,null,0,0,null,null,null,0,0]
[null,null,null,null,null,null,0,null,null,null,0,0,null,null,null,0,0]
[null,null,null,null,null,null,0,null,null,null,0,0,null,null,null,0,0]
[null,null,null,null,null,null,0,null,null,null,0,0,null,null,null,0,0]
[null,null,null,null,null,null,0,null,null,null,0,0,null,null,null,0,0]
[null,null,null,null,null,null,0,null,null,null,0,0,null,null,null,0,0]
[null,null,null,null,null,null,0,null,null,null,0,0,null,null,null,0,0]
[null,null,null,null,null,null,0,null,null,null,0,0,null,null,null,0,0]
["↓ 50page ",null,null,null,null,null,0,null,null,null,0,0,null,null,null,0,0]
[null,null,null,null,null,null,0,null,null,null,0,0,null,null,null,0,0]
[null,null,null,null,null,null,0,null,null,null,0,0,null,null,null,0,0]
[null,null,null,null,null,null,0,null,null,null,0,0,null,null,null,0,0]
[null,null,null,null,null,null,0,null,null,null,0,0,null,null,null,0,0]
[null,null,null,null,null,null,0,null,null,null,0,0,null,null,null,0,0]
[null,null,null,null,null,null,0,null,null,null,0,0,null,null,null,0,0]
[null,null,null,null,null,null,0,null,null,null,0,0,null,null,null,0,0]
[null,null,null,null,null,null,0,null,null,null,0,0,null,null,null,0,0]
[null,null,null,null,null,null,0,null,null,null,0,0,null,null,null,0,0]
[null,null,null,null,null,null,0,null,null,null,0,0,null,null,null,0,0]
[null,null,null,null,null,null,0,null,null,null,0,0,null,null,null,0,0]
[null,null,null,null,null,null,0,null,null,null,0,0,null,null,null,0,0]
[null,null,null,null,null,null,0,null,null,null,0,0,null,null,null,0,0]
[null,null,null,null,null,null,0,null,null,null,0,0,null,null,null,0,0]
[null,null,null,null,null,null,0,null,null,null,0,0,null,null,null,0,0]
[null,null,null,null,null,null,0,null,null,null,0,0,null,null,null,0,0]
[null,null,null,null,null,null,0,null,null,null,0,0,null,null,null,0,0]
[null,null,null,null,null,null,0,null,null,null,0,0,null,null,null,0,0]
[null,null,null,null,null,null,0,null,null,null,0,0,null,null,null,0,0]

{"sheet":"見積書（手書用）","index":7,"n_rows":35,"n_cols":52,"rows_kept":35,"cut":false,"hidden":false,"merged":[[28,45,28,50],[28,51,28,56],[28,31,28,36],[28,37,28,42],[18,35,21,36],[18,22,18,34],[13,35,14,46],[15,20,15,23],[15,24,15,34],[15,43,15,52],[15,35,17,36],[13,47,14,56],[16,20,16,23],[16,24,16,34],[31,13,31,18],[28,1,28,12],[28,13,28,18],[28,19,28,24],[28,25,28,30],[29,13,29,18],[20,1,20,8],[20,10,22,10],[22,22,22,28],[22,29,22,34],[22,35,25,36],[23,1,25,7],[23,8,23,11],[23,12,23,15],[23,16,23,19],[24,14,24,15],[24,16,24,17],[24,18,24,19],[25,8,25,9],[25,10,25,11],[25,12,25,13],[24,8,24,9],[24,10,24,11],[24,12,24,13],[25,14,25,15],[25,16,25,17],[25,18,25,19],[15,1,16,1],[15,11,16,12],[15,13,15,15],[15,16,15,17],[15,18,15,19],[16,13,16,15],[16,16,16,17],[16,18,16,19],[13,1,14,8],[13,9,14,19],[13,20,14,23],[13,24,14,34],[17,1,19,1],[17,4,19,4],[17,5,17,7],[17,8,17,10],[17,11,17,12],[17,20,17,23],[17,24,17,34],[18,2,19,2],[18,3,19,3],[18,11,19,12],[18,18,19,19],[18,20,25,21],[4,45,5,56],[6,2,7,2],[6,3,7,3],[10,1,12,3],[10,4,12,21],[8,1,9,3],[8,4,9,21],[8,28,8,30],[9,26,9,36],[4,37,5,44],[11,26,11,29],[11,30,11,33],[12,26,12,29],[12,31,12,32],[8,31,8,35],[6,28,6,30],[6,4,7,4],[6,5,7,5],[6,8,7,10],[1,1,1,56],[2,2,3,15],[3,46,3,49],[3,50,3,56],[4,1,7,1],[4,2,5,2],[4,3,5,3],[4,4,5,4],[4,5,5,5],[4,6,5,7],[4,8,5,10],[4,22,5,25],[4,27,5,36]]}
[]
[null,"見　　積　　書　（ 控　・　正　・　業者控 ）"]
[null,null,"東洋建設株式会社　御中"]
[null,null,null,null,null,null,null,null,null,null,null,null,null,null,null,null,null,null,null,null,null,null,null,null,null,null,null,null,null,null,null,null,null,null,null,null,null,null,null,null,null,null,null,null,null,null,"見積年月日"]
[null,"発注区分","新規","増額","減額","その他","変 更\n回 次",null," 契   約№",null,null,null,null,null,null,null,null,null,null,null,null,null,"取引先ｺ-ﾄﾞNo.",null,null,null,null,null,null,null,null,null,null,null,null,null,null,"適格請求書発行事業者\n登録番号"]
[]
[null,null,1,2,3,4,null,null," 原契約№",null,null,null,null,null,null,null,null,null,null,null,null,null,"（建設業許可番号年月日）",null,null,null,null,null,null,null,null,null,null,null,null,null,null,null,null,"〒"]
[null,null,null,null,null,null,null,null,null,null,null,null,null,null,null,null,null,null,null,null,null,null,null,null,null,null,null,null,null,null,null,null,null,null,null,null,null," 住  所"]
[null," 工　事　名",null,null,null,null,null,null,null,null,null,null,null,null,null,null,null,null,null,null,null,null,null,null,null,null,null,null,"許可日"]
[null,null,null,null,null,null,null,null,null,null,null,null,null,null,null,null,null,null,null,null,null,null,null,null,null,null,null,null,null,null,null,null,null,null,null,null,null," 名  称"]
[null," 施工場所",null,null,null,null,null,null,null,null,null,null,null,null,null,null,null,null,null,null,null,null,"（健康保険）"]
[null,null,null,null,null,null,null,null,null,null,null,null,null,null,null,null,null,null,null,null,null,null,"（厚生年金保険）",null,null,null,null,null,null,null,null,null,null,null,null,null,null," ＴＥＬ",null,null,null,null,null,null,null,null,null,"FAX"]
[null,null,null,null,null,null,null,null,null,null,null,null,null,null,null,null,null,null,null,null,null,null,"（雇用保険）",null,null,null,null,null,null,null,"－",null,null,null,null,null,null," 作成部署",null,null,null,null,null,null,null,null,null,"担当者"]
[null,"既契約金額\n(変更見積の場合入力）",null,null,null,null,null,null,null,null,null,null,null,null,null,null,null,null,null,null,"今回見積金額\n(消費税含まず)",null,null,null,null,null,null,null,null,null,null,null,null,null,null,"左記に含まれる\n法定福利費"]
[]
[null,"工事番号",null,null,null,null,null,null,null,null,null,"工期",null,null,null,null,null,null,null,null,"累 計 金 額",null,null,null,null,null,null,null,null,null,null,null,null,null,null,"見積条件",null,"　１．見積有効期限"]
[null,null,null,null,null,null,null,null,null,null,null,null,null,null,null,null,null,null,null,null,"決 定 金 額",null,null,null,null,null,null,null,null,null,null,null,null,null,null,null,null,"　２．見積金額には、消費税はふくまれておりません。"]
[null,"支払区分","基準","その他","支払条件","現金％",null,null,"手形％",null,null,"前渡金",null,null,null,null,null,null,null,null,"実行予算額"]
[null,null,1,2,null,null,null,null,null,null,null,"部分払",null,null,null,null,null,null,"％",null,"捺　　印　　欄",null,"支　　　　　　　　店",null,null,null,null,null,null,null,null,null,null,null,null,"所見欄"]
[]
[null,"契　　　約　　　日",null,null,null,null,null,null,null,"そ","支払内訳"]
[null,null,null,null,"年",null,"月",null,"日","の"]
[null,null,null,null,null,null,null,null,null,"他",null,null,null,null,null,null,null,null,null,null,null,null,"　営業所・事務所",null,null,null,null,null,null,"作　業　所",null,null,null,null,null,"所見欄"]
[null,"労 災 保 険",null,null,null,null,null,null,"成立名義",null,null,null,"保険料負担",null,null,null,"算出基礎"]
[null,null,null,null,null,null,null,null,"発注者",null,"請負業者",null,"発注者",null,"請負業者",null,"請負金額",null,"実質賃金"]
[null,null,null,null,null,null,null,null,1,null,2,null,1,null,2,null,1,null,2]
[]
[]
[null,"工種コード・名称（勘定科目）",null,null,null,null,null,null,null,null,null,null,null,"見 積 金 額",null,null,null,null,null,"値 引 金 額",null,null,null,null,null,"決 定 金 額",null,null,null,null,null,"実 行 予 算 額",null,null,null,null,null,"差 額 (予算－決定）",null,null,null,null,null,null,null," 追加変更決定額概算",null,null,null,null,null,"追加変更見込"]
[null,"　新規",null,"変更　"]
[]
[null,"　原契約"]
[]
[]
[null,null,"(注）"]

{"sheet":"見積内訳書 (手書用)","index":8,"n_rows":30,"n_cols":85,"rows_kept":30,"cut":false,"hidden":false,"merged":[[8,29,8,30],[8,31,8,32],[8,33,8,34],[8,35,8,36],[6,7,6,10],[8,10,9,10],[8,25,8,26],[8,27,8,28],[8,63,8,64],[8,41,8,42],[8,43,8,44],[8,45,8,46],[8,47,8,48],[8,49,8,50],[8,51,8,52],[8,61,8,62],[8,59,8,60],[8,53,8,54],[8,55,8,56],[8,57,8,58],[3,0,3,64],[4,0,4,22],[6,0,7,0],[8,0,9,0],[8,1,9,1],[8,2,8,5],[8,6,8,9],[8,11,8,14],[8,15,9,15],[8,16,9,16],[8,37,8,38],[8,39,8,40],[8,17,8,18],[8,19,8,20],[8,21,8,22],[8,23,8,24]]}
[null,null,null,null,null,null,null,null,null,null,null,null,null,null,null,null,null,{"$f":"SUM(S11:S30)","v":0},null,{"$f":"SUM(U11:U30)","v":0},null,{"$f":"SUM(W11:W30)","v":0},null,{"$f":"SUM(Y11:Y30)","v":0},null,{"$f":"SUM(AA11:AA30)","v":0},null,{"$f":"SUM(AC11:AC30)","v":0},null,{"$f":"SUM(AE11:AE30)","v":0},null,{"$f":"SUM(AG11:AG30)","v":0},null,{"$f":"SUM(AI11:AI30)","v":0},null,{"$f":"SUM(AK11:AK30)","v":0},null,{"$f":"SUM(AM11:AM30)","v":0},null,{"$f":"SUM(AO11:AO30)","v":0},null,{"$f":"SUM(AQ11:AQ30)","v":0},null,{"$f":"SUM(AS11:AS30)","v":0},null,{"$f":"SUM(AU11:AU30)","v":0},null,{"$f":"SUM(AW11:AW30)","v":0},null,{"$f":"SUM(AY11:AY30)","v":0},null,{"$f":"SUM(BA11:BA30)","v":0},null,{"$f":"SUM(BC11:BC30)","v":0},null,{"$f":"SUM(BE11:BE30)","v":0},null,{"$f":"SUM(BG11:BG30)","v":0},null,{"$f":"SUM(BI11:BI30)","v":0},null,{"$f":"SUM(BK11:BK30)","v":0},null,{"$f":"SUM(BM11:BM30)","v":0},null,null,null,null,null,null,null,null,null,null,null,null,null,null,"←東洋モードの状況"]
[null,null,null,null,null,null,null,null,null,null,null,null,null,null,null,null,null,{"$f":"IF(V1<>0,1,0)","v":0},null,{"$f":"IF(X1<>0,1,0)","v":0},null,{"$f":"IF(Z1<>0,1,0)","v":0},null,{"$f":"IF(AB1<>0,1,0)","v":0},null,{"$f":"IF(AD1<>0,1,0)","v":0},null,{"$f":"IF(AF1<>0,1,0)","v":0},null,{"$f":"IF(AH1<>0,1,0)","v":0},null,{"$f":"IF(AJ1<>0,1,0)","v":0},null,{"$f":"IF(AL1<>0,1,0)","v":0},null,{"$f":"IF(AN1<>0,1,0)","v":0},null,{"$f":"IF(AP1<>0,1,0)","v":0},null,{"$f":"IF(AR1<>0,1,0)","v":0},null,{"$f":"IF(AT1<>0,1,0)","v":0},null,{"$f":"IF(AV1<>0,1,0)","v":0},null,{"$f":"IF(AX1<>0,1,0)","v":0},null,{"$f":"IF(AZ1<>0,1,0)","v":0},null,{"$f":"IF(BB1<>0,1,0)","v":0},null,{"$f":"IF(BD1<>0,1,0)","v":0},null,{"$f":"IF(BF1<>0,1,0)","v":0},null,{"$f":"IF(BH1<>0,1,0)","v":0},null,{"$f":"IF(BJ1<>0,1,0)","v":0},null,0,null,0,null,0]
[null,null,null,null,null,null,null,null,null,null,null,null,null,null,null,null,null,1,null,2,null,3,null,4,null,5,null,6,null,7,null,8,null,9,null,10,null,11,null,12,null,13,null,14,null,15,null,16,null,17,null,18,null,19,null,20,null,21,null,22,null,23,null,24]
["見　　積　　内　　訳　　書"]
["〔　総括　・　内訳　〕"]
[]
[null,null,null,null,null,null,"業者名"]
[]
["名称","形状寸法","見　　　　　　積",null,null,null,"検　　　　　　討",null,null,null,"備　　　考","検　　討（実行予算）",null,null,null,"差　　額\n(検討－見積)","備考","年　　　月末累計出来高 ",null,"年　　　月末累計出来高 ",null,"年　　　月末累計出来高 ",null,"年　　　月末累計出来高 ",null,"年　　　月末累計出来高 ",null,"年　　　月末累計出来高 ",null,"年　　　月末累計出来高 ",null,"年　　　月末累計出来高 ",null,"年　　　月末累計出来高 ",null,"年　　　月末累計出来高 ",null,"年　　　月末累計出来高 ",null,"年　　　月末累計出来高 ",null,"年　　　月末累計出来高 ",null,"年　　　月末累計出来高 ",null,"年　　　月末累計出来高 ",null,"年　　　月末累計出来高 ",null,"年　　　月末累計出来高 ",null,"年　　　月末累計出来高 ",null,"年　　　月末累計出来高 ",null,"年　　　月末累計出来高 ",null,"年　　　月末累計出来高 ",null,"年　　　月末累計出来高 ",null,"年　　　月末累計出来高 ",null,"年　　　月末累計出来高 ",null,null,null,null,null,null,null,null,null,null,null,null,null,"↓最大ページの抽出",null,null,"↓指定印刷頁Index",null,"↓最大入力月の抽出（調書）"]
[null,null,"数量","単位","単価","金額","数量","単位","単価","金額",null,"数量","単位","単価","金額",null,null,"数量","金額","数量","金額","数量","金額","数量","金額","数量","金額","数量","金額","数量","金額","数量","金額","数量","金額","数量","金額","数量","金額","数量","金額","数量","金額","数量","金額","数量","金額","数量","金額","数量","金額","数量","金額","数量","金額","数量","金額","数量","金額","数量","金額","数量","金額","数量","金額",null,null,null,null,null,null,null,null,null,null,null,null,null,null,null,"表紙",9999]
[null,null,null,null,null,null,null,null,null,null,null,null,null,null,{"$f":"ROUNDDOWN(L11*N11,0)","v":0},{"$f":"O11-J11","v":0},null,null,null,null,null,null,null,null,null,null,null,null,null,null,null,null,null,null,null,null,null,null,null,null,null,null,null,null,null,null,null,null,null,null,null,null,null,null,null,null,null,null,null,null,null,null,null,null,null,null,null,null,null,null,null,null,null,null,null,null,null,1,{"$f":"SUM(J11:J30)","v":0},{"$f":"IF(CA11<>0,BZ11,\"\")","v":""},"内訳１",1,1,{"$f":"SUM(S$11:S$30)","v":0},{"$f":"IF(CF11<>0,CE11,\"\")","v":""}]
[null,null,null,null,null,null,null,null,null,null,null,null,null,null,{"$f":"ROUNDDOWN(L12*N12,0)","v":0},{"$f":"O12-J12","v":0},null,null,null,null,null,null,null,null,null,null,null,null,null,null,null,null,null,null,null,null,null,null,null,null,null,null,null,null,null,null,null,null,null,null,null,null,null,null,null,null,null,null,null,null,null,null,null,null,null,null,null,null,null,null,null,null,null,null,null,null,null,2,{"$f":"SUM(#REF!)","v":{"$error":"#REF!"}},{"$f":"IF(CA12<>0,BZ12,\"\")","v":{"$error":"#REF!"}},"内訳２",2,2,{"$f":"SUM(U$11:U$30)","v":0},{"$f":"IF(CF12<>0,CE12,\"\")","v":""}]
[null,null,null,null,null,null,null,null,null,null,null,null,null,null,0,0,null,null,null,null,null,null,null,null,null,null,null,null,null,null,null,null,null,null,null,null,null,null,null,null,null,null,null,null,null,null,null,null,null,null,null,null,null,null,null,null,null,null,null,null,null,null,null,null,null,null,null,null,null,null,null,null,null,null,null,null,null,3,{"$f":"SUM(#REF!)","v":{"$error":"#REF!"}},{"$error":"#REF!"},"内訳３",3,3,{"$f":"SUM(W$11:W$30)","v":0},""]
[null,null,null,null,null,null,null,null,null,null,null,null,null,null,0,0,null,null,null,null,null,null,null,null,null,null,null,null,null,null,null,null,null,null,null,null,null,null,null,null,null,null,null,null,null,null,null,null,null,null,null,null,null,null,null,null,null,null,null,null,null,null,null,null,null,null,null,null,null,null,null,null,null,null,null,null,null,4,{"$f":"SUM(#REF!)","v":{"$error":"#REF!"}},{"$error":"#REF!"},"内訳４",4,4,{"$f":"SUM(Y$11:Y$30)","v":0},""]
[null,null,null,null,null,null,null,null,null,null,null,null,null,null,0,0,null,null,null,null,null,null,null,null,null,null,null,null,null,null,null,null,null,null,null,null,null,null,null,null,null,null,null,null,null,null,null,null,null,null,null,null,null,null,null,null,null,null,null,null,null,null,null,null,null,null,null,null,null,null,null,null,null,null,null,null,null,5,{"$f":"SUM(#REF!)","v":{"$error":"#REF!"}},{"$error":"#REF!"},"内訳５",5,5,{"$f":"SUM(AA$11:AA$30)","v":0},""]
[null,null,null,null,null,null,null,null,null,null,null,null,null,null,0,0,null,null,null,null,null,null,null,null,null,null,null,null,null,null,null,null,null,null,null,null,null,null,null,null,null,null,null,null,null,null,null,null,null,null,null,null,null,null,null,null,null,null,null,null,null,null,null,null,null,null,null,null,null,null,null,null,null,null,null,null,null,6,{"$f":"SUM(#REF!)","v":{"$error":"#REF!"}},{"$error":"#REF!"},"内訳６",6,6,{"$f":"SUM(AC$11:AC$30)","v":0},""]
[null,null,null,null,null,null,null,null,null,null,null,null,null,null,0,0,null,null,null,null,null,null,null,null,null,null,null,null,null,null,null,null,null,null,null,null,null,null,null,null,null,null,null,null,null,null,null,null,null,null,null,null,null,null,null,null,null,null,null,null,null,null,null,null,null,null,null,null,null,null,null,null,null,null,null,null,null,7,{"$f":"SUM(#REF!)","v":{"$error":"#REF!"}},{"$error":"#REF!"},"内訳７",7,7,{"$f":"SUM(AE$11:AE$30)","v":0},""]
[null,null,null,null,null,null,null,null,null,null,null,null,null,null,0,0,null,null,null,null,null,null,null,null,null,null,null,null,null,null,null,null,null,null,null,null,null,null,null,null,null,null,null,null,null,null,null,null,null,null,null,null,null,null,null,null,null,null,null,null,null,null,null,null,null,null,null,null,null,null,null,null,null,null,null,null,null,8,{"$f":"SUM(#REF!)","v":{"$error":"#REF!"}},{"$error":"#REF!"},"内訳８",8,8,{"$f":"SUM(AG$11:AG$30)","v":0},""]
[null,null,null,null,null,null,null,null,null,null,null,null,null,null,0,0,null,null,null,null,null,null,null,null,null,null,null,null,null,null,null,null,null,null,null,null,null,null,null,null,null,null,null,null,null,null,null,null,null,null,null,null,null,null,null,null,null,null,null,null,null,null,null,null,null,null,null,null,null,null,null,null,null,null,null,null,null,9,{"$f":"SUM(#REF!)","v":{"$error":"#REF!"}},{"$error":"#REF!"},"内訳９",9,9,{"$f":"SUM(AI$11:AI$30)","v":0},""]
[null,null,null,null,null,null,null,null,null,null,null,null,null,null,0,0,null,null,null,null,null,null,null,null,null,null,null,null,null,null,null,null,null,null,null,null,null,null,null,null,null,null,null,null,null,null,null,null,null,null,null,null,null,null,null,null,null,null,null,null,null,null,null,null,null,null,null,null,null,null,null,null,null,null,null,null,null,10,{"$f":"SUM(#REF!)","v":{"$error":"#REF!"}},{"$error":"#REF!"},"内訳１０",10,10,{"$f":"SUM(AK$11:AK$30)","v":0},""]
[null,null,null,null,null,null,null,null,null,null,null,null,null,null,0,0,null,null,null,null,null,null,null,null,null,null,null,null,null,null,null,null,null,null,null,null,null,null,null,null,null,null,null,null,null,null,null,null,null,null,null,null,null,null,null,null,null,null,null,null,null,null,null,null,null,null,null,null,null,null,null,null,null,null,null,null,null,11,{"$f":"SUM(#REF!)","v":{"$error":"#REF!"}},{"$error":"#REF!"},"内訳１１",11,11,{"$f":"SUM(AM$11:AM$30)","v":0},""]
[null,null,null,null,null,null,null,null,null,null,null,null,null,null,0,0,null,null,null,null,null,null,null,null,null,null,null,null,null,null,null,null,null,null,null,null,null,null,null,null,null,null,null,null,null,null,null,null,null,null,null,null,null,null,null,null,null,null,null,null,null,null,null,null,null,null,null,null,null,null,null,null,null,null,null,null,null,12,{"$f":"SUM(#REF!)","v":{"$error":"#REF!"}},{"$error":"#REF!"},"内訳１２",12,12,{"$f":"SUM(AO$11:AO$30)","v":0},""]
[null,null,null,null,null,null,null,null,null,null,null,null,null,null,0,0,null,null,null,null,null,null,null,null,null,null,null,null,null,null,null,null,null,null,null,null,null,null,null,null,null,null,null,null,null,null,null,null,null,null,null,null,null,null,null,null,null,null,null,null,null,null,null,null,null,null,null,null,null,null,null,null,null,null,null,null,null,13,{"$f":"SUM(#REF!)","v":{"$error":"#REF!"}},{"$error":"#REF!"},"内訳１３",13,13,{"$f":"SUM(AQ$11:AQ$30)","v":0},""]
[null,null,null,null,null,null,null,null,null,null,null,null,null,null,0,0,null,null,null,null,null,null,null,null,null,null,null,null,null,null,null,null,null,null,null,null,null,null,null,null,null,null,null,null,null,null,null,null,null,null,null,null,null,null,null,null,null,null,null,null,null,null,null,null,null,null,null,null,null,null,null,null,null,null,null,null,null,14,{"$f":"SUM(#REF!)","v":{"$error":"#REF!"}},{"$error":"#REF!"},"内訳１４",14,14,{"$f":"SUM(AS$11:AS$30)","v":0},""]
[null,null,null,null,null,null,null,null,null,null,null,null,null,null,0,0,null,null,null,null,null,null,null,null,null,null,null,null,null,null,null,null,null,null,null,null,null,null,null,null,null,null,null,null,null,null,null,null,null,null,null,null,null,null,null,null,null,null,null,null,null,null,null,null,null,null,null,null,null,null,null,null,null,null,null,null,null,15,{"$f":"SUM(#REF!)","v":{"$error":"#REF!"}},{"$error":"#REF!"},"内訳１５",15,15,{"$f":"SUM(AU$11:AU$30)","v":0},""]
[null,null,null,null,null,null,null,null,null,null,null,null,null,null,0,0,null,null,null,null,null,null,null,null,null,null,null,null,null,null,null,null,null,null,null,null,null,null,null,null,null,null,null,null,null,null,null,null,null,null,null,null,null,null,null,null,null,null,null,null,null,null,null,null,null,null,null,null,null,null,null,null,null,null,null,null,null,16,{"$f":"SUM(#REF!)","v":{"$error":"#REF!"}},{"$error":"#REF!"},"内訳１６",16,16,{"$f":"SUM(AW$11:AW$30)","v":0},""]
[null,null,null,null,null,null,null,null,null,null,null,null,null,null,0,0,null,null,null,null,null,null,null,null,null,null,null,null,null,null,null,null,null,null,null,null,null,null,null,null,null,null,null,null,null,null,null,null,null,null,null,null,null,null,null,null,null,null,null,null,null,null,null,null,null,null,null,null,null,null,null,null,null,null,null,null,null,17,{"$f":"SUM(#REF!)","v":{"$error":"#REF!"}},{"$error":"#REF!"},"内訳１７",17,17,{"$f":"SUM(AY$11:AY$30)","v":0},""]
[null,null,null,null,null,null,null,null,null,null,null,null,null,null,0,0,null,null,null,null,null,null,null,null,null,null,null,null,null,null,null,null,null,null,null,null,null,null,null,null,null,null,null,null,null,null,null,null,null,null,null,null,null,null,null,null,null,null,null,null,null,null,null,null,null,null,null,null,null,null,null,null,null,null,null,null,null,18,{"$f":"SUM(#REF!)","v":{"$error":"#REF!"}},{"$error":"#REF!"},"内訳１８",18,18,{"$f":"SUM(BA$11:BA$30)","v":0},""]
[null,null,null,null,null,null,null,null,null,null,null,null,null,null,0,0,null,null,null,null,null,null,null,null,null,null,null,null,null,null,null,null,null,null,null,null,null,null,null,null,null,null,null,null,null,null,null,null,null,null,null,null,null,null,null,null,null,null,null,null,null,null,null,null,null,null,null,null,null,null,null,null,null,null,null,null,null,19,{"$f":"SUM(#REF!)","v":{"$error":"#REF!"}},{"$error":"#REF!"},"内訳１９",19,19,{"$f":"SUM(BC$11:BC$30)","v":0},""]
[null,null,null,null,null,null,null,null,null,null,null,null,null,null,0,0,null,null,null,null,null,null,null,null,null,null,null,null,null,null,null,null,null,null,null,null,null,null,null,null,null,null,null,null,null,null,null,null,null,null,null,null,null,null,null,null,null,null,null,null,null,null,null,null,null,null,null,null,null,null,null,null,null,null,null,null,null,20,{"$f":"SUM(#REF!)","v":{"$error":"#REF!"}},{"$error":"#REF!"},"内訳２０",20,20,{"$f":"SUM(BE$11:BE$30)","v":0},""]

{"sheet":"出来高調書（手書用）","index":9,"n_rows":27,"n_cols":24,"rows_kept":27,"cut":false,"hidden":false,"merged":[[5,22,5,23],[0,1,0,23],[1,1,1,23],[2,22,2,23],[3,1,4,1],[5,1,6,1],[5,2,6,2],[5,3,5,6],[5,7,5,10],[5,12,5,15],[5,16,6,16],[5,17,6,17],[5,18,5,19],[5,20,5,21],[3,21,3,23]]}
[null,"年　　　月分　外注出来高調書"]
[null,"〔　総括　・　内訳　〕"]
[null,null,null,null,null,null,null,null,null,null,null,null,null,null,null,null,null,null,null,null,null,null,"（　　　　／　　　　葉）"]
[null,null,null,null,null,null,null,null,null,null,null,null,null,null,null,null,null,null,null,null,"業者名"]
[]
[null,"名称","形状寸法","前　回　見　積",null,null,null,"見　　　　　積",null,null,null,"変更額","検　　討（実行予算）",null,null,null,"差　　額\n(検討－見積)","備考","年　　　月末累計出来高 ",null,"年　　　月末累計出来高 ",null,"年　　　月末累計出来高 "]
[null,null,null,"数量","単位","単価","金額","数量","単位","単価","金額","（今回－前回）","数量","単位","単価","金額",null,null,"数量","金額","数量","金額","数量","金額"]
["↓ 1page ",null,null,null,null,null,{"$f":"ROUNDDOWN(D8*F8,0)","v":0},null,null,null,{"$f":"ROUNDDOWN(H8*J8,0)","v":0},{"$f":"K8-G8","v":0},null,null,null,{"$f":"ROUNDDOWN(M8*O8,0)","v":0},{"$f":"P8-K8","v":0}]
[null,null,null,null,null,null,0,null,null,null,{"$f":"ROUNDDOWN(H9*J9,0)","v":0},{"$f":"K9-G9","v":0},null,null,null,{"$f":"ROUNDDOWN(M9*O9,0)","v":0},{"$f":"P9-K9","v":0}]
[null,null,null,null,null,null,0,null,null,null,0,0,null,null,null,0,0]
[null,null,null,null,null,null,0,null,null,null,0,0,null,null,null,0,0]
[null,null,null,null,null,null,0,null,null,null,0,0,null,null,null,0,0]
[null,null,null,null,null,null,0,null,null,null,0,0,null,null,null,0,0]
[null,null,null,null,null,null,0,null,null,null,0,0,null,null,null,0,0]
[null,null,null,null,null,null,0,null,null,null,0,0,null,null,null,0,0]
[null,null,null,null,null,null,0,null,null,null,0,0,null,null,null,0,0]
[null,null,null,null,null,null,0,null,null,null,0,0,null,null,null,0,0]
[null,null,null,null,null,null,0,null,null,null,0,0,null,null,null,0,0]
[null,null,null,null,null,null,0,null,null,null,0,0,null,null,null,0,0]
[null,null,null,null,null,null,0,null,null,null,0,0,null,null,null,0,0]
[null,null,null,null,null,null,0,null,null,null,0,0,null,null,null,0,0]
[null,null,null,null,null,null,0,null,null,null,0,0,null,null,null,0,0]
[null,null,null,null,null,null,0,null,null,null,0,0,null,null,null,0,0]
[null,null,null,null,null,null,0,null,null,null,0,0,null,null,null,0,0]
[null,null,null,null,null,null,0,null,null,null,0,0,null,null,null,0,0]
[null,null,null,null,null,null,0,null,null,null,0,0,null,null,null,0,0]
[null,null,null,null,null,null,0,null,null,null,0,0,null,null,null,0,0]

{"sheet":"労務費内訳書","index":10,"n_rows":31,"n_cols":13,"rows_kept":31,"cut":false,"hidden":false,"merged":[[0,0,0,12],[1,10,1,12],[3,0,3,2],[3,3,4,3],[3,4,4,4],[3,5,3,7],[3,8,3,10],[3,11,3,12]]}
["労務費内訳書"]
[null,null,null,null,null,null,null,null,null,"業者名"]
[]
["名称",null,null,"摘要","単位","前　回　見　積（既契約金額）",null,null,"今　回　見　積（変更の場合は累計）",null,null,"増減"]
["次数","協力会社名","建設技術者種別",null,null,"数量","単価","金額","数量","単価","金額","数量","金額"]
[null,null,null,null,null,null,null,{"$f":"+F6*G6","v":0},null,null,{"$f":"+I6*J6","v":0},{"$f":"+I6-F6","v":0},{"$f":"+K6-H6","v":0}]
[null,null,null,null,null,null,null,{"$f":"+F7*G7","v":0},null,null,{"$f":"+I7*J7","v":0},{"$f":"+I7-F7","v":0},{"$f":"+K7-H7","v":0}]
[null,null,null,null,null,null,null,0,null,null,0,0,0]
[null,null,null,null,null,null,null,0,null,null,0,0,0]
[null,null,null,null,null,null,null,0,null,null,0,0,0]
[null,null,null,null,null,null,null,0,null,null,0,0,0]
[null,null,null,null,null,null,null,0,null,null,0,0,0]
[null,null,null,null,null,null,null,0,null,null,0,0,0]
[null,null,null,null,null,null,null,0,null,null,0,0,0]
[null,null,null,null,null,null,null,0,null,null,0,0,0]
[null,null,null,null,null,null,null,0,null,null,0,0,0]
[null,null,null,null,null,null,null,0,null,null,0,0,0]
[null,null,null,null,null,null,null,0,null,null,0,0,0]
[null,null,null,null,null,null,null,0,null,null,0,0,0]
[null,null,null,null,null,null,null,0,null,null,0,0,0]
[null,null,null,null,null,null,null,0,null,null,0,0,0]
[null,null,null,null,null,null,null,0,null,null,0,0,0]
[null,null,null,null,null,null,null,0,null,null,0,0,0]
[null,null,null,null,null,null,null,0,null,null,0,0,0]
[null,null,null,null,null,null,null,0,null,null,0,0,0]
[null,null,null,null,null,null,null,0,null,null,0,0,0]
[null,null,null,null,null,null,null,0,null,null,0,0,0]
[null,null,null,null,null,null,null,0,null,null,0,0,0]
[null,null,null,null,null,null,null,0,null,null,0,0,0]
["労務費計",null,null,null,null,null,null,{"$f":"SUM(H6:H29)","v":0},null,null,{"$f":"SUM(K6:K29)","v":0},null,{"$f":"SUM(M6:M29)","v":0}]
["法定福利費",null,null,null,"%",null,{"$f":"H30","v":0},{"$f":"+G31*H30/100","v":0},15.641999999999999,{"$f":"K30","v":0},{"$f":"+J31*I31/100","v":0},null,{"$f":"+K31-H31","v":0}]

{"sheet":"労務費内訳書 (記入例)","index":11,"n_rows":33,"n_cols":13,"rows_kept":33,"cut":false,"hidden":false,"merged":[[0,0,0,12],[1,10,1,12],[3,0,3,2],[3,3,4,3],[3,4,4,4],[3,5,3,7],[3,8,3,10],[3,11,3,12]]}
["労務費内訳書"]
[null,null,null,null,null,null,null,null,null,"業者名",{"$f":"+B7","v":"●●建設"}]
[]
["名称",null,null,"摘要","単位","前　回　見　積（既契約金額）",null,null,"今　回　見　積（変更の場合は累計）",null,null,"増減"]
["次数","協力会社名","建設技術者種別",null,null,"数量","単価","金額","数量","単価","金額","数量","金額"]
[null,"協力会社毎に一式計上が許される場合は↓"]
["1次","●●建設","全体",null,"式",null,null,{"$f":"+F7*G7","v":0},1,3000000,{"$f":"+I7*J7","v":3000000},{"$f":"+I7-F7","v":1},{"$f":"+K7-H7","v":3000000}]
["2次","△△工務店","全体",null,"式",null,null,{"$f":"+F8*G8","v":0},1,1500000,{"$f":"+I8*J8","v":1500000},{"$f":"+I8-F8","v":1},{"$f":"+K8-H8","v":1500000}]
["3次","○○工業","全体",null,"式",null,null,0,1,1400000,1400000,1,1400000]
["3次","◇◇組","全体",null,"式",null,null,0,1,1250000,1250000,1,1250000]
["2次","◎◎建設工業","全体",null,"式",null,null,0,1,4500000,4500000,1,4500000]
["2次","■■建設","全体",null,"式",null,null,0,1,5000000,5000000,1,5000000]
["3次","◆◆鉄筋","全体",null,"式",null,null,0,1,2000000,2000000,1,2000000]
[]
[null,"協力会社毎かつ職種毎の明示が求められる場合は↓",null,null,null,null,null,0,null,null,0,0,0]
["1次","××鉄筋","鉄筋工",null,"人",null,null,0,30,27600,828000,30,828000]
[null,null,null,null,null,null,null,0,null,null,0,0,0]
[null,null,null,null,null,null,null,0,null,null,0,0,0]
[null,null,null,null,null,null,null,0,null,null,0,0,0]
[null,null,null,null,null,null,null,0,null,null,0,0,0]
[null,null,null,null,null,null,null,0,null,null,0,0,0]
[null,null,null,null,null,null,null,0,null,null,0,0,0]
[null,null,null,null,null,null,null,0,null,null,0,0,0]
[null,null,null,null,null,null,null,0,null,null,0,0,0]
[null,null,null,null,null,null,null,0,null,null,0,0,0]
[null,null,null,null,null,null,null,0,null,null,0,0,0]
[null,null,null,null,null,null,null,0,null,null,0,0,0]
[null,null,null,null,null,null,null,0,null,null,0,0,0]
[null,null,null,null,null,null,null,0,null,null,0,0,0]
["労務費計",null,null,null,null,null,null,{"$f":"SUM(H7:H29)","v":0},null,null,{"$f":"SUM(K7:K29)","v":19478000},null,{"$f":"SUM(M7:M29)","v":19478000}]
["法定福利費",null,null,null,"%",null,{"$f":"H30","v":0},{"$f":"+G31*H30/100","v":0},15.641999999999999,{"$f":"K30","v":19478000},{"$f":"+J31*I31/100","v":3046748.76},null,{"$f":"+K31-H31","v":3046748.76}]
[null,null,null,null,null,null,null,null,null,null,null,null,{"$f":"IF(H32<>0,K32-H32,0)","v":0}]
[null,null,null,null,null,null,null,null,null,null,null,null,0]

{"sheet":"Ver.","index":12,"n_rows":38,"n_cols":5,"rows_kept":38,"cut":false,"hidden":false,"merged":[[8,4,8,7]]}
[]
[]
[]
[]
[null,"【バージョン情報】"]
[]
[null,"バージョン","更新日",null,"備考"]
[null,"Ver.4.0","2023-07-18",null,"・見積提出企業の「適格請求書発行事業者登録番号」欄を追加"]
[null,"Ver.3.1.8","2022-06-22",null,"・東洋入力シートの「見積依頼番号入力欄」を削除"]
[null,"Ver.3.1.7","2022-03-17",null,"・労務費見積尊重宣言、CCUS事業者登録対応"]
[null,"Ver.3.1.6","2021-11-04",null,"・「白紙」シートを削除"]
[null,"Ver.3.1.5","2019-04-01",null,"・見積書に「左記に含まれる法定福利費」欄を追加(手書入力)。"]
[null,"Ver.3.1.4","2015-04-30",null,"・雇用保険番号のデフォルト表示のハイフンを追加しました。"]
[null,null,null,null,"・出来高調書入力画面の「年　月末累計出来高」セルが赤くなる設定を解除しました。"]
[null,"Ver.3.1.3","2015-04-06",null,"・見積書の「累計金額」の計算式を削除し、東洋で手書に変更。"]
[null,"Ver.3.1.2","2014-09-12",null,"・納入先控を控に変更。"]
[null,"Ver.3.1.1","2014-07-14",null,"・保険情報入力欄を追加"]
[null,"Ver.3.1","2014-04-01",null,"・見積書の表紙シートを常に表示"]
[null,null,null,null,"・見積書の表紙に「既契約金額・累計金額」を追加"]
[null,null,null,null,"・見積内訳書シートに印刷ボタンを設置"]
[null,null,null,null,"・白紙印刷ボタン、指定ページ印刷マクロ廃止"]
[null,"Ver.3.01","2010-11-24",null,"・合計（オートSUM）の入力方法を追記"]
[null,null,null,null,"・「表紙」の「新規／変更」を正しく表示"]
[null,"Ver.3.0","2010-05-14",null,"・様式の変更（「変更」についての入力を上下段から左右比較へ）"]
[null,null,null,null,"・書式変更を可能とした"]
[null,null,null,null,"・見積内訳の作成が５０ページまで可能"]
[null,null,null,null,"・東洋建設職員専用入力モードを追加"]
[null,"Ver.2.0","2009-08-21",null,"・「名称」「計上寸法」「単位」の幅を拡大"]
[null,null,null,null,"・「数量」「単位」の小数点以下の表示方法を「非表示」「２桁まで表示」の選"]
[null,null,null,null,"　択式に変更"]
[null,"Ver.1.3","2009-07-01",null,"・一括印刷マクロ、ページ指定印刷マクロを修正"]
[null,"Ver.1.2","2009-06-30",null,"・基本情報に「発注区分」欄を新設"]
[null,null,null,null,"・見積金額を表紙の建築工事欄に表示"]
[null,null,null,null,"・数量の表示を小数第２位までに変更"]
[null,null,null,null,"・プレビューを（業者控）から（正）に変更"]
[null,null,null,null,"・注意事項・入力例を印刷可能とした"]
[null,"Ver.1.1","2009-06-22",null,"・計算方法の自動・手動切替マクロを削除（他のファイルに影響が出るため）。"]
[null,"Ver.1.0","2009-06-15",null,"・リリース"]